DEPARTMENT,NOMINAL,TYPE OF EXPENDITURE,DESCRIPTION,PERIOD,YEARCODE,VALUE,ECFRS Ref,INVOICE DATE,DOCUMENT TYPE,SUPPLIER,
Property Services,1330,Building Cleaning,SEE FPIN 130288,12,2015,324.22,114333,14/03/2014,FPIN,CHELMSFORD CITY COUNCIL,
Property Services,1330,Building Cleaning,SEE FPIN 130289,12,2015,312,114334,14/03/2014,FPIN,CHELMSFORD CITY COUNCIL,
Human Resources,6899,Miscellaneous Expenses,EDM Monthly Invoice Sep,12,2015,173.89,123814,29/09/2014,FPIN,EDM GROUP LIMITED,
Technical Services,2030,Operational Equipment Support,"FRA2440 - Adaptor, 65mm Male",12,2015,1476.6,123987,06/10/2014,FPIN,WALTER FRANK & SONS LTD,
Technical Services,2030,Operational Equipment Support,CARRIAGE,12,2015,15.5,123987,06/10/2014,FPIN,WALTER FRANK & SONS LTD,
Technical Services,2030,Operational Equipment Support,HYDROSTATIC TEST CERTIFICATE,12,2015,25,123987,06/10/2014,FPIN,WALTER FRANK & SONS LTD,
Property Services,2903,Consultancy Fees,"1213/288 Window Replacement -",12,2015,117.55,124506,30/09/2014,FPIN,INGLETON WOOD,
Property Services,2903,Consultancy Fees,"1213/288 Window Replacement -",12,2015,127.52,124506,30/09/2014,FPIN,INGLETON WOOD,
Human Resources,6899,Miscellaneous Expenses,EDM Monthly Invoice Oct,12,2015,134.53,125250,28/10/2014,FPIN,EDM GROUP LIMITED,
ITTP Development,4005,IT Consumables,Onsite consultancy for configu,12,2015,2000,125299,12/11/2014,FPIN,VECTOR COMMAND LTD,
Human Resources,6899,Miscellaneous Expenses,EDM Monthly Invoice Nov,12,2015,50.49,126668,28/11/2014,FPIN,EDM GROUP LIMITED,
Purchasing & Supply,2024,Cleaning Equipment,White Tea Towel 50X40CM (EA) T,12,2015,4.9,126741,26/11/2014,FPIN,BUNZL CLEANING & HYGIENE SUPPLIES,
Purchasing & Supply,2024,Cleaning Equipment,General Purpose Detergent 5L (,12,2015,20.72,126741,26/11/2014,FPIN,BUNZL CLEANING & HYGIENE SUPPLIES,
Purchasing & Supply,2024,Cleaning Equipment,Cleanline Lavender Polish Aero,12,2015,4.32,126741,26/11/2014,FPIN,BUNZL CLEANING & HYGIENE SUPPLIES,
Purchasing & Supply,2024,Cleaning Equipment,6336 Kleenex Antibacterial Han,12,2015,27.44,126741,26/11/2014,FPIN,BUNZL CLEANING & HYGIENE SUPPLIES,
Purchasing & Supply,2024,Cleaning Equipment,8577 Scott Folded Toilet Tissu,12,2015,91.2,126741,26/11/2014,FPIN,BUNZL CLEANING & HYGIENE SUPPLIES,
Purchasing & Supply,2024,Cleaning Equipment,6663 Scott Performance Hand To,12,2015,110.44,126741,26/11/2014,FPIN,BUNZL CLEANING & HYGIENE SUPPLIES,
Workshops Management,3050,Leasing Charges,Leasing Charges,12,2015,354.06,126831,20/10/2014,FPIN,LEX AUTOLEASE LTD,
Technical Services,2030,Operational Equipment Support,Dry suit repairs - Neck seal t,12,2015,42,127200,12/12/2014,FPIN,S E M S LTD,
Toner Yellow for Laserjet MFP 575,B205,Stocks & WIP (Purchasing & Supply Stores),CE402A Yellow Toner HP507A - 6,12,2015,132.78,127494,15/12/2014,FPIN,XMA LIMITED,
Toner Black for Laserjet Pro 400,B205,Stocks & WIP (Purchasing & Supply Stores),CE400X BLACK TONER CART,12,2015,248.48,127494,15/12/2014,FPIN,XMA LIMITED,
"Toner, Cyan for HP CM3530 MFP",B205,Stocks & WIP (Purchasing & Supply Stores),CE401A CYAN TONER CART,12,2015,265.56,127494,15/12/2014,FPIN,XMA LIMITED,
"Toner, Magenta for HP CM3530 MFP",B205,Stocks & WIP (Purchasing & Supply Stores),CE403A MAGENTA TONER CART,12,2015,796.68,127494,15/12/2014,FPIN,XMA LIMITED,
Workshops Management,3050,Leasing Charges,Leasing Charges,12,2015,-151.32,127610,29/12/2014,FPIN,LEX AUTOLEASE LTD,
Human Resources,6899,Miscellaneous Expenses,EDM Monthly Invoice Dec,12,2015,70.93,127884,29/12/2014,FPIN,EDM GROUP LIMITED,
Strategic Management Board,2903,Consultancy Fees,EXPENSES,12,2015,914.26,127892,30/10/2014,FPIN,BAKER TILLY RISK ADVISORY SERVICES LLP,
Strategic Management Board,2903,Consultancy Fees,Provision  of Risk Management ,12,2015,3495,127892,30/10/2014,FPIN,BAKER TILLY RISK ADVISORY SERVICES LLP,
Technical Services,2085,Breathing Apparatus,98837-01 Tally - Rescue team v,12,2015,68,128255,13/01/2015,FPIN,INTERSPIRO LTD,
Technical Services,2085,Breathing Apparatus,FREIGHT,12,2015,10,128255,13/01/2015,FPIN,INTERSPIRO LTD,
Property Services,1322,General Services,17/12/14 WITHAM,12,2015,111.59,128256,13/01/2015,FPIN,ANGLIAN WATER,
Purchasing & Supply,2303,Clothing & Footwear,CANCELLED BY FPIN 131612,12,2015,29.99,128307,12/01/2015,FPIN,ALEXANDRA  PLC,
Operations,4110,Travelling Expenses,Travelling Expenses,12,2015,24.1,128419,19/01/2015,FPIN,CAPITA TRAVEL AND EVENTS LTD,
Operations,4110,Travelling Expenses,Travelling Expenses,12,2015,8.5,128419,19/01/2015,FPIN,CAPITA TRAVEL AND EVENTS LTD,
Operations,4110,Travelling Expenses,Travelling Expenses,12,2015,25.5,128419,19/01/2015,FPIN,CAPITA TRAVEL AND EVENTS LTD,
Operations,4110,Travelling Expenses,Travelling Expenses,12,2015,117.4,128419,19/01/2015,FPIN,CAPITA TRAVEL AND EVENTS LTD,
Operations,4110,Travelling Expenses,Travelling Expenses,12,2015,-41.1,128419,19/01/2015,FPIN,CAPITA TRAVEL AND EVENTS LTD,
Operations,4110,Travelling Expenses,Travelling Expenses,12,2015,-30.6,128419,19/01/2015,FPIN,CAPITA TRAVEL AND EVENTS LTD,
Community Safety,4019,Community Safety,Essentials Safety Shoe Black 5,12,2015,47.06,128428,12/01/2015,FPIN,ARCO LTD,
Community Safety,4019,Community Safety,Essentials Safety Shoe Black 1,12,2015,23.53,128428,12/01/2015,FPIN,ARCO LTD,
Community Safety,4019,Community Safety,Essentials Safety Shoe Black 6,12,2015,47.06,128428,12/01/2015,FPIN,ARCO LTD,
Purchasing & Supply,2303,Clothing & Footwear,Essentials Safety Shoe Black 8,12,2015,23.53,128428,12/01/2015,FPIN,ARCO LTD,
Human Resources,2016,Fitness Equipment,Fitness Equipment Repairs high,12,2015,1439.76,128466,16/01/2015,FPIN,SPORTSAFE UK LTD,
Human Resources,2016,Fitness Equipment,Fitness Equipment Repairs high,12,2015,207.76,128467,16/01/2015,FPIN,SPORTSAFE UK LTD,
Not Analysed,B114,Fixed Assets Under Construction ITC Equipment,M5-1 ECFRS Station End Rollout,12,2015,42403.68,128652,20/01/2015,FPIN,REMSDAQ LTD,
Not Analysed,B114,Fixed Assets Under Construction ITC Equipment,M5-2 ECFRS Station End Rollout,12,2015,42403.68,128652,20/01/2015,FPIN,REMSDAQ LTD,
Not Analysed,B114,Fixed Assets Under Construction ITC Equipment,M5-3 ECFRS Station End Rollout,12,2015,28269.12,128652,20/01/2015,FPIN,REMSDAQ LTD,
Not Analysed,B114,Fixed Assets Under Construction ITC Equipment,M5-4 BFRS Station End Rollout ,12,2015,28269.12,128652,20/01/2015,FPIN,REMSDAQ LTD,
Not Analysed,B114,Fixed Assets Under Construction ITC Equipment,CHANGE CONTROL NOTE 001,12,2015,-96282,128652,20/01/2015,FPIN,REMSDAQ LTD,
Not Analysed,B114,Fixed Assets Under Construction ITC Equipment,"M7 Final Acceptance, operation",12,2015,106042.2,128653,20/01/2015,FPIN,REMSDAQ LTD,
Catering,190,Casual and Temporary Staff,Casual and Temporary Staff,12,2015,133,128676,21/01/2015,FPIN,ADECCO UK LTD,
Catering,190,Casual and Temporary Staff,Casual and Temporary Staff,12,2015,79.8,128677,21/01/2015,FPIN,ADECCO UK LTD,
Purchases,B207,Stocks & WIP (Fleet Stores),WSD93351,12,2015,11.8,128679,26/01/2015,FPIN,ALEXANDER DENNIS LTD (PARTS DIVISION),
Purchases,B207,Stocks & WIP (Fleet Stores),WSD93351,12,2015,5.66,128680,26/01/2015,FPIN,ALEXANDER DENNIS LTD (PARTS DIVISION),
Not Analysed,B118,Asset Protection,1314/293B - Watch room refurbi,12,2015,1313.91,128695,28/01/2015,FPIN,M & P DUNN LTD,
Community Safety,4021,Home Safety,RE FPIN 110803,12,2015,-181.5,128757,23/01/2015,FPIN,KIDDE SAFETY EUROPE LTD,
Human Resources,960,Occupational Health,Occupational Health,12,2015,608.5,128877,28/01/2015,FPIN,VITALOGRAPH LTD.,
Human Resources,960,Occupational Health,Occupational Health,12,2015,837,128877,28/01/2015,FPIN,VITALOGRAPH LTD.,
Property Services,2903,Consultancy Fees,1314/341 Relocation of Stores ,12,2015,1638.84,128888,20/01/2015,FPIN,REVELL ARCHITECTURE AND ENGINEERING,
Human Resources,2016,Fitness Equipment,Fitness Equipment Repairs high,12,2015,399.95,129005,30/01/2015,FPIN,SPORTSAFE UK LTD,
Human Resources,2016,Fitness Equipment,Fitness Equipment Repairs high,12,2015,116.44,129013,30/01/2015,FPIN,SPORTSAFE UK LTD,
Technical Services,2030,Operational Equipment Support,Extinguisher Service call ,12,2015,10,129014,27/01/2015,FPIN,THAMESIDE FIRE PROTECTION CO LTD,
Technical Services,2030,Operational Equipment Support,Extinguisher recharge.4 kg dry,12,2015,101.88,129014,27/01/2015,FPIN,THAMESIDE FIRE PROTECTION CO LTD,
Human Resources,2903,Consultancy Fees,December 2014 - TU Facilities ,12,2015,406.25,129072,02/02/2015,FPIN,DOLPHYN,
Workshops Management,B217,Payments in Advance,Chassis & Cab,12,2015,106772,129131,30/01/2015,FPIN,ANGLOCO LTD,
Operations - USAR,2030,Operational Equipment Support,100SANJ21 Monthly charge,12,2015,125.98,129154,26/01/2015,FPIN,AIRWAVE SOLUTIONS LTD,
Operations - USAR,2030,Operational Equipment Support,100SANJ21 SANJ Handheld radio ,12,2015,251.97,129154,26/01/2015,FPIN,AIRWAVE SOLUTIONS LTD,
Not Analysed,B114,Fixed Assets Under Construction ITC Equipment,GROUND BASE NETWORK FOR SAN H,12,2015,79079,129154,26/01/2015,FPIN,AIRWAVE SOLUTIONS LTD,
ICT,2040,IT Support & Maintenance,Monthly Maintenance SAN H 8,12,2015,1101.23,129154,26/01/2015,FPIN,AIRWAVE SOLUTIONS LTD,
ICT,2040,IT Support & Maintenance,MONTHLY RENTAL INSTALLMENTS,12,2015,122.94,129154,26/01/2015,FPIN,AIRWAVE SOLUTIONS LTD,
Corporate Comms,4008,Media Expenses,100SANJ21 Monthly charge,12,2015,125.98,129154,26/01/2015,FPIN,AIRWAVE SOLUTIONS LTD,
Property Services,2903,Consultancy Fees,1213/303 - Colchester Fire Sta,12,2015,686.68,129157,31/01/2015,FPIN,INGLETON WOOD,
Property Services,2903,Consultancy Fees,1314/318 Various Sites - Elect,12,2015,405.29,129158,31/01/2015,FPIN,INGLETON WOOD,
Property Services,2903,Consultancy Fees,"1415/348 - Dormitory, locker r",12,2015,712.8,129160,31/01/2015,FPIN,INGLETON WOOD,
Property Services,190,Casual and Temporary Staff,Casual and Temporary Staff,12,2015,95.04,129244,02/02/2015,FPIN,PURSUIT RECRUITMENT LTD,
Purchases,B207,Stocks & WIP (Fleet Stores),WSD93300,12,2015,660,129292,05/02/2015,FPIN,SOMERS TOTALKARE LTD,
ICT,2510,IT Comms,RENTAL CHGS 02.02.15-01.03.15,12,2015,890,129293,04/02/2015,FPIN,PAGEONE COMMUNICATIONS LTD,
Property Services,1330,Building Cleaning,Jan-15,12,2015,50,129349,30/01/2015,FPIN,SHRED 4 SECURITY LTD,
Property Services,1330,Building Cleaning,Jan-15,12,2015,25,129349,30/01/2015,FPIN,SHRED 4 SECURITY LTD,
Property Services,1330,Building Cleaning,Jan-15,12,2015,50,129349,30/01/2015,FPIN,SHRED 4 SECURITY LTD,
Property Services,1330,Building Cleaning,To collect sacks of confidenti,12,2015,296.01,129349,30/01/2015,FPIN,SHRED 4 SECURITY LTD,
Property Services,1330,Building Cleaning,Jan-15,12,2015,37.5,129349,30/01/2015,FPIN,SHRED 4 SECURITY LTD,
Human Resources,6899,Miscellaneous Expenses,EDM Monthly Invoice Jan '15,12,2015,1135.97,129360,27/01/2015,FPIN,EDM GROUP LIMITED,
Workshops Management,3050,Leasing Charges,Leasing Charges,12,2015,207.86,129394,23/01/2015,FPIN,LEX AUTOLEASE LTD,
Technical Services,2030,Operational Equipment Support,Overall for RL30 dummy,12,2015,314,129395,10/02/2015,FPIN,RUTH LEE LTD,
Technical Services,2030,Operational Equipment Support,"Heavy duty rescue dry suit, Vo",12,2015,340,129396,11/02/2015,FPIN,NORTHERN DIVER INTERNATIONAL LTD,
Technical Services,2030,Operational Equipment Support,.DELIVERY,12,2015,7.5,129396,11/02/2015,FPIN,NORTHERN DIVER INTERNATIONAL LTD,
Technical Services,2030,Operational Equipment Support,"Heavy duty rescue dry suit, Vo",12,2015,340,129397,11/02/2015,FPIN,NORTHERN DIVER INTERNATIONAL LTD,
Technical Services,2030,Operational Equipment Support,.DELIVERY,12,2015,7.5,129397,11/02/2015,FPIN,NORTHERN DIVER INTERNATIONAL LTD,
Workshops Management,3050,Leasing Charges,Leasing Charges,12,2015,5.25,129403,08/02/2015,FPIN,LEX AUTOLEASE LTD,
Workshops Management,3050,Leasing Charges,Leasing Charges,12,2015,1,129404,08/02/2015,FPIN,LEX AUTOLEASE LTD,
Workshops Management,3050,Leasing Charges,Leasing Charges,12,2015,5.25,129405,08/02/2015,FPIN,LEX AUTOLEASE LTD,
Workshops Management,3050,Leasing Charges,Leasing Charges,12,2015,6.38,129406,08/02/2015,FPIN,LEX AUTOLEASE LTD,
Property Services,1040,Planned Works,To carry out electrical servic,12,2015,183.99,129410,10/02/2015,FPIN,KIRKMAN & JOURDAIN LTD,
Property Services,1050,Building Maintenance,Repairs/Insectorcutor,12,2015,217.21,129410,10/02/2015,FPIN,KIRKMAN & JOURDAIN LTD,
Property Services,1040,Planned Works,To carry out electrical servic,12,2015,183.99,129412,10/02/2015,FPIN,KIRKMAN & JOURDAIN LTD,
Property Services,1050,Building Maintenance,Repairs/Insectocutor,12,2015,455.36,129412,10/02/2015,FPIN,KIRKMAN & JOURDAIN LTD,
Finance & Pay,4203,Insurance - Third Party Costs,19142115976,12,2015,337.92,129418,31/01/2015,FPIN,ZURICH MUNICIPAL,
Finance & Pay,4203,Insurance - Third Party Costs,19133012965,12,2015,5000,129419,31/01/2015,FPIN,ZURICH MUNICIPAL,
Workshops Management,3201,Petrol and Diesel,Petrol and Diesel,12,2015,2665.97,129425,05/02/2015,FPIN,HALL FUELS,
Property Services,2903,Consultancy Fees,1415/364 Various sites - Inter,12,2015,2667,129436,30/01/2015,FPIN,INGLETON WOOD,
Property Services,2903,Consultancy Fees,1314/323 Office/Corridor Refur,12,2015,154,129438,12/01/2015,FPIN,INGLETON WOOD,
Property Services,2903,Consultancy Fees,1314/313 - Window replacement ,12,2015,141.36,129439,13/01/2015,FPIN,INGLETON WOOD,
Property Services,2903,Consultancy Fees,1314/311- Professional fees in,12,2015,195,129441,29/01/2015,FPIN,INGLETON WOOD,
Property Services,2903,Consultancy Fees,1314/311- Professional fees in,12,2015,198,129442,30/01/2015,FPIN,INGLETON WOOD,
Property Services,2903,Consultancy Fees,1314/311- Professional fees in,12,2015,594,129442,30/01/2015,FPIN,INGLETON WOOD,
Property Services,2903,Consultancy Fees,CANCELLED BY FPIN 131260,12,2015,2132.72,129444,30/01/2015,FPIN,INGLETON WOOD,
ICT,2510,IT Comms,QRT RENTAL 27.02.15 - 26.05.15,12,2015,111.6,129448,05/02/2015,FPIN,PAGEONE COMMUNICATIONS LTD,
Corporate Comms,4008,Media Expenses,Retirement Gift,12,2015,169.58,129488,11/12/2014,FPIN,FIRE SERVICES FUND-RAISING SHOP CIC,
Property Services,1050,Building Maintenance,Control Car Park D.  External ,12,2015,859.48,129518,11/02/2015,FPIN,KIRKMAN & JOURDAIN LTD,
Purchases,B207,Stocks & WIP (Fleet Stores),WSD 93748,12,2015,41.95,129531,17/12/2014,FPIN,TRUCKEAST LTD,
Technical Services,2085,Breathing Apparatus,"C06 Cylinder Insert 3352181 
",12,2015,8.8,129552,09/02/2015,FPIN,DRAEGER SAFETY UK LTD,
Corporate Comms,4008,Media Expenses,Workforce planning footage,12,2015,450,129581,13/12/2014,FPIN,BILLYPIX LIMITED,
Property Services,1322,General Services,10/02/15 HALSTEAD,12,2015,41.48,129583,10/02/2015,FPIN,ANGLIAN WATER,
Property Services,1321,Water Meters,10/02/15 HALSTEAD,12,2015,21.36,129583,10/02/2015,FPIN,ANGLIAN WATER,
Purchases,B207,Stocks & WIP (Fleet Stores),93556,12,2015,18.23,129604,13/02/2015,FPIN,SOUTH ESSEX FASTENERS LTD,
Human Resources,B217,Payments in Advance,Corporate Membership APR-DEC15,12,2015,750,129609,13/02/2015,FPIN,NWFS,
Human Resources,708,Equalities and Community Engagement,Equalities and Community Engagement,12,2015,1000,129609,13/02/2015,FPIN,NWFS,
Human Resources,708,Equalities and Community Engagement,Equalities and Community Engagement,12,2015,250,129609,13/02/2015,FPIN,NWFS,
Human Resources,708,Equalities and Community Engagement,Equalities and Community Engagement,12,2015,-1000,129609,13/02/2015,FPIN,NWFS,
Property Services,1050,Building Maintenance,To carry out repair to roof al,12,2015,2391,129618,12/02/2015,FPIN,TM ROOFING LTD,
Property Services,1050,Building Maintenance,Roof: to carry out non destruc,12,2015,695,129618,12/02/2015,FPIN,TM ROOFING LTD,
Purchasing & Supply,2024,Cleaning Equipment,Nail Brush Plastic 875Mm,12,2015,6.8,129718,04/02/2015,FPIN,BUNZL CLEANING & HYGIENE SUPPLIES,
Purchasing & Supply,2024,Cleaning Equipment,Twine Mop Head,12,2015,6.45,129718,04/02/2015,FPIN,BUNZL CLEANING & HYGIENE SUPPLIES,
Purchasing & Supply,2024,Cleaning Equipment,Tufanega Lemon Hand Clean 4.5L,12,2015,31.92,129718,04/02/2015,FPIN,BUNZL CLEANING & HYGIENE SUPPLIES,
Purchasing & Supply,2024,Cleaning Equipment,6332 Hair & Body Shower Gel (1,12,2015,89.18,129718,04/02/2015,FPIN,BUNZL CLEANING & HYGIENE SUPPLIES,
Purchasing & Supply,1310,Cleaning products,Descaler Viakal Trig 750Ml ,12,2015,8.6,129718,04/02/2015,FPIN,BUNZL CLEANING & HYGIENE SUPPLIES,
Gloves Rubber H.T. 17000 Volt,B205,Stocks & WIP (Purchasing & Supply Stores),Gloves Rubber H.T. 17000 Volt ,12,2015,272.65,129721,13/02/2015,FPIN,BODDINGTONS ELECTRICAL LTD,
Purchases,B207,Stocks & WIP (Fleet Stores),93555,12,2015,8.6,129722,12/02/2015,FPIN,A T E (UK) LTD,
Purchases,B207,Stocks & WIP (Fleet Stores),93568,12,2015,17.5,129723,13/02/2015,FPIN,A T E (UK) LTD,
Property Services,2903,Consultancy Fees,1314/336 -Mess room/kitchen/ B,12,2015,29.48,129729,13/02/2015,FPIN,INGLETON WOOD,
Not Analysed,B118,Asset Protection,1314/321 Refurbishment of FF d,12,2015,15422.07,129733,16/02/2015,FPIN,M & P DUNN LTD,
Technical Services,2030,Operational Equipment Support,"Dry suit repairs, neck & socks",12,2015,435,129741,22/12/2014,FPIN,S E M S LTD,
Catering,190,Casual and Temporary Staff,Casual and Temporary Staff,12,2015,378,129742,10/02/2015,FPIN,SEARCH RECRUITMENT SERVICES LTD,
Catering,190,Casual and Temporary Staff,Casual and Temporary Staff,12,2015,126.4,129742,10/02/2015,FPIN,SEARCH RECRUITMENT SERVICES LTD,
Catering,190,Casual and Temporary Staff,Casual and Temporary Staff,12,2015,217.35,129742,10/02/2015,FPIN,SEARCH RECRUITMENT SERVICES LTD,
Catering,190,Casual and Temporary Staff,Casual and Temporary Staff,12,2015,454.5,129742,10/02/2015,FPIN,SEARCH RECRUITMENT SERVICES LTD,
Catering,190,Casual and Temporary Staff,Casual and Temporary Staff,12,2015,63,129742,10/02/2015,FPIN,SEARCH RECRUITMENT SERVICES LTD,
Catering,190,Casual and Temporary Staff,Casual and Temporary Staff,12,2015,237,129742,10/02/2015,FPIN,SEARCH RECRUITMENT SERVICES LTD,
Catering,190,Casual and Temporary Staff,Casual and Temporary Staff,12,2015,686.2,129742,10/02/2015,FPIN,SEARCH RECRUITMENT SERVICES LTD,
Catering,190,Casual and Temporary Staff,Casual and Temporary Staff,12,2015,284.4,129742,10/02/2015,FPIN,SEARCH RECRUITMENT SERVICES LTD,
Community Safety,4019,Community Safety,Child Protect,12,2015,-50,129743,13/02/2015,FPIN,SOUTHEND ON SEA BOROUGH COUNCIL,
Community Safety,4019,Community Safety,Child Protection,12,2015,-50,129743,13/02/2015,FPIN,SOUTHEND ON SEA BOROUGH COUNCIL,
Community Safety,4019,Community Safety,Child Protection,12,2015,50,129743,13/02/2015,FPIN,SOUTHEND ON SEA BOROUGH COUNCIL,
Community Safety,4019,Community Safety,Child Protect,12,2015,50,129743,13/02/2015,FPIN,SOUTHEND ON SEA BOROUGH COUNCIL,
Strategic Management Board,4112,Conferences & Seminars,Child Protect,12,2015,50,129743,13/02/2015,FPIN,SOUTHEND ON SEA BOROUGH COUNCIL,
Strategic Management Board,4112,Conferences & Seminars,Child Protection,12,2015,50,129743,13/02/2015,FPIN,SOUTHEND ON SEA BOROUGH COUNCIL,
ICT,2903,Consultancy Fees,Weekend support 31/1 & 1/2/15,12,2015,2870,129753,16/02/2015,FPIN,REMSDAQ LTD,
Not Analysed,B114,Fixed Assets Under Construction ITC Equipment,Weekend support prior to go-li,12,2015,2460,129753,16/02/2015,FPIN,REMSDAQ LTD,
Cleaning Cloth:Rags White 7Lb,B205,Stocks & WIP (Purchasing & Supply Stores),Cleaning Cloth:Rags White 7Lb,12,2015,196.5,129754,12/02/2015,FPIN,S G SHIELDS (BENFLEET) LTD,
Purchases,B207,Stocks & WIP (Fleet Stores),WSD 93538,12,2015,93.03,129756,17/02/2015,FPIN,SUPPLY PLUS LIMITED,
Purchases,B207,Stocks & WIP (Fleet Stores),WSA 93577,12,2015,62.58,129757,17/02/2015,FPIN,SUPPLY PLUS LIMITED,
Operations,4009,Operational Support Costs,Catering for RT Project,12,2015,136,129758,13/02/2015,FPIN,THE SANDWICH MAN,
Emergency Planning & Civil Protection,4111,Subsistence Allowances,Subsistence Allowances,12,2015,41.5,129759,13/02/2015,FPIN,THE SANDWICH MAN,
Training,4111,Subsistence Allowances,Subsistence Allowances,12,2015,47,129759,13/02/2015,FPIN,THE SANDWICH MAN,
"Toner, Magenta for HP CM3530 MFP",B205,Stocks & WIP (Purchasing & Supply Stores),CREDIT FPIN 127494,12,2015,-796.68,129761,18/02/2015,FPIN,XMA LIMITED,
"Toner, Cyan for HP CM3530 MFP",B205,Stocks & WIP (Purchasing & Supply Stores),CREDIT FPIN 127494,12,2015,-265.56,129761,18/02/2015,FPIN,XMA LIMITED,
Toner Black for Laserjet Pro 400,B205,Stocks & WIP (Purchasing & Supply Stores),CREDIT FPIN 127494,12,2015,-248.48,129761,18/02/2015,FPIN,XMA LIMITED,
Technical Services,2030,Operational Equipment Support,BOARDING UP SS9 4HG 16.02.15,12,2015,200.13,129765,16/02/2015,FPIN,KENT BLAXILL & CO LTD,
"Bags, Plastic.  18"" x 24""  (St",B205,Stocks & WIP (Purchasing & Supply Stores),"Bags, Plastic.  18"" x 24""  (St",12,2015,124,129785,17/02/2015,FPIN,PACKAGING FIRST LIMITED,
Bags Plastic 12 X 18  (Stores,B205,Stocks & WIP (Purchasing & Supply Stores),Bags Plastic 12 X 18  (Stores ,12,2015,215.7,129785,17/02/2015,FPIN,PACKAGING FIRST LIMITED,
Chopping Board Polyeth Wh,B205,Stocks & WIP (Purchasing & Supply Stores),Chopping Board Polyeth Wh,12,2015,7.98,129793,13/02/2015,FPIN,NISBETS,
Chopping Board Polyeth Br,B205,Stocks & WIP (Purchasing & Supply Stores),Chopping Board Polyeth Br,12,2015,7.98,129793,13/02/2015,FPIN,NISBETS,
Chopping Board Polyeth Gr,B205,Stocks & WIP (Purchasing & Supply Stores),Chopping Board Polyeth Gr,12,2015,7.98,129793,13/02/2015,FPIN,NISBETS,
Chopping Board Polyeth Re,B205,Stocks & WIP (Purchasing & Supply Stores),Chopping Board Polyeth Re,12,2015,7.98,129793,13/02/2015,FPIN,NISBETS,
Chopping Board Polyeth Ye,B205,Stocks & WIP (Purchasing & Supply Stores),Chopping Board Polyeth Ye,12,2015,7.98,129793,13/02/2015,FPIN,NISBETS,
Chopping Board Polyeth Bl,B205,Stocks & WIP (Purchasing & Supply Stores),Chopping Board Polyeth Bl,12,2015,7.98,129793,13/02/2015,FPIN,NISBETS,
Cup vending 7oz Case of 2000,B205,Stocks & WIP (Purchasing & Supply Stores),Cup vending 7oz ,12,2015,71.97,129793,13/02/2015,FPIN,NISBETS,
Glass drinking 280ml (1/2 pint,B205,Stocks & WIP (Purchasing & Supply Stores),Glass drinking 280ml (1/2 pint,12,2015,17.58,129793,13/02/2015,FPIN,NISBETS,
Knife Table Plain Pk12,B205,Stocks & WIP (Purchasing & Supply Stores),Knife Table Plain Pk12,12,2015,4.98,129793,13/02/2015,FPIN,NISBETS,
Cb466 Mug White 10Oz Pk 12,B205,Stocks & WIP (Purchasing & Supply Stores),CB466 Mug White 10oz Pk 12,12,2015,42.48,129793,13/02/2015,FPIN,NISBETS,
"Plate Plain Wh Wide Rim 10""",B205,Stocks & WIP (Purchasing & Supply Stores),"Plate Plain Wh Wide Rim 10""",12,2015,88.12,129793,13/02/2015,FPIN,NISBETS,
Spoon Desert Plain Pk12,B205,Stocks & WIP (Purchasing & Supply Stores),Spoon Desert Plain Pk12,12,2015,5.45,129793,13/02/2015,FPIN,NISBETS,
Spoon Desert Plain Pk12,B205,Stocks & WIP (Purchasing & Supply Stores),Spoon Tea Plain Pk12,12,2015,2.07,129793,13/02/2015,FPIN,NISBETS,
GLASDON MANUFACTURING LIMITED,B205,Stocks & WIP (Purchasing & Supply Stores),Glass drinking 280ml (1/2 pint,12,2015,17.58,129793,13/02/2015,FPIN,NISBETS,
Miscellaneous,B205,Stocks & WIP (Purchasing & Supply Stores),0,12,2015,15.96,129793,13/02/2015,FPIN,NISBETS,
Miscellaneous,B205,Stocks & WIP (Purchasing & Supply Stores),k576 Pebbled tumber 1pt,12,2015,19.18,129793,13/02/2015,FPIN,NISBETS,
Miscellaneous,B205,Stocks & WIP (Purchasing & Supply Stores),0,12,2015,15.96,129793,13/02/2015,FPIN,NISBETS,
Miscellaneous,B205,Stocks & WIP (Purchasing & Supply Stores),0,12,2015,22.36,129793,13/02/2015,FPIN,NISBETS,
Operations,4110,Travelling Expenses,Travelling Expenses,12,2015,45.4,129796,16/02/2015,FPIN,CAPITA TRAVEL AND EVENTS LTD,
Operations,4110,Travelling Expenses,Travelling Expenses,12,2015,8.5,129796,16/02/2015,FPIN,CAPITA TRAVEL AND EVENTS LTD,
Operations,4110,Travelling Expenses,Travelling Expenses,12,2015,196.6,129796,16/02/2015,FPIN,CAPITA TRAVEL AND EVENTS LTD,
Operations,4110,Travelling Expenses,Travelling Expenses,12,2015,39.4,129796,16/02/2015,FPIN,CAPITA TRAVEL AND EVENTS LTD,
Operations,4110,Travelling Expenses,Travelling Expenses,12,2015,8.5,129796,16/02/2015,FPIN,CAPITA TRAVEL AND EVENTS LTD,
ICT,2510,IT Comms,CHARGES FOR ESSEX FIRE2 SIM,12,2015,72.61,129799,31/01/2015,FPIN,7E COMMUNICATIONS LTD,
ICT,2510,IT Comms,CHARGES FOR ESSEX FIRE1 SIM,12,2015,72.61,129799,31/01/2015,FPIN,7E COMMUNICATIONS LTD,
Property Services,2903,Consultancy Fees,Disbursements,12,2015,250,129800,17/02/2015,FPIN,INGLETON WOOD,
Purchasing & Supply,2012,Office/Admin Equipment (incl copiers),NOV 2014 - JAN 2015,12,2015,397.2,129801,11/02/2015,FPIN,RICOH UK LIMITED (Northampton),
Purchasing & Supply,2012,Office/Admin Equipment (incl copiers),NOV 2014 - JAN 2015,12,2015,16.77,129801,11/02/2015,FPIN,RICOH UK LIMITED (Northampton),
Purchasing & Supply,2012,Office/Admin Equipment (incl copiers),NOV 14 - JAN 15,12,2015,19.41,129802,11/02/2015,FPIN,RICOH UK LIMITED (Northampton),
Purchasing & Supply,2012,Office/Admin Equipment (incl copiers),NOV 14 - JAN 15,12,2015,247.88,129802,11/02/2015,FPIN,RICOH UK LIMITED (Northampton),
ICT,2510,IT Comms,MOBILE CHARGES - JAN,12,2015,96.96,129803,24/01/2015,FPIN,VODAFONE LIMITED,
ICT,4005,IT Consumables,ROC Support - January 2015,12,2015,9241.88,129804,30/01/2015,FPIN,ROC SYSTEMS CONSULTING LTD,
ICT,2510,IT Comms,CHARGES FOR 020 8508 3676,12,2015,59.56,129809,12/02/2015,FPIN,BRITISH TELECOMMUNICATIONS,
Purchases,B207,Stocks & WIP (Fleet Stores),WSD 93401,12,2015,7.57,129810,17/02/2015,FPIN,ALEXANDER DENNIS LTD (PARTS DIVISION),
Purchases,B207,Stocks & WIP (Fleet Stores),WSD 93401,12,2015,8.54,129811,17/02/2015,FPIN,ALEXANDER DENNIS LTD (PARTS DIVISION),
Strategic Management Board,4112,Conferences & Seminars,EXPENSES,12,2015,784.3,129839,18/02/2015,FPIN,MOMENTUM INCORPORATED LTD,
Strategic Management Board,4112,Conferences & Seminars,Travel,12,2015,250,129839,18/02/2015,FPIN,MOMENTUM INCORPORATED LTD,
Strategic Management Board,4112,Conferences & Seminars,EXPENSES,12,2015,-784.3,129839,18/02/2015,FPIN,MOMENTUM INCORPORATED LTD,
Strategic Management Board,4112,Conferences & Seminars,Task Orientated Negotiation Fo,12,2015,-10400,129839,18/02/2015,FPIN,MOMENTUM INCORPORATED LTD,
Strategic Management Board,4112,Conferences & Seminars,Travel,12,2015,-250,129839,18/02/2015,FPIN,MOMENTUM INCORPORATED LTD,
Strategic Management Board,4112,Conferences & Seminars,Task Orientated Negotiation Fo,12,2015,10400,129839,18/02/2015,FPIN,MOMENTUM INCORPORATED LTD,
Training,702,External Training - L&D Panel,External Training - L&D Panel,12,2015,784.3,129839,18/02/2015,FPIN,MOMENTUM INCORPORATED LTD,
Training,702,External Training - L&D Panel,External Training - L&D Panel,12,2015,10400,129839,18/02/2015,FPIN,MOMENTUM INCORPORATED LTD,
Training,702,External Training - L&D Panel,External Training - L&D Panel,12,2015,250,129839,18/02/2015,FPIN,MOMENTUM INCORPORATED LTD,
Human Resources,4016,Recruitment,Recruitment,12,2015,3857,129870,17/01/2015,FPIN,WADDINGTON BROWN LIMITED,
Human Resources,4016,Recruitment,Recruitment,12,2015,2100,129871,17/02/2015,FPIN,WADDINGTON BROWN LIMITED,
Purchases,B207,Stocks & WIP (Fleet Stores),WSD 93401,12,2015,363.26,129931,18/02/2015,FPIN,ALEXANDER DENNIS LTD (PARTS DIVISION),
Property Services,190,Casual and Temporary Staff,Casual and Temporary Staff,12,2015,1104.4,129932,18/02/2015,FPIN,HAYS CONSTRUCTION & PROPERTY,
Property Services,190,Casual and Temporary Staff,Casual and Temporary Staff,12,2015,721.56,129932,18/02/2015,FPIN,HAYS CONSTRUCTION & PROPERTY,
Property Services,2903,Consultancy Fees,1112/267 Phase 2 - Fees for Ma,12,2015,1104.4,129933,18/02/2015,FPIN,HAYS CONSTRUCTION & PROPERTY,
Property Services,2903,Consultancy Fees,Overtime,12,2015,235.6,129933,18/02/2015,FPIN,HAYS CONSTRUCTION & PROPERTY,
Property Services,190,Casual and Temporary Staff,Casual and Temporary Staff,12,2015,1369.43,129934,18/02/2015,FPIN,HAYS CONSTRUCTION & PROPERTY,
Community Safety,4021,Home Safety,CREDIT RE FPIN 128205,12,2015,-142.5,129936,02/02/2015,FPIN,ARCO LTD,
Human Resources,960,Occupational Health,Occupational Health,12,2015,105,129938,01/02/2015,FPIN,THE INJURY CARE CLINICS LTD,
Human Resources,960,Occupational Health,Occupational Health,12,2015,182,129938,01/02/2015,FPIN,THE INJURY CARE CLINICS LTD,
Not Analysed,B112,Fixed Assets Under Construction Land & Buildings,1415/341 Relocation of Stores ,12,2015,6790.84,129940,20/02/2015,FPIN,M & P DUNN LTD,
Catering,190,Casual and Temporary Staff,Casual and Temporary Staff,12,2015,134.64,129941,18/02/2015,FPIN,FIRST CALL EMPLOYMENT LTD,
Property Services,1040,Planned Works,Clacton,12,2015,161,129942,19/02/2015,FPIN,ALTEK CHEMICAL ENGINEERING (2000) LTD,
Property Services,1040,Planned Works,Service workshops,12,2015,304.5,129942,19/02/2015,FPIN,ALTEK CHEMICAL ENGINEERING (2000) LTD,
Property Services,1040,Planned Works,Dovercourt,12,2015,181.5,129942,19/02/2015,FPIN,ALTEK CHEMICAL ENGINEERING (2000) LTD,
Property Services,1040,Planned Works,Clacton,12,2015,161,129942,19/02/2015,FPIN,ALTEK CHEMICAL ENGINEERING (2000) LTD,
Property Services,1040,Planned Works,Service workshops,12,2015,304.5,129942,19/02/2015,FPIN,ALTEK CHEMICAL ENGINEERING (2000) LTD,
Property Services,1040,Planned Works,Dovercourt,12,2015,181.5,129942,19/02/2015,FPIN,ALTEK CHEMICAL ENGINEERING (2000) LTD,
Operations - USAR,2030,Operational Equipment Support,100SANJ21 Monthly charge,12,2015,125.98,129943,16/02/2015,FPIN,AIRWAVE SOLUTIONS LTD,
Operations - USAR,2030,Operational Equipment Support,100SANJ21 SANJ Handheld radio ,12,2015,251.97,129943,16/02/2015,FPIN,AIRWAVE SOLUTIONS LTD,
ICT,2040,IT Support & Maintenance,MONTHLY RENTAL INSTALLMENTS,12,2015,1256.75,129943,16/02/2015,FPIN,AIRWAVE SOLUTIONS LTD,
Corporate Comms,4008,Media Expenses,100SANJ21 Monthly charge,12,2015,125.98,129943,16/02/2015,FPIN,AIRWAVE SOLUTIONS LTD,
ICT,2040,IT Support & Maintenance,Montly Maintenance SanH,12,2015,1101.23,129943,16/02/2015,FPIN,AIRWAVE SOLUTIONS LTD,
Human Resources,4016,Recruitment,Recruitment,12,2015,550,129944,18/02/2015,FPIN,THE HAY GROUP MANAGEMENT LTD,
Human Resources,4016,Recruitment,Recruitment,12,2015,2850,129944,18/02/2015,FPIN,THE HAY GROUP MANAGEMENT LTD,
Corporate Comms,6822,Ceremonies,Carol Concert Venue,12,2015,379.2,129945,17/02/2015,FPIN,CHELMSFORD CATHEDRAL CHAPTER,
Strategic Management Board,4111,Subsistence Allowances,Subsistence Allowances,12,2015,752.53,129949,29/11/2014,FPIN,CAPITA TRAVEL AND EVENTS LTD,
Strategic Management Board,4111,Subsistence Allowances,Subsistence Allowances,12,2015,153.29,129949,29/11/2014,FPIN,CAPITA TRAVEL AND EVENTS LTD,
Strategic Management Board,4111,Subsistence Allowances,Subsistence Allowances,12,2015,6,129950,29/11/2014,FPIN,CAPITA TRAVEL AND EVENTS LTD,
Strategic Management Board,4111,Subsistence Allowances,Subsistence Allowances,12,2015,2,129951,07/11/2014,FPIN,CAPITA TRAVEL AND EVENTS LTD,
Strategic Management Board,4111,Subsistence Allowances,Subsistence Allowances,12,2015,165.93,129952,07/11/2014,FPIN,CAPITA TRAVEL AND EVENTS LTD,
Catering,190,Casual and Temporary Staff,Casual and Temporary Staff,12,2015,63,129955,17/02/2015,FPIN,SEARCH RECRUITMENT SERVICES LTD,
Catering,190,Casual and Temporary Staff,Casual and Temporary Staff,12,2015,126,129955,17/02/2015,FPIN,SEARCH RECRUITMENT SERVICES LTD,
Catering,190,Casual and Temporary Staff,Casual and Temporary Staff,12,2015,51.75,129955,17/02/2015,FPIN,SEARCH RECRUITMENT SERVICES LTD,
Catering,190,Casual and Temporary Staff,Casual and Temporary Staff,12,2015,454.5,129955,17/02/2015,FPIN,SEARCH RECRUITMENT SERVICES LTD,
Catering,190,Casual and Temporary Staff,Casual and Temporary Staff,12,2015,686.2,129955,17/02/2015,FPIN,SEARCH RECRUITMENT SERVICES LTD,
Catering,190,Casual and Temporary Staff,Casual and Temporary Staff,12,2015,142.2,129955,17/02/2015,FPIN,SEARCH RECRUITMENT SERVICES LTD,
Catering,190,Casual and Temporary Staff,Casual and Temporary Staff,12,2015,289.8,129955,17/02/2015,FPIN,SEARCH RECRUITMENT SERVICES LTD,
Catering,190,Casual and Temporary Staff,Casual and Temporary Staff,12,2015,355.5,129955,17/02/2015,FPIN,SEARCH RECRUITMENT SERVICES LTD,
Catering,190,Casual and Temporary Staff,Casual and Temporary Staff,12,2015,77,129955,17/02/2015,FPIN,SEARCH RECRUITMENT SERVICES LTD,
Catering,190,Casual and Temporary Staff,Casual and Temporary Staff,12,2015,378,129955,17/02/2015,FPIN,SEARCH RECRUITMENT SERVICES LTD,
ICT,2040,IT Support & Maintenance,Adobe Creative Cloud for Teams,12,2015,-1116,129959,23/02/2015,FPIN,PHOENIX SOFTWARE LTD,
ICT,2040,IT Support & Maintenance,Adobe Creative Cloud for Teams,12,2015,1116,129959,23/02/2015,FPIN,PHOENIX SOFTWARE LTD,
ICT,B217,Payments in Advance,Adobe Creative Cld Apr15Mar16,12,2015,1116,129959,23/02/2015,FPIN,PHOENIX SOFTWARE LTD,
Property Services,1321,Water Meters,10.11.14 WIVENHOE,12,2015,72.87,129981,29/11/2014,FPIN,VEOLIA WATER CENTRAL LIMITED (TAMBLIN WAY),
Property Services,1321,Water Meters,WIVENHOE FIXED CHG,12,2015,13.5,129981,29/11/2014,FPIN,VEOLIA WATER CENTRAL LIMITED (TAMBLIN WAY),
Property Services,1322,General Services,10.11.14 WIVENHOE,12,2015,61.73,129981,29/11/2014,FPIN,VEOLIA WATER CENTRAL LIMITED (TAMBLIN WAY),
Property Services,1322,General Services,WIVENHOE FIXED CHG,12,2015,72,129981,29/11/2014,FPIN,VEOLIA WATER CENTRAL LIMITED (TAMBLIN WAY),
Purchases,B207,Stocks & WIP (Fleet Stores),WSD93449,12,2015,1360,129982,23/02/2015,FPIN,RANSOME ENGINEERING SERVICES LTD,
Purchases,B207,Stocks & WIP (Fleet Stores),WSD92976,12,2015,61.87,129984,20/02/2015,FPIN,WOODWAY ENGINEERING LTD,
Purchases,B207,Stocks & WIP (Fleet Stores),93556,12,2015,3.9,129985,23/02/2015,FPIN,SOUTH ESSEX FASTENERS LTD,
Technical Services,2032,Operational Equip-Initial Purchase,Rescue 825 PFD Redsize XL/XXL ,12,2015,103.1,129987,23/02/2015,FPIN,PALM EQUIPMENT INTERNATIONAL LIMITED,
Technical Services,2032,Operational Equip-Initial Purchase,Freight Misc,12,2015,8.5,129987,23/02/2015,FPIN,PALM EQUIPMENT INTERNATIONAL LIMITED,
Technical Services,2032,Operational Equip-Initial Purchase,COWTAIL 1,12,2015,8.72,129987,23/02/2015,FPIN,PALM EQUIPMENT INTERNATIONAL LIMITED,
Human Resources,2016,Fitness Equipment,Fitness Equipment Repairs high,12,2015,241.77,129993,20/02/2015,FPIN,SPORTSAFE UK LTD,
Workshops Management,3050,Leasing Charges,Leasing Charges,12,2015,379.07,129995,18/02/2015,FPIN,LEX AUTOLEASE LTD,
Property Services,1050,Building Maintenance,SF01; To repair defective lock,12,2015,48.43,129996,20/02/2015,FPIN,NORMAN DAVID MAINTENANCE,
Purchasing & Supply,4001,Stationery,REPORT FILES PK 25 BLU KF01454,12,2015,4.86,130014,23/02/2015,FPIN,OFFICE IS LIMITED,
Purchasing & Supply,4001,Stationery,REPORT FILES PK 25 RED KF01455,12,2015,4.86,130014,23/02/2015,FPIN,OFFICE IS LIMITED,
Purchasing & Supply,4001,Stationery,IS C4 MAN PLAIN P.S BOX 250 02,12,2015,3.95,130014,23/02/2015,FPIN,OFFICE IS LIMITED,
Purchasing & Supply,4001,Stationery,IS DL WHT PLAIN S/AD 80GSM BX1,12,2015,5.99,130014,23/02/2015,FPIN,OFFICE IS LIMITED,
Purchasing & Supply,4001,Stationery,Q-CONNECT QUICK TAC ADHESIVE P,12,2015,1.34,130014,23/02/2015,FPIN,OFFICE IS LIMITED,
Purchasing & Supply,4001,Stationery,XEROX A4 RECYCLED SUPREME PAPE,12,2015,26,130014,23/02/2015,FPIN,OFFICE IS LIMITED,
Purchasing & Supply,4001,Stationery,Sharpie China Marker Bullet Ti,12,2015,9.58,130014,23/02/2015,FPIN,OFFICE IS LIMITED,
Purchasing & Supply,4001,Stationery,Bic Cristal Medium Ball Point ,12,2015,10.78,130014,23/02/2015,FPIN,OFFICE IS LIMITED,
Purchasing & Supply,4001,Stationery,A4 Clear Punched Pocket Pack 1,12,2015,6.95,130015,23/02/2015,FPIN,OFFICE IS LIMITED,
Purchasing & Supply,4001,Stationery,Self Stick Notes 76X127Mm Yell,12,2015,1.58,130015,23/02/2015,FPIN,OFFICE IS LIMITED,
Purchasing & Supply,4001,Stationery,Pens:Highlighter Yellow,12,2015,1.84,130015,23/02/2015,FPIN,OFFICE IS LIMITED,
Purchasing & Supply,4001,Stationery,A4 80gsm High White Recycled C,12,2015,26,130015,23/02/2015,FPIN,OFFICE IS LIMITED,
Purchasing & Supply,4001,Stationery,"Q-ConneCT Page Marker 1"" Blue",12,2015,2.5,130015,23/02/2015,FPIN,OFFICE IS LIMITED,
Purchasing & Supply,4001,Stationery,Correction Fluid 20Ml,12,2015,1.5,130015,23/02/2015,FPIN,OFFICE IS LIMITED,
Purchasing & Supply,4001,Stationery,Medium Ballpoint Pen Black,12,2015,3.6,130015,23/02/2015,FPIN,OFFICE IS LIMITED,
Property Services,190,Casual and Temporary Staff,Casual and Temporary Staff,12,2015,868.7,130033,11/02/2015,FPIN,HAYS CONSTRUCTION & PROPERTY,
Strategic Management Board,2903,Consultancy Fees,Consultancy services of Nigel ,12,2015,3750,130034,09/02/2015,FPIN,EAST OF ENGLAND LOCAL GOVERNMENT ASSOCIATION,
Strategic Management Board,2903,Consultancy Fees,TRAVEL EXPENSES,12,2015,271.4,130034,09/02/2015,FPIN,EAST OF ENGLAND LOCAL GOVERNMENT ASSOCIATION,
Property Services,190,Casual and Temporary Staff,Casual and Temporary Staff,12,2015,151.2,130035,20/02/2015,FPIN,HAYS CONSTRUCTION & PROPERTY,
Property Services,2903,Consultancy Fees,Mileage,12,2015,14.85,130036,20/02/2015,FPIN,HAYS CONSTRUCTION & PROPERTY,
Property Services,190,Casual and Temporary Staff,Casual and Temporary Staff,12,2015,11.7,130037,20/02/2015,FPIN,HAYS CONSTRUCTION & PROPERTY,
Not Analysed,B113,Fixed Assets Under Construction Vehicles,Chassis & Cab,12,2015,106981,130055,23/02/2015,FPIN,ANGLOCO LTD,
Workshops Management,B217,Payments in Advance,"Installation pump, PTO, drivel",12,2015,24143,130056,23/02/2015,FPIN,ANGLOCO LTD,
Workshops Management,B217,Payments in Advance,Installation of superstructure,12,2015,48161,130057,23/02/2015,FPIN,ANGLOCO LTD,
Purchases,B207,Stocks & WIP (Fleet Stores),WSA93604,12,2015,277.75,130101,24/02/2015,FPIN,ALEXANDER DENNIS LTD (PARTS DIVISION),
Corporate Comms,4008,Media Expenses,Parade News 76,12,2015,100,130104,23/02/2015,FPIN,DESIGN MATTERS,
ICT,2510,IT Comms,PAGER RENTAL FEB-APR,12,2015,234.84,130144,13/01/2015,FPIN,PAGEONE COMMUNICATIONS LTD,
ICT,4005,IT Consumables,Net to Net Migrated Licences (,12,2015,127074.54,130153,17/02/2015,FPIN,ORACLE CORPORATION UK LTD,
ICT,B217,Payments in Advance,Lic Enterprise Ed Feb15-Jan16,12,2015,41830.84,130153,17/02/2015,FPIN,ORACLE CORPORATION UK LTD,
ICT,2040,IT Support & Maintenance,CREDIT FOR UNUSED SUPPORT,12,2015,-3180.15,130153,17/02/2015,FPIN,ORACLE CORPORATION UK LTD,
ICT,2040,IT Support & Maintenance,Net to Net Migrated Licences (,12,2015,41830.84,130153,17/02/2015,FPIN,ORACLE CORPORATION UK LTD,
ICT,2040,IT Support & Maintenance,Net to Net Migrated Licences (,12,2015,-41830.84,130153,17/02/2015,FPIN,ORACLE CORPORATION UK LTD,
Property Services,190,Casual and Temporary Staff,Casual and Temporary Staff,12,2015,89.1,130155,20/02/2015,FPIN,PURSUIT RECRUITMENT LTD,
Property Services,190,Casual and Temporary Staff,Casual and Temporary Staff,12,2015,380.16,130156,20/02/2015,FPIN,PURSUIT RECRUITMENT LTD,
Property Services,190,Casual and Temporary Staff,Casual and Temporary Staff,12,2015,484.11,130157,20/02/2015,FPIN,PURSUIT RECRUITMENT LTD,
Corporate Comms,4008,Media Expenses,Website Maintenance,12,2015,120,130158,25/02/2015,FPIN,PINGALA MEDIA LTD,
Catering,190,Casual and Temporary Staff,Casual and Temporary Staff,12,2015,316.98,130160,25/02/2015,FPIN,KILOFORCE LTD T/A GBN,
Catering,190,Casual and Temporary Staff,Casual and Temporary Staff,12,2015,223,130160,25/02/2015,FPIN,KILOFORCE LTD T/A GBN,
Catering,190,Casual and Temporary Staff,Casual and Temporary Staff,12,2015,-223,130160,25/02/2015,FPIN,KILOFORCE LTD T/A GBN,
Catering,190,Casual and Temporary Staff,Casual and Temporary Staff,12,2015,223,130160,25/02/2015,FPIN,KILOFORCE LTD T/A GBN,
Catering,190,Casual and Temporary Staff,Casual and Temporary Staff,12,2015,239,130161,24/02/2015,FPIN,LYONS (UK) LTD T/A RECRUITMENT SERVICES,
ICT,2510,IT Comms,MOBILE CHARGES - FEB,12,2015,97.98,130162,23/02/2015,FPIN,VODAFONE LIMITED,
WATES CONSTRUCTION,B205,Stocks & WIP (Purchasing & Supply Stores),Water Still Bottle 0.5L 91X24 ,12,2015,645.12,130163,23/02/2015,FPIN,WATER DIRECT MANAGEMENT LIMITED,
Water Still Bottle 0.5L 91X24,B205,Stocks & WIP (Purchasing & Supply Stores),Water Still Bottle 0.5L 91X24 ,12,2015,645.12,130163,23/02/2015,FPIN,WATER DIRECT MANAGEMENT LIMITED,
Property Services,1330,Building Cleaning,Colchester Fire Station,12,2015,1059.44,130164,28/02/2015,FPIN,MONTHIND CLEAN LLP,
Property Services,1330,Building Cleaning,Clacton Fire Station,12,2015,894.13,130164,28/02/2015,FPIN,MONTHIND CLEAN LLP,
Property Services,1330,Building Cleaning,Southend Fire Station,12,2015,884.44,130164,28/02/2015,FPIN,MONTHIND CLEAN LLP,
Property Services,1330,Building Cleaning,Leigh Fire Station,12,2015,774.17,130164,28/02/2015,FPIN,MONTHIND CLEAN LLP,
Property Services,1330,Building Cleaning,Great Baddow Fire Station,12,2015,469.68,130164,28/02/2015,FPIN,MONTHIND CLEAN LLP,
Property Services,1330,Building Cleaning,Rayleigh Weir Fire Station,12,2015,665.92,130164,28/02/2015,FPIN,MONTHIND CLEAN LLP,
Property Services,1330,Building Cleaning,South Woodham Ferrers Fire Sta,12,2015,623.03,130164,28/02/2015,FPIN,MONTHIND CLEAN LLP,
Property Services,1330,Building Cleaning,Chelmsford Fire Station,12,2015,1029.17,130164,28/02/2015,FPIN,MONTHIND CLEAN LLP,
Property Services,1330,Building Cleaning,Harlow Central Fire Station,12,2015,1297.29,130164,28/02/2015,FPIN,MONTHIND CLEAN LLP,
Property Services,1330,Building Cleaning,Waltham Abbey Fire Station,12,2015,597.17,130164,28/02/2015,FPIN,MONTHIND CLEAN LLP,
Property Services,1330,Building Cleaning,"Fleet Workshops
",12,2015,641.48,130164,28/02/2015,FPIN,MONTHIND CLEAN LLP,
Property Services,1330,Building Cleaning,Service Training Centre,12,2015,847.61,130164,28/02/2015,FPIN,MONTHIND CLEAN LLP,
Property Services,1330,Building Cleaning,Dovercourt Fire Station,12,2015,436.41,130164,28/02/2015,FPIN,MONTHIND CLEAN LLP,
Property Services,1330,Building Cleaning,Urban Search & Rescue,12,2015,436.41,130164,28/02/2015,FPIN,MONTHIND CLEAN LLP,
Property Services,1330,Building Cleaning,Southend & Rochford SDP,12,2015,435.99,130164,28/02/2015,FPIN,MONTHIND CLEAN LLP,
Property Services,1330,Building Cleaning,Loughton Fire Station,12,2015,642.12,130164,28/02/2015,FPIN,MONTHIND CLEAN LLP,
Property Services,1330,Building Cleaning,Braintree Fire Station,12,2015,956.96,130164,28/02/2015,FPIN,MONTHIND CLEAN LLP,
Property Services,1330,Building Cleaning,Chelmsford Training Centre,12,2015,538.89,130164,28/02/2015,FPIN,MONTHIND CLEAN LLP,
Training,710,Leadership Development,Leadership Development,12,2015,9425,130165,25/02/2015,FPIN,PREMIER PARTNERSHIP,
Technical Services,2032,Operational Equip-Initial Purchase,Thermal base layer undersuit -,12,2015,25,130167,27/02/2015,FPIN,NORTHERN DIVER INTERNATIONAL LTD,
Technical Services,2032,Operational Equip-Initial Purchase,Glove. 3mm Neoprene/ Kevlar  -,12,2015,12,130167,27/02/2015,FPIN,NORTHERN DIVER INTERNATIONAL LTD,
Technical Services,2032,Operational Equip-Initial Purchase,Freight Misc,12,2015,7.5,130167,27/02/2015,FPIN,NORTHERN DIVER INTERNATIONAL LTD,
Technical Services,2032,Operational Equip-Initial Purchase,"Suit, thermal undersuit - 100g",12,2015,55,130167,27/02/2015,FPIN,NORTHERN DIVER INTERNATIONAL LTD,
Technical Services,2032,Operational Equip-Initial Purchase,Freestyle Safety Boot - State ,12,2015,50,130167,27/02/2015,FPIN,NORTHERN DIVER INTERNATIONAL LTD,
Technical Services,2032,Operational Equip-Initial Purchase,Line. Throwing 20m (J Cudmore ,12,2015,17.5,130167,27/02/2015,FPIN,NORTHERN DIVER INTERNATIONAL LTD,
Technical Services,2032,Operational Equip-Initial Purchase,"Bag, water rescue kit -130L",12,2015,30,130167,27/02/2015,FPIN,NORTHERN DIVER INTERNATIONAL LTD,
Catering,190,Casual and Temporary Staff,Casual and Temporary Staff,12,2015,239,130168,17/02/2015,FPIN,LYONS (UK) LTD T/A RECRUITMENT SERVICES,
Training,2903,Consultancy Fees,Feb-15,12,2015,2800,130169,25/02/2015,FPIN,SVILUPPO,
Human Resources,2903,Consultancy Fees,Feb-15,12,2015,-2800,130169,25/02/2015,FPIN,SVILUPPO,
Human Resources,2903,Consultancy Fees,Feb-15,12,2015,2800,130169,25/02/2015,FPIN,SVILUPPO,
Strategic Management Board,2903,Consultancy Fees,CREDIT RE FPIN 127892,12,2015,-386.88,130170,24/02/2015,FPIN,BAKER TILLY RISK ADVISORY SERVICES LLP,
Strategic Management Board,2903,Consultancy Fees,CREDIT RE FPIN 127892,12,2015,-63.12,130171,25/02/2015,FPIN,BAKER TILLY RISK ADVISORY SERVICES LLP,
Not Analysed,B118,Asset Protection,1213/288B - Window  replacemen,12,2015,3461.57,130172,16/02/2015,FPIN,CONISTON LTD,
Not Analysed,B118,Asset Protection,1213/289.  BA and Drying room ,12,2015,2535.42,130173,19/02/2015,FPIN,T J EVERS LTD,
Not Analysed,B118,Asset Protection,Rochford,12,2015,2233.64,130174,27/02/2015,FPIN,CADMAN CONSTRUCTION LTD,
Not Analysed,B118,Asset Protection,130174 trf 202049000286,12,2015,-2233.64,130174,27/02/2015,FPIN,CADMAN CONSTRUCTION LTD,
Not Analysed,B118,Asset Protection,130174 Rochford ,12,2015,2233.64,130174,27/02/2015,FPIN,CADMAN CONSTRUCTION LTD,
Visiting Cards,B205,Stocks & WIP (Purchasing & Supply Stores),Visiting Cards (Batch of Eight,12,2015,62,130175,09/01/2015,FPIN,THE PRINTING PLACE LIMITED,
Envelope DL Business Reply,B205,Stocks & WIP (Purchasing & Supply Stores),Envelope DL Business Reply (10,12,2015,62,130176,26/01/2015,FPIN,THE PRINTING PLACE LIMITED,
Operations,190,Casual and Temporary Staff,Casual and Temporary Staff,12,2015,538.35,130177,20/02/2015,FPIN,REED SPECIALIST RECRUITMENT LIMITED,
Finance & Pay,190,Casual and Temporary Staff,Casual and Temporary Staff,12,2015,631.22,130178,20/02/2015,FPIN,REED SPECIALIST RECRUITMENT LIMITED,
Finance & Pay,190,Casual and Temporary Staff,Casual and Temporary Staff,12,2015,511.8,130179,20/02/2015,FPIN,REED SPECIALIST RECRUITMENT LIMITED,
Safer Comms Admin,190,Casual and Temporary Staff,Casual and Temporary Staff,12,2015,505.42,130180,20/02/2015,FPIN,REED SPECIALIST RECRUITMENT LIMITED,
Safer Comms Admin,190,Casual and Temporary Staff,Casual and Temporary Staff,12,2015,399.6,130181,20/02/2015,FPIN,REED SPECIALIST RECRUITMENT LIMITED,
Hand control branch,B205,Stocks & WIP (Purchasing & Supply Stores),Hand Control Branch Rosenbaur ,12,2015,1825,130182,27/02/2015,FPIN,ROSENBAUER UK PLC,
Purchasing & Supply,190,Casual and Temporary Staff,Casual and Temporary Staff,12,2015,519,130183,02/03/2015,FPIN,SUCCESS RECRUIT LIMITED,
Purchasing & Supply,190,Casual and Temporary Staff,Casual and Temporary Staff,12,2015,485.1,130184,02/03/2015,FPIN,SUCCESS RECRUIT LIMITED,
Purchasing & Supply,190,Casual and Temporary Staff,Casual and Temporary Staff,12,2015,438.43,130185,02/03/2015,FPIN,SUCCESS RECRUIT LIMITED,
Catering,190,Casual and Temporary Staff,Casual and Temporary Staff,12,2015,-133.8,130186,21/01/2015,FPIN,KILOFORCE LTD T/A GBN,
Catering,190,Casual and Temporary Staff,Casual and Temporary Staff,12,2015,133.8,130186,21/01/2015,FPIN,KILOFORCE LTD T/A GBN,
Catering,190,Casual and Temporary Staff,Casual and Temporary Staff,12,2015,158.49,130186,21/01/2015,FPIN,KILOFORCE LTD T/A GBN,
Catering,190,Casual and Temporary Staff,Casual and Temporary Staff,12,2015,133.8,130186,21/01/2015,FPIN,KILOFORCE LTD T/A GBN,
Not Analysed,B113,Fixed Assets Under Construction Vehicles,CYCLESCHEME,12,2015,1466.61,130187,02/03/2015,FPIN,CYCLESCHEME LTD,
Community Safety,4019,Community Safety,EXPENSES - FEBRUARY,12,2015,166.04,130188,27/02/2015,FPIN,MR PAUL SMITH,
Purchases,B207,Stocks & WIP (Fleet Stores),WSD93553,12,2015,34.34,130189,18/02/2015,FPIN,ERNEST DOE & SONS LTD,
Purchases,B207,Stocks & WIP (Fleet Stores),WSD 93478,12,2015,10.32,130190,18/02/2015,FPIN,ERNEST DOE & SONS LTD,
Purchasing & Supply,2303,Clothing & Footwear,WSD 93579,12,2015,65.3,130191,16/02/2015,FPIN,SIBBONS LTD,
Technical Services,2085,Breathing Apparatus,Replacement compressor control,12,2015,1425.42,130192,26/02/2015,FPIN,REVOLUTION AIR SERVICES LTD,
Technical Services,2085,Breathing Apparatus,Replacement tube / fittings Ai,12,2015,1110,130193,27/02/2015,FPIN,REVOLUTION AIR SERVICES LTD,
Technical Services,2085,Breathing Apparatus,Replacement tube / fittings fo,12,2015,325,130193,27/02/2015,FPIN,REVOLUTION AIR SERVICES LTD,
Technical Services,2085,Breathing Apparatus,Additional isolation valves as,12,2015,400,130193,27/02/2015,FPIN,REVOLUTION AIR SERVICES LTD,
Technical Services,2085,Breathing Apparatus,Provision of vehicle & labour ,12,2015,450,130193,27/02/2015,FPIN,REVOLUTION AIR SERVICES LTD,
Technical Services,2085,Breathing Apparatus,Decommisson & installation of ,12,2015,3450,130193,27/02/2015,FPIN,REVOLUTION AIR SERVICES LTD,
Freight Misc,B205,Stocks & WIP (Purchasing & Supply Stores),Freight Misc,12,2015,7.95,130195,26/02/2015,FPIN,SAFEQUIP LTD,
Life Jacket 275N,B205,Stocks & WIP (Purchasing & Supply Stores),Seafit Advantage 275N automati,12,2015,462,130195,26/02/2015,FPIN,SAFEQUIP LTD,
Property Services,3436,Fuel Pump Maintenance,Replace register as email,12,2015,600,130196,25/02/2015,FPIN,VECTEC LTD,
Property Services,3436,Fuel Pump Maintenance,Derv Pump: to remedy defect fu,12,2015,250,130196,25/02/2015,FPIN,VECTEC LTD,
Property Services,3436,Fuel Pump Maintenance,Derv Pump.  Gauge is out of sy,12,2015,225,130196,25/02/2015,FPIN,VECTEC LTD,
Property Services,3436,Fuel Pump Maintenance,Derv Pump: To investigate defe,12,2015,56.25,130196,25/02/2015,FPIN,VECTEC LTD,
Property Services,3436,Fuel Pump Maintenance,Derv Pump.  Cover to tank is d,12,2015,150,130196,25/02/2015,FPIN,VECTEC LTD,
Purchasing & Supply,2024,Cleaning Equipment,607301 - Al Toolkit,12,2015,44.8,130197,24/02/2015,FPIN,NUMATIC INTERNATIONAL LTD,
Toner Black for Laserjet MFP 575,B205,Stocks & WIP (Purchasing & Supply Stores),CE400X Toner Black HP507X - 11,12,2015,621.2,130198,24/02/2015,FPIN,XMA LIMITED,
ICT,B217,Payments in Advance,Chemdata Subs Apr15-Mar16,12,2015,9140,130199,25/02/2015,FPIN,RICARDO-AEA LTD,
ICT,B217,Payments in Advance,Pocket Chemdata Apr15-Mar16,12,2015,2400,130199,25/02/2015,FPIN,RICARDO-AEA LTD,
ICT,2040,IT Support & Maintenance,Chemdata Subscription Renewal ,12,2015,-9140,130199,25/02/2015,FPIN,RICARDO-AEA LTD,
ICT,2040,IT Support & Maintenance,Pocket Chemdata Subscription R,12,2015,-2400,130199,25/02/2015,FPIN,RICARDO-AEA LTD,
ICT,2040,IT Support & Maintenance,Pocket Chemdata Subscription R,12,2015,2400,130199,25/02/2015,FPIN,RICARDO-AEA LTD,
ICT,2040,IT Support & Maintenance,Chemdata Subscription Renewal ,12,2015,9140,130199,25/02/2015,FPIN,RICARDO-AEA LTD,
Operations,3404,Vehicle Spares,WSD 93655,12,2015,88.52,130200,26/02/2015,FPIN,W F SENATE,
Catering,2017,Canteen Equipment,Investigate Miele G8050 Profes,12,2015,80,130201,26/02/2015,FPIN,WARDS CATERING EQUIPMENT SERVICES,
Property Services,1330,Building Cleaning,Feb-15,12,2015,50,130202,26/02/2015,FPIN,SHRED 4 SECURITY LTD,
Property Services,1330,Building Cleaning,To clear site of confidential ,12,2015,983.35,130202,26/02/2015,FPIN,SHRED 4 SECURITY LTD,
Property Services,1330,Building Cleaning,Feb-15,12,2015,25,130202,26/02/2015,FPIN,SHRED 4 SECURITY LTD,
Training,715,In House Operational Training,In House Operational Training,12,2015,228,130203,12/02/2015,FPIN,AIR PRODUCTS PLC,
ICT,2510,IT Comms,SIMS,12,2015,34.98,130204,17/02/2015,FPIN,HUTCHISON 3G UK LTD,
Property Services,1321,Water Meters,12/02/15 HAWKWELL,12,2015,30.1,130206,17/02/2015,FPIN,ESSEX & SUFFOLK WATER,
Property Services,1321,Water Meters,22/10/14 HAWKWELL,12,2015,22.93,130206,17/02/2015,FPIN,ESSEX & SUFFOLK WATER,
Purchasing & Supply,2024,Cleaning Equipment,Dettol Multi Purpose Surface T,12,2015,10.5,130207,12/02/2015,FPIN,BUNZL CLEANING & HYGIENE SUPPLIES,
Purchasing & Supply,2024,Cleaning Equipment,6663 Scott Performance Hand To,12,2015,110.44,130207,12/02/2015,FPIN,BUNZL CLEANING & HYGIENE SUPPLIES,
Purchasing & Supply,2024,Cleaning Equipment,General Purpose Detergent 5L (,12,2015,10.36,130207,12/02/2015,FPIN,BUNZL CLEANING & HYGIENE SUPPLIES,
Purchasing & Supply,1310,Cleaning products,Bryta Dishwasher Powder 5KG (E,12,2015,22.18,130207,12/02/2015,FPIN,BUNZL CLEANING & HYGIENE SUPPLIES,
Purchasing & Supply,2024,Cleaning Equipment,Stockinette Dishcloth Super Bl,12,2015,2.05,130209,12/02/2015,FPIN,BUNZL CLEANING & HYGIENE SUPPLIES,
Purchasing & Supply,2024,Cleaning Equipment,Dustpan & Brush Set Soft Blue ,12,2015,2.38,130209,12/02/2015,FPIN,BUNZL CLEANING & HYGIENE SUPPLIES,
Purchasing & Supply,2024,Cleaning Equipment,Cleanline Thin Bleach 4.5% 5L ,12,2015,8.82,130209,12/02/2015,FPIN,BUNZL CLEANING & HYGIENE SUPPLIES,
Purchasing & Supply,2024,Cleaning Equipment,Brillo Oven & Grill Foam 500ML,12,2015,11.36,130209,12/02/2015,FPIN,BUNZL CLEANING & HYGIENE SUPPLIES,
Purchasing & Supply,2024,Cleaning Equipment,6663 Scott Performance Hand To,12,2015,138.05,130209,12/02/2015,FPIN,BUNZL CLEANING & HYGIENE SUPPLIES,
Purchasing & Supply,2024,Cleaning Equipment,Cleanline Pine Disinfectant QA,12,2015,8.58,130209,12/02/2015,FPIN,BUNZL CLEANING & HYGIENE SUPPLIES,
Purchasing & Supply,2024,Cleaning Equipment,Cleanline Heavy Duty Degreaser,12,2015,29.52,130209,12/02/2015,FPIN,BUNZL CLEANING & HYGIENE SUPPLIES,
Purchasing & Supply,2024,Cleaning Equipment,8577 Scott Folded Toilet Tissu,12,2015,228,130209,12/02/2015,FPIN,BUNZL CLEANING & HYGIENE SUPPLIES,
Purchasing & Supply,2024,Cleaning Equipment,Rubber Gloves Yellow Medium (P,12,2015,0.74,130209,12/02/2015,FPIN,BUNZL CLEANING & HYGIENE SUPPLIES,
Catering,2017,Canteen Equipment,RB6 Green Hand Scourer 220x150,12,2015,1.13,130209,12/02/2015,FPIN,BUNZL CLEANING & HYGIENE SUPPLIES,
Catering,4130,Hospitality & Entertaining,KP MESSCLUB,12,2015,101.49,130210,19/02/2015,FPIN,BRAKE BROS LTD,
Catering,4130,Hospitality & Entertaining,KP MESSCLUB,12,2015,315.87,130211,23/02/2015,FPIN,BRAKE BROS LTD,
Training,4111,Subsistence Allowances,Subsistence Allowances,12,2015,9.52,130212,16/02/2015,FPIN,DONALD FREESTON,
Training,4111,Subsistence Allowances,Subsistence Allowances,12,2015,2.83,130213,17/02/2015,FPIN,DONALD FREESTON,
Catering,4130,Hospitality & Entertaining,KP MESSCLUB,12,2015,61.92,130214,18/02/2015,FPIN,DONALD FREESTON,
Catering,4130,Hospitality & Entertaining,KP MESSCLUB,12,2015,30.35,130215,19/02/2015,FPIN,DONALD FREESTON,
Catering,4130,Hospitality & Entertaining,KP MESSCLUB,12,2015,69.2,130216,20/02/2015,FPIN,DONALD FREESTON,
Catering,4130,Hospitality & Entertaining,KP MESSCLUB,12,2015,108.85,130217,23/02/2015,FPIN,DONALD FREESTON,
Catering,4130,Hospitality & Entertaining,KP MESSCLUB,12,2015,52.07,130218,24/02/2015,FPIN,DONALD FREESTON,
Catering,4130,Hospitality & Entertaining,KP MESSCLUB,12,2015,45.89,130219,26/02/2015,FPIN,DONALD FREESTON,
Catering,4130,Hospitality & Entertaining,KP MESSCLUB,12,2015,106.75,130220,25/02/2015,FPIN,DONALD FREESTON,
"Safety glasses, Bolle clear lens",B205,Stocks & WIP (Purchasing & Supply Stores),Safety glasses - Bolle CONTPSI,12,2015,499,130221,20/02/2015,FPIN,GMK LIMITED,
Safety glasses Bolle Polorised,B205,Stocks & WIP (Purchasing & Supply Stores),"Safety glasses, polorised, Bol",12,2015,261.1,130221,20/02/2015,FPIN,GMK LIMITED,
GLASGOW CALEDONIAN UNIVERSITY,B205,Stocks & WIP (Purchasing & Supply Stores),Safety glasses - Bolle CONTPSI,12,2015,499,130221,20/02/2015,FPIN,GMK LIMITED,
Property Services,1499,Furniture and Fittings,To supply NB28599 1200x900mm W,12,2015,107.79,130222,20/02/2015,FPIN,BATES OFFICE SERVICES LIMITED,
Property Services,1499,Furniture and Fittings,To supply NB11209 900x600mm Gr,12,2015,105.58,130222,20/02/2015,FPIN,BATES OFFICE SERVICES LIMITED,
Property Services,2903,Consultancy Fees,Carry out survey and report re,12,2015,475,130223,25/02/2015,FPIN,DAVIES BURTON SWEETLOVE LIMITED,
Technical Services,2085,Breathing Apparatus,KEN5555010K - QS 1.2MH Quickse,12,2015,249.98,130226,20/02/2015,FPIN,CROMWELL GROUP (HOLDINGS) LTD,
Property Services,1050,Building Maintenance,To install 2no genie leads to ,12,2015,855.6,130227,26/02/2015,FPIN,C S ELECTRICAL ESSEX LTD,
Purchasing & Supply,2303,Clothing & Footwear,R127 Result Work Guard Lance B,12,2015,131.28,130233,26/02/2015,FPIN,BALLANTYNE EDWARDS LTD,
Emergency Planning & Civil Protection,4009,Operational Support Costs,Polo Shirt Convey Grey Large w,12,2015,81.6,130234,26/02/2015,FPIN,BALLANTYNE EDWARDS LTD,
Emergency Planning & Civil Protection,4009,Operational Support Costs,Origination Charge,12,2015,5,130234,26/02/2015,FPIN,BALLANTYNE EDWARDS LTD,
Emergency Planning & Civil Protection,4009,Operational Support Costs,Polo Shirt Convey Grey Medium ,12,2015,61.2,130234,26/02/2015,FPIN,BALLANTYNE EDWARDS LTD,
Emergency Planning & Civil Protection,4009,Operational Support Costs,Polo Shirt Convey Grey X Large,12,2015,61.2,130234,26/02/2015,FPIN,BALLANTYNE EDWARDS LTD,
Property Services,1050,Building Maintenance,To remedy defect monitor on Ba,12,2015,130.92,130237,26/02/2015,FPIN,BLAKE CONTRACTORS LTD,
Property Services,1050,Building Maintenance,Monitoring installation. ,12,2015,150,130239,26/02/2015,FPIN,BLAKE CONTRACTORS LTD,
Property Services,1050,Building Maintenance,1314/344 Hutton Disposal.  Int,12,2015,200,130239,26/02/2015,FPIN,BLAKE CONTRACTORS LTD,
Human Resources,190,Casual and Temporary Staff,Casual and Temporary Staff,12,2015,444.98,130240,20/02/2015,FPIN,REED SPECIALIST RECRUITMENT LIMITED,
Human Resources,963,Childcare Vouchers,March 2015 Childcare Vouchers,12,2015,7265.66,130241,26/02/2015,FPIN,FIDELITI LIMITED,
Purchasing & Supply,4001,Stationery,5 Star Chart Pin Assorted Cols,12,2015,3.9,130242,28/02/2015,FPIN,OFFICE IS LIMITED,
Purchasing & Supply,4001,Stationery,Banner P/Handle S/Steel Scisso,12,2015,0.15,130242,28/02/2015,FPIN,OFFICE IS LIMITED,
Purchasing & Supply,4001,Stationery,"MEDIUM GLUE STICK 20g
",12,2015,1.17,130242,28/02/2015,FPIN,OFFICE IS LIMITED,
Purchasing & Supply,4001,Stationery,Blu Tack Adhesive ,12,2015,2.68,130242,28/02/2015,FPIN,OFFICE IS LIMITED,
Purchasing & Supply,4001,Stationery,WB Staples 26/6 Pack 5000,12,2015,0.54,130242,28/02/2015,FPIN,OFFICE IS LIMITED,
Purchasing & Supply,4001,Stationery,5 Star Brass Plated Drawing Pi,12,2015,0.42,130242,28/02/2015,FPIN,OFFICE IS LIMITED,
Property Services,1499,Furniture and Fittings,To supply NB28599 1200x900mm W,12,2015,53.89,130243,20/02/2015,FPIN,BATES OFFICE SERVICES LIMITED,
Property Services,1499,Furniture and Fittings,To supply NM427670 Coat Stand ,12,2015,56.2,130243,20/02/2015,FPIN,BATES OFFICE SERVICES LIMITED,
Property Services,1060,Grounds Maintenance,To supply WE23474 Salt Spreade,12,2015,194.83,130243,20/02/2015,FPIN,BATES OFFICE SERVICES LIMITED,
Property Services,1330,Building Cleaning,To supply AL49422 Cigarette Bi,12,2015,96.18,130243,20/02/2015,FPIN,BATES OFFICE SERVICES LIMITED,
Purchasing & Supply,4001,Stationery,Ballpoint Pen Black Medium 960,12,2015,4.8,130244,28/02/2015,FPIN,OFFICE IS LIMITED,
Purchasing & Supply,4001,Stationery,Permanent Marker Bullet Tip Bl,12,2015,5,130244,28/02/2015,FPIN,OFFICE IS LIMITED,
Purchasing & Supply,4001,Stationery,Sharpie China Marker Bullet Ti,12,2015,28.74,130244,28/02/2015,FPIN,OFFICE IS LIMITED,
Human Resources,2903,Consultancy Fees,WTP,12,2015,7600,130245,28/02/2015,FPIN,PETAURUM SOLUTIONS LIMITED,
ICT,2040,IT Support & Maintenance,Contingency Planning Services ,12,2015,1550,130246,17/02/2015,FPIN,AGGREKO UK,
ICT,2040,IT Support & Maintenance,Contingency Planning Services ,12,2015,1550,130247,17/02/2015,FPIN,AGGREKO UK,
Human Resources,2903,Consultancy Fees,Employee Survey,12,2015,8537.5,130248,13/02/2015,FPIN,PEOPLE INSIGHT LIMITED,
Human Resources,2903,Consultancy Fees,Expenses,12,2015,175.5,130248,13/02/2015,FPIN,PEOPLE INSIGHT LIMITED,
Human Resources,2903,Consultancy Fees,Empl Survey (Part II)/Expenses,12,2015,3127.39,130248,13/02/2015,FPIN,PEOPLE INSIGHT LIMITED,
Technical Services,2085,Breathing Apparatus,"31261-03 S-Mask, Small First B",12,2015,380,130249,23/02/2015,FPIN,INTERSPIRO LTD,
Technical Services,2085,Breathing Apparatus,31395-01 Hose Bend Retsictor,12,2015,19.6,130249,23/02/2015,FPIN,INTERSPIRO LTD,
Technical Services,2085,Breathing Apparatus,"95080-14P S-Breathing valve, M",12,2015,730.5,130249,23/02/2015,FPIN,INTERSPIRO LTD,
Technical Services,2085,Breathing Apparatus,"99835-01 Breathing hose, Male ",12,2015,308.5,130249,23/02/2015,FPIN,INTERSPIRO LTD,
Technical Services,2085,Breathing Apparatus,88119-01 90 Degree Connector,12,2015,239.7,130249,23/02/2015,FPIN,INTERSPIRO LTD,
Technical Services,2085,Breathing Apparatus,Freight and Packaging (All as ,12,2015,23.1,130249,23/02/2015,FPIN,INTERSPIRO LTD,
Property Services,190,Casual and Temporary Staff,Casual and Temporary Staff,12,2015,1104.4,130250,25/02/2015,FPIN,HAYS CONSTRUCTION & PROPERTY,
Property Services,190,Casual and Temporary Staff,Casual and Temporary Staff,12,2015,353.44,130250,25/02/2015,FPIN,HAYS CONSTRUCTION & PROPERTY,
Property Services,190,Casual and Temporary Staff,Casual and Temporary Staff,12,2015,176.4,130250,25/02/2015,FPIN,HAYS CONSTRUCTION & PROPERTY,
Property Services,190,Casual and Temporary Staff,Casual and Temporary Staff,12,2015,183.53,130251,25/02/2015,FPIN,HAYS CONSTRUCTION & PROPERTY,
Property Services,2903,Consultancy Fees,1112/267 Phase 2 - Fees,12,2015,1104.4,130252,25/02/2015,FPIN,HAYS CONSTRUCTION & PROPERTY,
Property Services,2903,Consultancy Fees,Mileage,12,2015,12.15,130252,25/02/2015,FPIN,HAYS CONSTRUCTION & PROPERTY,
Toner Black for Laserjet MFP 575,B205,Stocks & WIP (Purchasing & Supply Stores),CE400X Toner Black HP507X - 11,12,2015,372.72,130253,25/02/2015,FPIN,XMA LIMITED,
Water Services,2087,Water Services,HYDRANT 34/749 - HR65803,12,2015,275.3,130254,25/02/2015,FPIN,NORTHUMBRIAN WATER LTD (HYDRANTS),
Water Services,2087,Water Services,HYDRANT 34/2576 - HR65818,12,2015,275.3,130255,25/02/2015,FPIN,NORTHUMBRIAN WATER LTD (HYDRANTS),
Property Services,1321,Water Meters,20.02.15 SAFFRON WALDEN,12,2015,58.58,130256,25/02/2015,FPIN,VEOLIA WATER CENTRAL LIMITED (TAMBLIN WAY),
Property Services,1321,Water Meters,SAFFRON WALDEN FIXED CHG,12,2015,16.72,130256,25/02/2015,FPIN,VEOLIA WATER CENTRAL LIMITED (TAMBLIN WAY),
Property Services,1322,General Services,SAFFRON WALDEN FIXED CHG,12,2015,72,130256,25/02/2015,FPIN,VEOLIA WATER CENTRAL LIMITED (TAMBLIN WAY),
Property Services,1322,General Services,20.02.15 SAFFRON WALDEN,12,2015,25.36,130256,25/02/2015,FPIN,VEOLIA WATER CENTRAL LIMITED (TAMBLIN WAY),
Bag Plastic 24 X 36 (Stores Us,B205,Stocks & WIP (Purchasing & Supply Stores),Bag Plastic 24 X 36 per 1000,12,2015,582.4,130257,24/02/2015,FPIN,PACKAGING FIRST LIMITED,
"Bag Plastic 10"" x 8""",B205,Stocks & WIP (Purchasing & Supply Stores),Poly Bags 14 x 8 for stores us,12,2015,148.4,130258,20/02/2015,FPIN,PACKAGING FIRST LIMITED,
ICT,2510,IT Comms,SMS CHARGES - FEB 2015,12,2015,1255.17,130259,28/02/2015,FPIN,MEDIABURST LTD,
Purchases,B207,Stocks & WIP (Fleet Stores),WSD 93678,12,2015,220.01,130260,28/02/2015,FPIN,RANSOME ENGINEERING SERVICES LTD,
Purchases,B207,Stocks & WIP (Fleet Stores),WSD 93591,12,2015,264.24,130261,28/02/2015,FPIN,RANSOME ENGINEERING SERVICES LTD,
Technical Services,2030,Operational Equipment Support,Driver Glove size 9 (USAR/FI),12,2015,21.66,130262,27/02/2015,FPIN,R S COMPONENTS LTD,
Technical Services,2030,Operational Equipment Support,Driver Glove size 10 (USAR),12,2015,22.32,130262,27/02/2015,FPIN,R S COMPONENTS LTD,
Training shoe mens 12 wide,B205,Stocks & WIP (Purchasing & Supply Stores),Training Shoe Mens UK12.5 wide,12,2015,25.79,130263,28/02/2015,FPIN,NEW BALANCE ATHLETIC SHOES (UK) LTD,
"Training Shoe, womens size 7",B205,Stocks & WIP (Purchasing & Supply Stores),Training shoe womens size 7 - ,12,2015,51.56,130263,28/02/2015,FPIN,NEW BALANCE ATHLETIC SHOES (UK) LTD,
"Training Shoe, mens size 6.5",B205,Stocks & WIP (Purchasing & Supply Stores),"Training shoe, Mens size 6.5,",12,2015,257.9,130263,28/02/2015,FPIN,NEW BALANCE ATHLETIC SHOES (UK) LTD,
"Training Shoe, mens size 8)",B205,Stocks & WIP (Purchasing & Supply Stores),"Training shoe, Mens size 8,",12,2015,515.8,130263,28/02/2015,FPIN,NEW BALANCE ATHLETIC SHOES (UK) LTD,
"Training Shoe, mens size 13",B205,Stocks & WIP (Purchasing & Supply Stores),"Training shoe, Mens size UK13.",12,2015,154.68,130263,28/02/2015,FPIN,NEW BALANCE ATHLETIC SHOES (UK) LTD,
"Training Shoe, mens size 14",B205,Stocks & WIP (Purchasing & Supply Stores),"Training shoe, Mens size UK14.",12,2015,128.95,130263,28/02/2015,FPIN,NEW BALANCE ATHLETIC SHOES (UK) LTD,
"Training Shoe, mens size 9",B205,Stocks & WIP (Purchasing & Supply Stores),"Training shoe, Mens's size 9-",12,2015,1185.88,130263,28/02/2015,FPIN,NEW BALANCE ATHLETIC SHOES (UK) LTD,
"Training Shoe, mens size 9.5",B205,Stocks & WIP (Purchasing & Supply Stores),"Training shoe, Mens size 9.5-",12,2015,257.9,130263,28/02/2015,FPIN,NEW BALANCE ATHLETIC SHOES (UK) LTD,
"Training Shoe, mens size 11",B205,Stocks & WIP (Purchasing & Supply Stores),"Training shoe, Mens size 11- ",12,2015,257.9,130263,28/02/2015,FPIN,NEW BALANCE ATHLETIC SHOES (UK) LTD,
Strategic Management Board,4112,Conferences & Seminars,Reservation for 4 Delegates at,12,2015,1440,130264,25/02/2015,FPIN,LOCAL GOVERNMENT ASSOCIATION,
Human Resources,2016,Fitness Equipment,Replace R/H Pedal Arm on Start,12,2015,95.99,130265,27/02/2015,FPIN,SPORTSAFE UK LTD,
Training,702,External Training - L&D Panel,External Training - L&D Panel,12,2015,508.33,130266,27/02/2015,FPIN,PREMIER TRAINING INTERNATIONAL LTD,
Purchases,B207,Stocks & WIP (Fleet Stores),93490,12,2015,26.97,130267,20/02/2015,FPIN,NBC GROUP,
Purchases,B207,Stocks & WIP (Fleet Stores),93490,12,2015,70.14,130268,20/02/2015,FPIN,NBC GROUP,
Purchases,B207,Stocks & WIP (Fleet Stores),WSD93567,12,2015,10.22,130269,20/02/2015,FPIN,NBC GROUP,
Purchases,B207,Stocks & WIP (Fleet Stores),93567,12,2015,19.3,130270,20/02/2015,FPIN,NBC GROUP,
Purchases,B207,Stocks & WIP (Fleet Stores),WSD93586,12,2015,29.55,130271,20/02/2015,FPIN,NBC GROUP,
Purchases,B207,Stocks & WIP (Fleet Stores),93465,12,2015,29.52,130272,20/02/2015,FPIN,NBC GROUP,
Purchases,B207,Stocks & WIP (Fleet Stores),93517,12,2015,12.96,130273,20/02/2015,FPIN,NBC GROUP,
Purchasing & Supply,4001,Stationery,NO ORDER NUMBER QUOTED,12,2015,316.39,130274,07/02/2015,FPIN,BANNER BUSINESS SERVICES LTD,
Training,4111,Subsistence Allowances,Subsistence Allowances,12,2015,7.84,130275,23/02/2015,FPIN,DONALD FREESTON,
Community Safety,B217,Payments in Advance,Contribution to Essex Countryw,12,2015,25720,130276,10/11/2014,FPIN,ESSEX COUNTY COUNCIL,
Community Safety,4019,Community Safety,Contribution to Essex Countryw,12,2015,25720,130276,10/11/2014,FPIN,ESSEX COUNTY COUNCIL,
Community Safety,4019,Community Safety,Contribution to Essex Countryw,12,2015,-25720,130276,10/11/2014,FPIN,ESSEX COUNTY COUNCIL,
Property Services,1050,Building Maintenance,1314/344.  Hutton Disposal.  T,12,2015,5831,130277,11/02/2015,FPIN,C & W FENCING LTD,
Dividers numbered 1-31,B205,Stocks & WIP (Purchasing & Supply Stores),Dividers number 1-31,12,2015,4.9,130278,18/02/2015,FPIN,BANNER BUSINESS SERVICES LTD,
Ban A4 Pp 4D Pres R/Bind 38 Wh,B205,Stocks & WIP (Purchasing & Supply Stores),Ban A4 Pp 4D Pres R/Bind 38 Wh,12,2015,28.44,130278,18/02/2015,FPIN,BANNER BUSINESS SERVICES LTD,
Catering,2017,Canteen Equipment,Water Cooler Rental 8th Septem,12,2015,630.82,130279,03/09/2014,FPIN,AQUASTATIONS WATER COOLERS LIMITED,
Not Analysed,2903,Consultancy Fees,RE PROP 10273,12,2015,479.39,130280,28/02/2015,FPIN,INGLETON WOOD,
Not Analysed,2903,Consultancy Fees,RE PROP 10273,12,2015,-479.39,130280,28/02/2015,FPIN,INGLETON WOOD,
Property Services,2903,Consultancy Fees,RE PROP 10273,12,2015,479.39,130280,28/02/2015,FPIN,INGLETON WOOD,
ICT,2040,IT Support & Maintenance,Workshops Automatic MOT/Servic,12,2015,200,130281,01/03/2015,FPIN,VOCAL LIMITED,
Purchasing & Supply,2012,Office/Admin Equipment (incl copiers),BOSI1.600.Z00.03M Fast charger,12,2015,24.99,130282,28/02/2015,FPIN,TOOL LINE (SOUTH EAST) LTD,
Technical Services,2030,Operational Equipment Support,DEWDE9503-XJ Battery 18V 2.6AH,12,2015,96.2,130283,28/02/2015,FPIN,TOOL LINE (SOUTH EAST) LTD,
ICT,4005,IT Consumables,623-6643 Combi 32 Electronic S,12,2015,312.78,130284,06/02/2015,FPIN,R S COMPONENTS LTD,
Driver Glove size 9 (USAR),B205,Stocks & WIP (Purchasing & Supply Stores),Driver Glove size 9 (USAR),12,2015,34.65,130285,11/02/2015,FPIN,R S COMPONENTS LTD,
Driver Glove size 10 (USAR),B205,Stocks & WIP (Purchasing & Supply Stores),Driver Glove size 10 (USAR),12,2015,35.35,130285,11/02/2015,FPIN,R S COMPONENTS LTD,
ICT,4005,IT Consumables,623-6643 Combi 32 Electronic S,12,2015,72.18,130286,11/02/2015,FPIN,R S COMPONENTS LTD,
ICT,4005,IT Consumables,"Installation, 2 days to config",12,2015,1900,130287,23/12/2014,FPIN,TENEO LTD,
ICT,2040,IT Support & Maintenance,FortiGate-80C S/N: FGT80C39126,12,2015,433.85,130287,23/12/2014,FPIN,TENEO LTD,
ICT,2040,IT Support & Maintenance,FortiGate-80C S/N: FGT80C39116,12,2015,433.85,130287,23/12/2014,FPIN,TENEO LTD,
Property Services,1330,Building Cleaning,RE FPIN 114333,12,2015,-324.22,130288,29/04/2014,FPIN,CHELMSFORD CITY COUNCIL,
Property Services,1330,Building Cleaning,RE FPIN 114334,12,2015,-312,130289,29/04/2014,FPIN,CHELMSFORD CITY COUNCIL,
Property Services,1330,Building Cleaning,Braintree Fire Station,12,2015,68,130290,09/02/2015,FPIN,PARKVALE SERVICES LTD,
Property Services,1330,Building Cleaning,Fleet Workshops,12,2015,163,130290,09/02/2015,FPIN,PARKVALE SERVICES LTD,
Property Services,1330,Building Cleaning,Window Cleaning - Feb 2015,12,2015,895,130290,09/02/2015,FPIN,PARKVALE SERVICES LTD,
Property Services,1330,Building Cleaning,Waltham Abbey Fire Station,12,2015,51.5,130290,09/02/2015,FPIN,PARKVALE SERVICES LTD,
Property Services,1330,Building Cleaning,Urban Serach & Rescue,12,2015,50,130290,09/02/2015,FPIN,PARKVALE SERVICES LTD,
Property Services,1330,Building Cleaning,Corringham Community Safety Ce,12,2015,51.5,130290,09/02/2015,FPIN,PARKVALE SERVICES LTD,
Property Services,1330,Building Cleaning,Basildon Fire Station,12,2015,60,130290,09/02/2015,FPIN,PARKVALE SERVICES LTD,
Property Services,1330,Building Cleaning,Canvey Island Fire Station,12,2015,46.5,130290,09/02/2015,FPIN,PARKVALE SERVICES LTD,
Property Services,1330,Building Cleaning,Orsett Fire Station,12,2015,81.5,130290,09/02/2015,FPIN,PARKVALE SERVICES LTD,
Property Services,1330,Building Cleaning,Harlow Central Fire Station,12,2015,84.5,130290,09/02/2015,FPIN,PARKVALE SERVICES LTD,
Property Services,1330,Building Cleaning,Ongar Fire Station,12,2015,43.5,130290,09/02/2015,FPIN,PARKVALE SERVICES LTD,
Property Services,1330,Building Cleaning,Loughton Fire Station,12,2015,51.5,130290,09/02/2015,FPIN,PARKVALE SERVICES LTD,
Property Services,1330,Building Cleaning,South Woodham Ferrers Fire Sta,12,2015,37,130290,09/02/2015,FPIN,PARKVALE SERVICES LTD,
Property Services,1330,Building Cleaning,Great Baddow Fire Station,12,2015,51,130290,09/02/2015,FPIN,PARKVALE SERVICES LTD,
Property Services,1330,Building Cleaning,Chelmsford Fire Station,12,2015,64,130290,09/02/2015,FPIN,PARKVALE SERVICES LTD,
Property Services,1330,Building Cleaning,Rayleigh Weir Fire Station,12,2015,81,130290,09/02/2015,FPIN,PARKVALE SERVICES LTD,
Property Services,1330,Building Cleaning,Grays Fire Station,12,2015,80.5,130290,09/02/2015,FPIN,PARKVALE SERVICES LTD,
Property Services,1330,Building Cleaning,Brentwood Fire Station,12,2015,43.5,130290,09/02/2015,FPIN,PARKVALE SERVICES LTD,
Property Services,1330,Building Cleaning,Colchester Fire Station,12,2015,48.5,130290,09/02/2015,FPIN,PARKVALE SERVICES LTD,
Property Services,1330,Building Cleaning,Dovercourt Fire Station,12,2015,60,130290,09/02/2015,FPIN,PARKVALE SERVICES LTD,
Property Services,1330,Building Cleaning,Clacton Fire Station,12,2015,60,130290,09/02/2015,FPIN,PARKVALE SERVICES LTD,
Property Services,1330,Building Cleaning,"Service Traing Centre, Witham ",12,2015,56,130290,09/02/2015,FPIN,PARKVALE SERVICES LTD,
Property Services,1330,Building Cleaning,Southend Fire Station ,12,2015,90,130290,09/02/2015,FPIN,PARKVALE SERVICES LTD,
Property Services,1330,Building Cleaning,Leigh Fire Station,12,2015,51.5,130290,09/02/2015,FPIN,PARKVALE SERVICES LTD,
Strategic Management Board,2903,Consultancy Fees,01/02 - 18/02,12,2015,8452.5,130291,26/02/2015,FPIN,MASON ADVISORY LIMITED,
Strategic Management Board,2903,Consultancy Fees,Mileage,12,2015,674.55,130291,26/02/2015,FPIN,MASON ADVISORY LIMITED,
Strategic Management Board,2903,Consultancy Fees,Expenses,12,2015,547.77,130291,26/02/2015,FPIN,MASON ADVISORY LIMITED,
Training,4111,Subsistence Allowances,Subsistence Allowances,12,2015,92.45,130292,25/02/2015,FPIN,H&J FOODS LTD T/A OLYMPIC FOODS,
Human Resources,960,Occupational Health,Occupational Health,12,2015,250,130293,28/02/2015,FPIN,WORKS WONDERS OCCUPATIONAL HEALTH LTD,
Community Safety,4019,Community Safety,EXPENSES - FEBRUARY,12,2015,147.07,130294,03/03/2015,FPIN,PETER JOHN WHYMAN,
Community Safety,4019,Community Safety,EXPENSES - FEBRUARY,12,2015,64.8,130295,03/03/2015,FPIN,BRIAN WOOD,
Community Safety,4019,Community Safety,EXPENSES - FEBRUARY,12,2015,92.7,130296,04/03/2015,FPIN,MR MICHAEL STOCKLEY,
Catering,4130,Hospitality & Entertaining,KP - MESSCLUB,12,2015,76.14,130297,27/02/2015,FPIN,TYNDALLS BAKERY,
Catering,4130,Hospitality & Entertaining,KP - MESSCLUB,12,2015,153.47,130298,26/02/2015,FPIN,BRAKE BROS LTD,
Catering,4130,Hospitality & Entertaining,CREDIT FPIN 130140,12,2015,-9.06,130299,24/02/2015,FPIN,H&J FOODS LTD T/A OLYMPIC FOODS,
Catering,4130,Hospitality & Entertaining,KP - MESSCLUB,12,2015,86.48,130300,24/02/2015,FPIN,H&J FOODS LTD T/A OLYMPIC FOODS,
Catering,4130,Hospitality & Entertaining,KP - MESSCLUB,12,2015,119.83,130301,02/03/2015,FPIN,H&J FOODS LTD T/A OLYMPIC FOODS,
Catering,4130,Hospitality & Entertaining,KP - MESSCLUB,12,2015,127.3,130302,02/03/2015,FPIN,KENT FROZEN FOODS LIMITED,
Community Safety,4019,Community Safety,EXPENSES FEB 2015,12,2015,197.45,130303,03/03/2015,FPIN,PETER GLOVER,
Community Safety,4019,Community Safety,EXPENSES FEB 2015,12,2015,34.2,130304,03/03/2015,FPIN,AMANDA DODGE,
Community Safety,4019,Community Safety,EXPENSES FEB 2015,12,2015,60.9,130305,04/03/2015,FPIN,M BEALE,
Property Services,1499,Furniture and Fittings,To supply a 20 key keybox with,12,2015,86.95,130306,27/02/2015,FPIN,BRENTWOOD LOCK & SAFE CO LTD,
Property Services,1050,Building Maintenance,Hose reel.  Leaking from drum ,12,2015,107.11,130307,27/02/2015,FPIN,A T B PLUMBING & BUILDING SERVICES LTD,
Property Services,1050,Building Maintenance,Tower.  Wash down hose.  Lever,12,2015,117.66,130308,27/02/2015,FPIN,A T B PLUMBING & BUILDING SERVICES LTD,
Property Services,1050,Building Maintenance,Officers shower. Rail that hol,12,2015,111.88,130309,27/02/2015,FPIN,A T B PLUMBING & BUILDING SERVICES LTD,
Property Services,1050,Building Maintenance,Kitchen upstairs.  Remove hot ,12,2015,157.75,130310,27/02/2015,FPIN,A T B PLUMBING & BUILDING SERVICES LTD,
Property Services,1050,Building Maintenance,Wc.  Far left hand side.  Cons,12,2015,110.28,130311,27/02/2015,FPIN,A T B PLUMBING & BUILDING SERVICES LTD,
Property Services,1050,Building Maintenance,1st floo shower room: To repla,12,2015,110.59,130312,27/02/2015,FPIN,A T B PLUMBING & BUILDING SERVICES LTD,
Property Services,1050,Building Maintenance,Showers.  As discussed,12,2015,731.42,130313,27/02/2015,FPIN,A T B PLUMBING & BUILDING SERVICES LTD,
Property Services,1050,Building Maintenance,Heating Oil Bunded Area.  Pump,12,2015,129,130314,27/02/2015,FPIN,A T B PLUMBING & BUILDING SERVICES LTD,
Not Analysed,B113,Fixed Assets Under Construction Vehicles,"Installation pump, PTO, drivel",12,2015,24143,130315,27/02/2015,FPIN,ANGLOCO LTD,
Workshops Management,B217,Payments in Advance,Chassis & Cab,12,2015,106981,130316,26/02/2015,FPIN,ANGLOCO LTD,
Not Analysed,B116,Fixed Assets Under Construction Operational Equipment,RE FPIN 129795 NON VAT INV,12,2015,-2720,130317,30/01/2015,FPIN,IMMI LIMITED,
Not Analysed,B116,Fixed Assets Under Construction Operational Equipment,F103150 Smartdock: hands free ,12,2015,2720,130318,03/03/2015,FPIN,IMMI LIMITED,
East Area Command,4015,Community Commanders Funds,UKRO Extrication & Trauma Chal,12,2015,111.43,130319,04/03/2015,FPIN,HAMPSHIRE FIRE & RESCUE SERVICE,
East Area Command,B217,Payments in Advance,UKRO Extrication & Trauma Chal,12,2015,111.43,130319,04/03/2015,FPIN,HAMPSHIRE FIRE & RESCUE SERVICE,
East Area Command,4015,Community Commanders Funds,UKRO Extrication & Trauma Chal,12,2015,-111.43,130319,04/03/2015,FPIN,HAMPSHIRE FIRE & RESCUE SERVICE,
Training,B217,Payments in Advance,UKRO Extrication & Trauma Chal,12,2015,83.57,130319,04/03/2015,FPIN,HAMPSHIRE FIRE & RESCUE SERVICE,
Training,702,External Training - L&D Panel,External Training - L&D Panel,12,2015,83.57,130319,04/03/2015,FPIN,HAMPSHIRE FIRE & RESCUE SERVICE,
Training,702,External Training - L&D Panel,External Training - L&D Panel,12,2015,-83.57,130319,04/03/2015,FPIN,HAMPSHIRE FIRE & RESCUE SERVICE,
Purchases,B207,Stocks & WIP (Fleet Stores),WSD 93669,12,2015,8.51,130321,27/02/2015,FPIN,W F SENATE,
Training,4111,Subsistence Allowances,Subsistence Allowances,12,2015,510,130322,02/03/2015,FPIN,SCANIA (GREAT BRITAIN) LTD,
Training,702,External Training - L&D Panel,External Training - L&D Panel,12,2015,1432,130322,02/03/2015,FPIN,SCANIA (GREAT BRITAIN) LTD,
Glass  570Ml (1 Pint) 48,B205,Stocks & WIP (Purchasing & Supply Stores),Glass  450Ml (1 Pint) 12,12,2015,38.36,130323,26/02/2015,FPIN,NISBETS,
Fork Dinner Plain Pk 12 C117,B205,Stocks & WIP (Purchasing & Supply Stores),Fork Dinner Plain Pk 12 ,12,2015,9.73,130323,26/02/2015,FPIN,NISBETS,
Spoon Tea Plain Pk12,B205,Stocks & WIP (Purchasing & Supply Stores),Spoon Tea Plain Pk12,12,2015,5.52,130323,26/02/2015,FPIN,NISBETS,
Glass drinking 280ml (1/2 pint,B205,Stocks & WIP (Purchasing & Supply Stores),Glass drinking 280ml (1/2 pint,12,2015,17.58,130323,26/02/2015,FPIN,NISBETS,
Cb466 Mug White 10Oz Pk 12,B205,Stocks & WIP (Purchasing & Supply Stores),CC203 Mug White 10oz Pk 12,12,2015,84.96,130323,26/02/2015,FPIN,NISBETS,
Knife Table Plain Pk12,B205,Stocks & WIP (Purchasing & Supply Stores),Knife Table Plain Pk12,12,2015,12.45,130323,26/02/2015,FPIN,NISBETS,
Bowl White Pasta/Soup Pk 6,B205,Stocks & WIP (Purchasing & Supply Stores),Bowl White Pasta/Soup Pk 6,12,2015,41.46,130323,26/02/2015,FPIN,NISBETS,
GLASDON MANUFACTURING LIMITED,B205,Stocks & WIP (Purchasing & Supply Stores),Glass drinking 280ml (1/2 pint,12,2015,17.58,130323,26/02/2015,FPIN,NISBETS,
Property Services,190,Casual and Temporary Staff,Casual and Temporary Staff,12,2015,445.5,130325,27/02/2015,FPIN,PURSUIT RECRUITMENT LTD,
Property Services,190,Casual and Temporary Staff,Casual and Temporary Staff,12,2015,98.01,130326,27/02/2015,FPIN,PURSUIT RECRUITMENT LTD,
Property Services,190,Casual and Temporary Staff,Casual and Temporary Staff,12,2015,371.25,130327,27/02/2015,FPIN,PURSUIT RECRUITMENT LTD,
Property Services,1330,Building Cleaning,Daily Cleaning - February 2015,12,2015,3791.26,130328,28/02/2015,FPIN,PARKVALE SERVICES LTD,
Catering,190,Casual and Temporary Staff,Casual and Temporary Staff,12,2015,355.5,130329,24/02/2015,FPIN,SEARCH RECRUITMENT SERVICES LTD,
Catering,190,Casual and Temporary Staff,Casual and Temporary Staff,12,2015,240.9,130329,24/02/2015,FPIN,SEARCH RECRUITMENT SERVICES LTD,
Catering,190,Casual and Temporary Staff,Casual and Temporary Staff,12,2015,315,130329,24/02/2015,FPIN,SEARCH RECRUITMENT SERVICES LTD,
Catering,190,Casual and Temporary Staff,Casual and Temporary Staff,12,2015,63,130329,24/02/2015,FPIN,SEARCH RECRUITMENT SERVICES LTD,
Catering,190,Casual and Temporary Staff,Casual and Temporary Staff,12,2015,362.25,130329,24/02/2015,FPIN,SEARCH RECRUITMENT SERVICES LTD,
Catering,190,Casual and Temporary Staff,Casual and Temporary Staff,12,2015,454.5,130329,24/02/2015,FPIN,SEARCH RECRUITMENT SERVICES LTD,
Catering,190,Casual and Temporary Staff,Casual and Temporary Staff,12,2015,248.2,130329,24/02/2015,FPIN,SEARCH RECRUITMENT SERVICES LTD,
Catering,190,Casual and Temporary Staff,Casual and Temporary Staff,12,2015,213.3,130329,24/02/2015,FPIN,SEARCH RECRUITMENT SERVICES LTD,
Catering,190,Casual and Temporary Staff,Casual and Temporary Staff,12,2015,63.2,130329,24/02/2015,FPIN,SEARCH RECRUITMENT SERVICES LTD,
Catering,190,Casual and Temporary Staff,Casual and Temporary Staff,12,2015,191.2,130330,03/03/2015,FPIN,LYONS (UK) LTD T/A RECRUITMENT SERVICES,
ICT,2510,IT Comms,BT ONE BILL,12,2015,10821.31,130331,22/02/2015,FPIN,BRITISH TELECOMMUNICATIONS,
Property Services,1060,Grounds Maintenance,Grounds Maintenance - February,12,2015,29.69,130332,27/02/2015,FPIN,CONTOUR LANDSCAPES LTD,
Property Services,1060,Grounds Maintenance,Grounds Maintenance - February,12,2015,222.75,130332,27/02/2015,FPIN,CONTOUR LANDSCAPES LTD,
Property Services,1060,Grounds Maintenance,Grounds Maintenance - February,12,2015,225.34,130332,27/02/2015,FPIN,CONTOUR LANDSCAPES LTD,
Property Services,1060,Grounds Maintenance,Grounds Maintenance - February,12,2015,26.5,130332,27/02/2015,FPIN,CONTOUR LANDSCAPES LTD,
ITTP Development,4005,IT Consumables,Training,12,2015,750,130333,30/01/2015,FPIN,CONCERTO SUPPORT SERVICES LTD,
ITTP Development,4005,IT Consumables,Data Transfer and Configuratio,12,2015,2800,130333,30/01/2015,FPIN,CONCERTO SUPPORT SERVICES LTD,
ITTP Development,4005,IT Consumables,Project Management,12,2015,2250,130333,30/01/2015,FPIN,CONCERTO SUPPORT SERVICES LTD,
Human Resources,960,Occupational Health,Occupational Health,12,2015,31,130334,23/02/2015,FPIN,FOCUS AND VISION TECHNOLOGY LTD,
Human Resources,960,Occupational Health,Occupational Health,12,2015,160,130334,23/02/2015,FPIN,FOCUS AND VISION TECHNOLOGY LTD,
Property Services,1050,Building Maintenance,Mess.  Tiles coming off wall i,12,2015,243.75,130335,27/02/2015,FPIN,A T B PLUMBING & BUILDING SERVICES LTD,
Property Services,1050,Building Maintenance,Stn O Room: To replace stained,12,2015,111.13,130336,27/02/2015,FPIN,A T B PLUMBING & BUILDING SERVICES LTD,
Property Services,1050,Building Maintenance,Kitchen.  Split waste pipe to ,12,2015,169.5,130337,27/02/2015,FPIN,A T B PLUMBING & BUILDING SERVICES LTD,
Property Services,1050,Building Maintenance,Top floor. Main bathroom and f,12,2015,1006.78,130338,27/02/2015,FPIN,A T B PLUMBING & BUILDING SERVICES LTD,
Property Services,1050,Building Maintenance,L/H Shower.  To carry out modi,12,2015,1662,130339,27/02/2015,FPIN,A T B PLUMBING & BUILDING SERVICES LTD,
Property Services,1050,Building Maintenance,Ground floor Kitchen: To remed,12,2015,213.16,130340,27/02/2015,FPIN,A T B PLUMBING & BUILDING SERVICES LTD,
Property Services,1050,Building Maintenance,G37: To remedy leaking shower,12,2015,177.61,130341,27/02/2015,FPIN,A T B PLUMBING & BUILDING SERVICES LTD,
Property Services,1050,Building Maintenance,Kitchen.  Tea making boiler.  ,12,2015,110.56,130342,27/02/2015,FPIN,A T B PLUMBING & BUILDING SERVICES LTD,
Property Services,1050,Building Maintenance,Kitchen.  Refix handle to cook,12,2015,30,130342,27/02/2015,FPIN,A T B PLUMBING & BUILDING SERVICES LTD,
Property Services,1050,Building Maintenance,Sub Officers shower room: to r,12,2015,125.82,130343,27/02/2015,FPIN,A T B PLUMBING & BUILDING SERVICES LTD,
Property Services,1050,Building Maintenance,Grd floor cloakroom:To replace,12,2015,143.39,130344,27/02/2015,FPIN,A T B PLUMBING & BUILDING SERVICES LTD,
Property Services,1050,Building Maintenance,Toilets:  to remedy faults wit,12,2015,124.75,130345,27/02/2015,FPIN,A T B PLUMBING & BUILDING SERVICES LTD,
Property Services,1050,Building Maintenance,Sub Officer's Room.  Faulty ho,12,2015,95.78,130346,27/02/2015,FPIN,A T B PLUMBING & BUILDING SERVICES LTD,
Property Services,1050,Building Maintenance,G41.  Water flow varies throug,12,2015,306.01,130347,27/02/2015,FPIN,A T B PLUMBING & BUILDING SERVICES LTD,
Property Services,1050,Building Maintenance,Shower room F9.  Leaking tap. ,12,2015,82.46,130348,02/03/2015,FPIN,A T B PLUMBING & BUILDING SERVICES LTD,
Property Services,1050,Building Maintenance,Kitchen: To remedy leak from H,12,2015,53.75,130349,02/03/2015,FPIN,A T B PLUMBING & BUILDING SERVICES LTD,
Property Services,1050,Building Maintenance,Cloakroom: To remedy dripping ,12,2015,93.56,130350,02/03/2015,FPIN,A T B PLUMBING & BUILDING SERVICES LTD,
Property Services,1050,Building Maintenance,Exterior Step outside green do,12,2015,103.25,130351,02/03/2015,FPIN,A T B PLUMBING & BUILDING SERVICES LTD,
Property Services,1050,Building Maintenance,Shower Cubicle.  4no tiles fal,12,2015,86,130352,02/03/2015,FPIN,A T B PLUMBING & BUILDING SERVICES LTD,
Property Services,1050,Building Maintenance,"To drain down tanks, fit dusk ",12,2015,232.39,130353,02/03/2015,FPIN,A T B PLUMBING & BUILDING SERVICES LTD,
Property Services,1050,Building Maintenance,Water Chiller.  Muster Area.  ,12,2015,93.56,130354,02/03/2015,FPIN,A T B PLUMBING & BUILDING SERVICES LTD,
Property Services,1050,Building Maintenance,Control Showers. Descale 2no s,12,2015,46.77,130354,02/03/2015,FPIN,A T B PLUMBING & BUILDING SERVICES LTD,
Property Services,1050,Building Maintenance,Disabled WC. Unblock Muster ar,12,2015,46.77,130354,02/03/2015,FPIN,A T B PLUMBING & BUILDING SERVICES LTD,
Property Services,1050,Building Maintenance,First Floor WC's.  2no constan,12,2015,119,130355,02/03/2015,FPIN,A T B PLUMBING & BUILDING SERVICES LTD,
Property Services,1050,Building Maintenance,Muster are tea point: To repla,12,2015,161.38,130356,02/03/2015,FPIN,A T B PLUMBING & BUILDING SERVICES LTD,
Property Services,1050,Building Maintenance,Bathroom/Kitchen.  Water leaki,12,2015,201.49,130357,02/03/2015,FPIN,A T B PLUMBING & BUILDING SERVICES LTD,
Property Services,1050,Building Maintenance,Wash Down Hose.  Leaking at jo,12,2015,149.28,130358,02/03/2015,FPIN,A T B PLUMBING & BUILDING SERVICES LTD,
Workshops Management,3201,Petrol and Diesel,Petrol and Diesel,12,2015,-5942.24,130359,28/02/2015,FPIN,ALLSTAR BUSINESS SOLUTIONS LTD,
Workshops Management,3201,Petrol and Diesel,Petrol and Diesel,12,2015,5942.24,130359,28/02/2015,FPIN,ALLSTAR BUSINESS SOLUTIONS LTD,
Community Safety,4019,Community Safety,Telescopic shears,12,2015,37.4,130360,30/11/2014,FPIN,F G LANG ( GRAYS ) LTD,
"Blade bowsaw 30""",B205,Stocks & WIP (Purchasing & Supply Stores),"Blade - Bowsaw 30""",12,2015,64,130360,30/11/2014,FPIN,F G LANG ( GRAYS ) LTD,
WD40.Aerosole Spray.,B205,Stocks & WIP (Purchasing & Supply Stores),WD40 Aerosol Spray          45,12,2015,105.12,130360,30/11/2014,FPIN,F G LANG ( GRAYS ) LTD,
Purchasing & Supply,190,Casual and Temporary Staff,Casual and Temporary Staff,12,2015,178.35,130361,05/01/2015,FPIN,A & J RECRUITMENT LTD,
Property Services,1050,Building Maintenance,Middle Disabled WC.  Defective,12,2015,102.42,130362,02/03/2015,FPIN,A T B PLUMBING & BUILDING SERVICES LTD,
Property Services,1050,Building Maintenance,Kitchen: Water boiler leaking ,12,2015,96.75,130363,02/03/2015,FPIN,A T B PLUMBING & BUILDING SERVICES LTD,
Property Services,1050,Building Maintenance,Mess room and control kitchen:,12,2015,146.25,130364,02/03/2015,FPIN,A T B PLUMBING & BUILDING SERVICES LTD,
Property Services,1050,Building Maintenance,Roof of Phase 2.  Fit mesh lea,12,2015,157.36,130365,02/03/2015,FPIN,A T B PLUMBING & BUILDING SERVICES LTD,
Property Services,1050,Building Maintenance,Ground Floor Glass house.  Wat,12,2015,97.5,130366,02/03/2015,FPIN,A T B PLUMBING & BUILDING SERVICES LTD,
Property Services,1050,Building Maintenance,First Floor.  WC flush loose a,12,2015,149.19,130367,02/03/2015,FPIN,A T B PLUMBING & BUILDING SERVICES LTD,
Property Services,1050,Building Maintenance,Kitchen.  Check pipework to di,12,2015,86,130368,02/03/2015,FPIN,A T B PLUMBING & BUILDING SERVICES LTD,
Property Services,1050,Building Maintenance,BA Chamber.  Water leaking cau,12,2015,172,130369,02/03/2015,FPIN,A T B PLUMBING & BUILDING SERVICES LTD,
Property Services,1050,Building Maintenance,Bathroom: To repair defective ,12,2015,182.39,130370,02/03/2015,FPIN,A T B PLUMBING & BUILDING SERVICES LTD,
Property Services,1050,Building Maintenance,Cleaning room: To repair leaki,12,2015,86,130371,02/03/2015,FPIN,A T B PLUMBING & BUILDING SERVICES LTD,
Property Services,1050,Building Maintenance,LFF Room.  Flush handle broken,12,2015,55.28,130372,02/03/2015,FPIN,A T B PLUMBING & BUILDING SERVICES LTD,
Property Services,1050,Building Maintenance,LFF room. Defective cold tap.,12,2015,55.28,130372,02/03/2015,FPIN,A T B PLUMBING & BUILDING SERVICES LTD,
Property Services,1040,Planned Works,To supply and fit cleaners sin,12,2015,1142.4,130373,02/03/2015,FPIN,A T B PLUMBING & BUILDING SERVICES LTD,
Training,4111,Subsistence Allowances,Subsistence Allowances,12,2015,5.25,130374,27/02/2015,FPIN,TYNDALLS BAKERY,
Training,4111,Subsistence Allowances,Subsistence Allowances,12,2015,5.82,130375,03/03/2015,FPIN,DONALD FREESTON,
Toner Yellow for Laserjet MFP 575,B205,Stocks & WIP (Purchasing & Supply Stores),CE402A Yellow Toner HP507A - 6,12,2015,398.34,130376,27/02/2015,FPIN,XMA LIMITED,
Toner Magenta for Laserjet MFP 575,B205,Stocks & WIP (Purchasing & Supply Stores),CE403A Magenta Toner HP507A - ,12,2015,265.56,130376,27/02/2015,FPIN,XMA LIMITED,
Cartridge C4907A Cyan,B205,Stocks & WIP (Purchasing & Supply Stores),HP940XL Cartridge C4907A Cyan,12,2015,21.02,130376,27/02/2015,FPIN,XMA LIMITED,
Cartridge C4908A Magenta,B205,Stocks & WIP (Purchasing & Supply Stores),HP 940XL Cartridge C4908A Mage,12,2015,21.02,130376,27/02/2015,FPIN,XMA LIMITED,
Cartridge C4909A Yellow,B205,Stocks & WIP (Purchasing & Supply Stores),HP 940XL Cartridge C4909A Yell,12,2015,21.02,130376,27/02/2015,FPIN,XMA LIMITED,
"Toner, Cyan for HP CM3530 MFP",B205,Stocks & WIP (Purchasing & Supply Stores),"Toner, Cyan, CE251A",12,2015,153.55,130376,27/02/2015,FPIN,XMA LIMITED,
"Toner, Yellow for HP CM3530 MFP",B205,Stocks & WIP (Purchasing & Supply Stores),"Toner cartridge, yellow, CE252",12,2015,153.55,130376,27/02/2015,FPIN,XMA LIMITED,
"Toner, black for HP CM3530 MFP",B205,Stocks & WIP (Purchasing & Supply Stores),"Black toner cartridge, CE250X",12,2015,113.33,130376,27/02/2015,FPIN,XMA LIMITED,
Property Services,190,Casual and Temporary Staff,Casual and Temporary Staff,12,2015,977,130377,28/02/2015,FPIN,OAKPARK SECURITY SYSTEMS LIMITED,
Purchasing & Supply,1310,Cleaning products,Bryta Dishwasher Powder 5KG (E,12,2015,77.63,130379,20/02/2015,FPIN,BUNZL CLEANING & HYGIENE SUPPLIES,
Purchasing & Supply,1310,Cleaning products,Builders Bucket Heavy Duty Bla,12,2015,8.85,130379,20/02/2015,FPIN,BUNZL CLEANING & HYGIENE SUPPLIES,
Purchasing & Supply,1310,Cleaning products,Cleanline Rinse Aid 5L (EA) 80,12,2015,31.8,130379,20/02/2015,FPIN,BUNZL CLEANING & HYGIENE SUPPLIES,
Catering,2017,Canteen Equipment,RB6 Green Hand Scourer 220x150,12,2015,5.65,130379,20/02/2015,FPIN,BUNZL CLEANING & HYGIENE SUPPLIES,
Catering,2017,Canteen Equipment,Brillo Soap Pads Extra Large (,12,2015,15.1,130379,20/02/2015,FPIN,BUNZL CLEANING & HYGIENE SUPPLIES,
Purchasing & Supply,2024,Cleaning Equipment,White Tea Towel 50X40CM (EA) T,12,2015,4.9,130379,20/02/2015,FPIN,BUNZL CLEANING & HYGIENE SUPPLIES,
Purchasing & Supply,2024,Cleaning Equipment,Yard Broom Bassine 13/33CM (EA,12,2015,9.55,130379,20/02/2015,FPIN,BUNZL CLEANING & HYGIENE SUPPLIES,
Purchasing & Supply,2024,Cleaning Equipment,Enclosed Toilet Brush Angled &,12,2015,7.4,130379,20/02/2015,FPIN,BUNZL CLEANING & HYGIENE SUPPLIES,
Purchasing & Supply,2024,Cleaning Equipment,Mop Bucket Galvanised Standard,12,2015,35.9,130379,20/02/2015,FPIN,BUNZL CLEANING & HYGIENE SUPPLIES,
Purchasing & Supply,2024,Cleaning Equipment,Greenline Plus Hard Surface Cl,12,2015,16.24,130379,20/02/2015,FPIN,BUNZL CLEANING & HYGIENE SUPPLIES,
Purchasing & Supply,2024,Cleaning Equipment,Cleanline Pine Disinfectant QA,12,2015,5.72,130379,20/02/2015,FPIN,BUNZL CLEANING & HYGIENE SUPPLIES,
Purchasing & Supply,2024,Cleaning Equipment,Cleanline Thin Bleach 4.5% 5L ,12,2015,8.82,130379,20/02/2015,FPIN,BUNZL CLEANING & HYGIENE SUPPLIES,
Purchasing & Supply,2024,Cleaning Equipment,Broomhead Soft Natural Coco 12,12,2015,5.65,130379,20/02/2015,FPIN,BUNZL CLEANING & HYGIENE SUPPLIES,
Purchasing & Supply,2024,Cleaning Equipment,Dish Washing Brush Plastic Sma,12,2015,1.9,130379,20/02/2015,FPIN,BUNZL CLEANING & HYGIENE SUPPLIES,
Purchasing & Supply,2024,Cleaning Equipment,Cleanline Lavender Polish Aero,12,2015,4.32,130379,20/02/2015,FPIN,BUNZL CLEANING & HYGIENE SUPPLIES,
Purchasing & Supply,2024,Cleaning Equipment,6663 Scott Performance Hand To,12,2015,662.64,130379,20/02/2015,FPIN,BUNZL CLEANING & HYGIENE SUPPLIES,
Purchasing & Supply,2024,Cleaning Equipment,Rubber Gloves Yellow Medium (P,12,2015,4.07,130379,20/02/2015,FPIN,BUNZL CLEANING & HYGIENE SUPPLIES,
Purchasing & Supply,2024,Cleaning Equipment,J Cloths Red Medium (PK 50) 74,12,2015,15.4,130379,20/02/2015,FPIN,BUNZL CLEANING & HYGIENE SUPPLIES,
Purchasing & Supply,2024,Cleaning Equipment,Aluminium Mop Handle Yellow Ha,12,2015,22.5,130379,20/02/2015,FPIN,BUNZL CLEANING & HYGIENE SUPPLIES,
Purchasing & Supply,2024,Cleaning Equipment,General Purpose Detergent 5L (,12,2015,20.72,130379,20/02/2015,FPIN,BUNZL CLEANING & HYGIENE SUPPLIES,
Purchasing & Supply,2024,Cleaning Equipment,Dettol Multi Purpose Surface T,12,2015,7,130379,20/02/2015,FPIN,BUNZL CLEANING & HYGIENE SUPPLIES,
Purchasing & Supply,2024,Cleaning Equipment,Lifeguard 3 Way Toilet Cleaner,12,2015,12.24,130379,20/02/2015,FPIN,BUNZL CLEANING & HYGIENE SUPPLIES,
Purchasing & Supply,2024,Cleaning Equipment,Cleanline Heavy Duty Degreaser,12,2015,19.68,130379,20/02/2015,FPIN,BUNZL CLEANING & HYGIENE SUPPLIES,
Purchasing & Supply,2024,Cleaning Equipment,Endbac Cleaner Sanitiser Powde,12,2015,15.44,130379,20/02/2015,FPIN,BUNZL CLEANING & HYGIENE SUPPLIES,
Purchasing & Supply,2024,Cleaning Equipment,Shades Air Fresh Summer Flower,12,2015,11.96,130379,20/02/2015,FPIN,BUNZL CLEANING & HYGIENE SUPPLIES,
Not Analysed,B118,Asset Protection,1314/336.   Refurbishment of k,12,2015,46358.51,130380,02/03/2015,FPIN,MILLANE CONTRACT SERVICES,
Purchasing & Supply,1310,Cleaning products,Cleanline Rinse Aid 5L (EA) 80,12,2015,7.95,130381,18/02/2015,FPIN,BUNZL CLEANING & HYGIENE SUPPLIES,
Purchasing & Supply,1310,Cleaning products,Bryta Dishwasher Powder 5KG (E,12,2015,22.18,130381,18/02/2015,FPIN,BUNZL CLEANING & HYGIENE SUPPLIES,
Purchasing & Supply,1310,Cleaning products,Builders Bucket Heavy Duty Bla,12,2015,3.54,130381,18/02/2015,FPIN,BUNZL CLEANING & HYGIENE SUPPLIES,
Purchasing & Supply,2024,Cleaning Equipment,Window Cleaner With Trigger 50,12,2015,3.9,130381,18/02/2015,FPIN,BUNZL CLEANING & HYGIENE SUPPLIES,
Purchasing & Supply,2024,Cleaning Equipment,Yard Broom Bassine 13/33CM (EA,12,2015,5.73,130381,18/02/2015,FPIN,BUNZL CLEANING & HYGIENE SUPPLIES,
Purchasing & Supply,2024,Cleaning Equipment,Broomhead Soft Coco 24 (EA) H1,12,2015,4.96,130381,18/02/2015,FPIN,BUNZL CLEANING & HYGIENE SUPPLIES,
Purchasing & Supply,2024,Cleaning Equipment,Soft PVC Hand Brush Green 6.75,12,2015,1.58,130381,18/02/2015,FPIN,BUNZL CLEANING & HYGIENE SUPPLIES,
Purchasing & Supply,2303,Clothing & Footwear,Shoe Brush Applier 4 (EA) 157B,12,2015,5.76,130381,18/02/2015,FPIN,BUNZL CLEANING & HYGIENE SUPPLIES,
Purchasing & Supply,2303,Clothing & Footwear,Shoe Polishing Brush 7 (EA) 11,12,2015,10.72,130381,18/02/2015,FPIN,BUNZL CLEANING & HYGIENE SUPPLIES,
Purchasing & Supply,2024,Cleaning Equipment,Plastic Floor Squeegee Red 600,12,2015,10.57,130381,18/02/2015,FPIN,BUNZL CLEANING & HYGIENE SUPPLIES,
Purchasing & Supply,2024,Cleaning Equipment,Aluminium Mop Handle Yellow Ha,12,2015,13.5,130381,18/02/2015,FPIN,BUNZL CLEANING & HYGIENE SUPPLIES,
Purchasing & Supply,2024,Cleaning Equipment,Wash Leather 2 Foot Square (EA,12,2015,10.72,130381,18/02/2015,FPIN,BUNZL CLEANING & HYGIENE SUPPLIES,
Purchasing & Supply,2024,Cleaning Equipment,General Purpose Detergent 5L (,12,2015,15.54,130381,18/02/2015,FPIN,BUNZL CLEANING & HYGIENE SUPPLIES,
Purchasing & Supply,2024,Cleaning Equipment,Dettol Multi Purpose Surface T,12,2015,7,130381,18/02/2015,FPIN,BUNZL CLEANING & HYGIENE SUPPLIES,
Purchasing & Supply,2024,Cleaning Equipment,Handle Pine 60x1 1/8 (EA) 15.1,12,2015,5.4,130381,18/02/2015,FPIN,BUNZL CLEANING & HYGIENE SUPPLIES,
Purchasing & Supply,2024,Cleaning Equipment,Jumbo Sponge (EA) CS00000P,12,2015,4.7,130381,18/02/2015,FPIN,BUNZL CLEANING & HYGIENE SUPPLIES,
Purchasing & Supply,2024,Cleaning Equipment,White Tea Towel 50X40CM (EA) T,12,2015,9.8,130381,18/02/2015,FPIN,BUNZL CLEANING & HYGIENE SUPPLIES,
Purchasing & Supply,2024,Cleaning Equipment,Broomhead Soft Coco 12/30CM (E,12,2015,1.18,130381,18/02/2015,FPIN,BUNZL CLEANING & HYGIENE SUPPLIES,
Purchasing & Supply,2024,Cleaning Equipment,Cleanline Heavy Duty Degreaser,12,2015,4.92,130381,18/02/2015,FPIN,BUNZL CLEANING & HYGIENE SUPPLIES,
Purchasing & Supply,2024,Cleaning Equipment,Rubber Gloves Yellow Medium (P,12,2015,0.37,130381,18/02/2015,FPIN,BUNZL CLEANING & HYGIENE SUPPLIES,
Human Resources,4016,Recruitment,Recruitment,12,2015,3850,130382,26/02/2014,FPIN,WADDINGTON BROWN LIMITED,
Human Resources,4016,Recruitment,Recruitment,12,2015,990.85,130383,03/03/2015,FPIN,WADDINGTON BROWN LIMITED,
Purchasing & Supply,1310,Cleaning products,Bryta Dishwasher Powder 5KG (E,12,2015,11.09,130384,23/02/2015,FPIN,BUNZL CLEANING & HYGIENE SUPPLIES,
Purchasing & Supply,2024,Cleaning Equipment,Greenline Plus Hard Surface Cl,12,2015,16.24,130384,23/02/2015,FPIN,BUNZL CLEANING & HYGIENE SUPPLIES,
Purchasing & Supply,2024,Cleaning Equipment,Cleanline Thin Bleach 4.5% 5L ,12,2015,2.94,130384,23/02/2015,FPIN,BUNZL CLEANING & HYGIENE SUPPLIES,
Purchasing & Supply,2024,Cleaning Equipment,Stockinette Dishcloth Super Bl,12,2015,12.3,130384,23/02/2015,FPIN,BUNZL CLEANING & HYGIENE SUPPLIES,
Purchasing & Supply,2024,Cleaning Equipment,Milton Disinfecting Liquid 5L ,12,2015,10.15,130384,23/02/2015,FPIN,BUNZL CLEANING & HYGIENE SUPPLIES,
Catering,2017,Canteen Equipment,RB6 Green Hand Scourer 220x150,12,2015,5.65,130384,23/02/2015,FPIN,BUNZL CLEANING & HYGIENE SUPPLIES,
Purchasing & Supply,2024,Cleaning Equipment,Stockinette Roll Heavy 800G (E,12,2015,3,130385,18/02/2015,FPIN,BUNZL CLEANING & HYGIENE SUPPLIES,
Purchasing & Supply,2024,Cleaning Equipment,Floorline Caution Sign Plastic,12,2015,82.2,130385,18/02/2015,FPIN,BUNZL CLEANING & HYGIENE SUPPLIES,
Purchasing & Supply,2024,Cleaning Equipment,General Purpose Detergent 5L (,12,2015,10.36,130385,18/02/2015,FPIN,BUNZL CLEANING & HYGIENE SUPPLIES,
Purchasing & Supply,2024,Cleaning Equipment,Dettol Multi Purpose Surface T,12,2015,7,130385,18/02/2015,FPIN,BUNZL CLEANING & HYGIENE SUPPLIES,
Purchasing & Supply,2024,Cleaning Equipment,Jumbo Sponge (EA) CS00000P,12,2015,9.4,130386,19/02/2015,FPIN,BUNZL CLEANING & HYGIENE SUPPLIES,
Purchasing & Supply,2024,Cleaning Equipment,General Purpose Detergent 5L (,12,2015,15.54,130386,19/02/2015,FPIN,BUNZL CLEANING & HYGIENE SUPPLIES,
Purchasing & Supply,2024,Cleaning Equipment,Dettol Multi Purpose Surface T,12,2015,10.5,130386,19/02/2015,FPIN,BUNZL CLEANING & HYGIENE SUPPLIES,
Purchasing & Supply,2024,Cleaning Equipment,Cleanline Pine Disinfectant QA,12,2015,2.86,130386,19/02/2015,FPIN,BUNZL CLEANING & HYGIENE SUPPLIES,
Purchasing & Supply,2024,Cleaning Equipment,Cleanline Thin Bleach 4.5% 5L ,12,2015,2.94,130386,19/02/2015,FPIN,BUNZL CLEANING & HYGIENE SUPPLIES,
Purchasing & Supply,2024,Cleaning Equipment,8577 Scott Folded Toilet Tissu,12,2015,91.2,130386,19/02/2015,FPIN,BUNZL CLEANING & HYGIENE SUPPLIES,
ICT,4005,IT Consumables,CN03131 Plastic hood for 25 wa,12,2015,6.9,130387,27/02/2015,FPIN,CPC,
Property Services,1499,Furniture and Fittings,To supply NB28599 1200x900mm W,12,2015,53.89,130388,28/02/2015,FPIN,BATES OFFICE SERVICES LIMITED,
Banner A4 Rld Wire Notebook,B205,Stocks & WIP (Purchasing & Supply Stores),Banner A4 Rld Wire Notebook,12,2015,16.7,130389,21/02/2015,FPIN,BANNER BUSINESS SERVICES LTD,
Ban Lsr Lbl 99.1x38.1mm 14/S Wh,B205,Stocks & WIP (Purchasing & Supply Stores),Ban Lsr Lbl 99.1x38.1mm 14/S W,12,2015,4.3,130389,21/02/2015,FPIN,BANNER BUSINESS SERVICES LTD,
Ban Lsr Lbl 63.5X38.1 21/S Wh,B205,Stocks & WIP (Purchasing & Supply Stores),Ban Lsr Lbl 63.5X38.1 21/S Wh,12,2015,4.3,130389,21/02/2015,FPIN,BANNER BUSINESS SERVICES LTD,
Ban Lsr Lbl 139X99.1 4/S Wh,B205,Stocks & WIP (Purchasing & Supply Stores),Ban Lsr Lbl 139X99.1 4/S Wh,12,2015,4.3,130389,21/02/2015,FPIN,BANNER BUSINESS SERVICES LTD,
Banner Perm Bullet Marker Bk,B205,Stocks & WIP (Purchasing & Supply Stores),Banner Perm Bullet Marker Bk,12,2015,2.68,130389,21/02/2015,FPIN,BANNER BUSINESS SERVICES LTD,
Tipp-Ex Rapid Corr Fluid 20Ml,B205,Stocks & WIP (Purchasing & Supply Stores),Correction Fluid 20Ml,12,2015,16.4,130389,21/02/2015,FPIN,BANNER BUSINESS SERVICES LTD,
Bann Pln Manilla 10Pt A4 Col D,B205,Stocks & WIP (Purchasing & Supply Stores),Bann 10Pt A4 Col D,12,2015,5.9,130389,21/02/2015,FPIN,BANNER BUSINESS SERVICES LTD,
Dormy Rub Stamp Pad 158X90 Bk,B205,Stocks & WIP (Purchasing & Supply Stores),Dormy Rub Stamp Pad 158X90 Bk,12,2015,7.6,130389,21/02/2015,FPIN,BANNER BUSINESS SERVICES LTD,
Banner Med Ballpoint Pen Blue,B205,Stocks & WIP (Purchasing & Supply Stores),Banner Medium Ballpoint Pen Bl,12,2015,3.99,130389,21/02/2015,FPIN,BANNER BUSINESS SERVICES LTD,
Pens:Highlighter Yellow,B205,Stocks & WIP (Purchasing & Supply Stores),Pens:Highlighter Yellow,12,2015,2.97,130389,21/02/2015,FPIN,BANNER BUSINESS SERVICES LTD,
Pens:Highlighter Pink,B205,Stocks & WIP (Purchasing & Supply Stores),Pens:Highlighter Pink,12,2015,3.96,130389,21/02/2015,FPIN,BANNER BUSINESS SERVICES LTD,
Pens:Highlighter Orange,B205,Stocks & WIP (Purchasing & Supply Stores),Pens:Highlighter Orange,12,2015,3.96,130389,21/02/2015,FPIN,BANNER BUSINESS SERVICES LTD,
Ba B/B Env 324X229 115G P&S Ma,B205,Stocks & WIP (Purchasing & Supply Stores),Ba B/B Env 324X229 A4 P&S Ma,12,2015,16.3,130389,21/02/2015,FPIN,BANNER BUSINESS SERVICES LTD,
Rapesco 26/6 Staples,B205,Stocks & WIP (Purchasing & Supply Stores),Rapesco 26/6 Staples,12,2015,2.48,130389,21/02/2015,FPIN,BANNER BUSINESS SERVICES LTD,
Community Safety,4019,Community Safety,Essentials Safety Shoe Black 5,12,2015,23.53,130390,20/02/2015,FPIN,ARCO LTD,
Community Safety,4019,Community Safety,Freight Misc,12,2015,4.95,130390,20/02/2015,FPIN,ARCO LTD,
Community Safety,4019,Community Safety,Essentials Safety Shoe Black 6,12,2015,23.53,130390,20/02/2015,FPIN,ARCO LTD,
Human Resources,4518,Other Local Authority Services,PENSIONS SLA FEB 2014/15,12,2015,8033,130391,25/02/2015,FPIN,ESSEX COUNTY COUNCIL,
ICT,2502,IT Radio,Firelink December 2014,12,2015,63233.94,130392,26/02/2015,FPIN,COMMUNITIES & LOCAL GOVERNMENT,
Purchases,B207,Stocks & WIP (Fleet Stores),WSD 93611,12,2015,7.48,130393,20/02/2015,FPIN,COLCHESTER RADIATOR SPECIALISTS,
Property Services,1499,Furniture and Fittings,To supply high back task chair,12,2015,240,130394,26/02/2015,FPIN,BATES OFFICE SERVICES LIMITED,
Purchases,B207,Stocks & WIP (Fleet Stores),WSA 93584,12,2015,164.31,130395,17/02/2015,FPIN,ERNEST DOE & SONS LTD,
Purchases,B207,Stocks & WIP (Fleet Stores),WSD 93601,12,2015,19.76,130396,19/02/2015,FPIN,ERNEST DOE & SONS LTD,
Purchases,B207,Stocks & WIP (Fleet Stores),NO ORDER NUMBER QUOTED,12,2015,57.5,130397,09/02/2015,FPIN,JENNINGS ENGINEERING SUPPLIES LTD,
Purchasing & Supply,2303,Clothing & Footwear,NO ORDER NUMBER QUOTED,12,2015,17,130397,09/02/2015,FPIN,JENNINGS ENGINEERING SUPPLIES LTD,
Workshop Engineering,2070,Tools & Light Equipment,NO ORDER NUMBER QUOTED,12,2015,96.9,130397,09/02/2015,FPIN,JENNINGS ENGINEERING SUPPLIES LTD,
Purchases,B207,Stocks & WIP (Fleet Stores),WSA 93573,12,2015,286.26,130398,19/02/2015,FPIN,LINCON BATTERIES LTD,
Property Services,1321,Water Meters,24.02.15 SIBLE HED,12,2015,9.66,130399,24/02/2015,FPIN,ANGLIAN WATER,
Property Services,1321,Water Meters,24.02.15 FIXED CHG,12,2015,13.5,130399,24/02/2015,FPIN,ANGLIAN WATER,
Property Services,1322,General Services,24.02.15 SIBLE HED,12,2015,8.37,130399,24/02/2015,FPIN,ANGLIAN WATER,
Property Services,1322,General Services,24.02.15 FIXED CHG,12,2015,33.53,130399,24/02/2015,FPIN,ANGLIAN WATER,
Property Services,1322,General Services,24.02.15 USAR,12,2015,83.26,130400,24/02/2015,FPIN,ANGLIAN WATER,
Property Services,1322,General Services,24.02.15 FIXED CHG,12,2015,38.66,130400,24/02/2015,FPIN,ANGLIAN WATER,
Property Services,1321,Water Meters,24.02.15 FIXED CHG,12,2015,15.57,130400,24/02/2015,FPIN,ANGLIAN WATER,
Property Services,1321,Water Meters,24.02.15 USAR,12,2015,80.04,130400,24/02/2015,FPIN,ANGLIAN WATER,
Property Services,1321,Water Meters,23.02.15 WS,12,2015,154.57,130401,23/02/2015,FPIN,ANGLIAN WATER,
Property Services,1321,Water Meters,23.02.15 FIXED CHG,12,2015,15.41,130401,23/02/2015,FPIN,ANGLIAN WATER,
Property Services,1322,General Services,23.02.15 WS,12,2015,133.98,130401,23/02/2015,FPIN,ANGLIAN WATER,
Property Services,1322,General Services,23.02.15 FIXED CHG,12,2015,38.26,130401,23/02/2015,FPIN,ANGLIAN WATER,
Purchases,B207,Stocks & WIP (Fleet Stores),WSD93798,12,2015,169.64,130402,28/02/2015,FPIN,B O C LTD,
Purchases,B207,Stocks & WIP (Fleet Stores),WSD 93498 / 93526 / 93552,12,2015,425,130403,28/02/2015,FPIN,W J SERVICES,
Purchases,B207,Stocks & WIP (Fleet Stores),WSD 93571 / 93612 / 93647,12,2015,425,130403,28/02/2015,FPIN,W J SERVICES,
Property Services,1050,Building Maintenance,Generator: to divert waste pip,12,2015,161.78,130404,02/03/2015,FPIN,A T B PLUMBING & BUILDING SERVICES LTD,
Property Services,1050,Building Maintenance,Sub Officer's shower.  Plughol,12,2015,228.97,130405,02/03/2015,FPIN,A T B PLUMBING & BUILDING SERVICES LTD,
Property Services,1050,Building Maintenance,Bathroom: To remedy leak from ,12,2015,156.61,130406,02/03/2015,FPIN,A T B PLUMBING & BUILDING SERVICES LTD,
Property Services,1050,Building Maintenance,Drill  yard: to refix loose po,12,2015,755.28,130407,02/03/2015,FPIN,A T B PLUMBING & BUILDING SERVICES LTD,
East Area Command,4015,Community Commanders Funds,Cassim Team to support Multi A,12,2015,855,130408,27/02/2015,FPIN,AMPUTEES IN ACTION LTD,
Operations,4110,Travelling Expenses,Travelling Expenses,12,2015,72,130409,27/02/2015,FPIN,CAPITA TRAVEL AND EVENTS LTD,
Operations,4110,Travelling Expenses,Travelling Expenses,12,2015,70,130409,27/02/2015,FPIN,CAPITA TRAVEL AND EVENTS LTD,
Operations,4110,Travelling Expenses,Travelling Expenses,12,2015,45.4,130409,27/02/2015,FPIN,CAPITA TRAVEL AND EVENTS LTD,
Operations,4110,Travelling Expenses,Travelling Expenses,12,2015,8.5,130409,27/02/2015,FPIN,CAPITA TRAVEL AND EVENTS LTD,
Operations,4110,Travelling Expenses,Travelling Expenses,12,2015,22.2,130409,27/02/2015,FPIN,CAPITA TRAVEL AND EVENTS LTD,
Operations,4110,Travelling Expenses,Travelling Expenses,12,2015,8.5,130409,27/02/2015,FPIN,CAPITA TRAVEL AND EVENTS LTD,
Operations,4110,Travelling Expenses,Travelling Expenses,12,2015,-13.75,130409,27/02/2015,FPIN,CAPITA TRAVEL AND EVENTS LTD,
Operations,4110,Travelling Expenses,Travelling Expenses,12,2015,17,130409,27/02/2015,FPIN,CAPITA TRAVEL AND EVENTS LTD,
Property Services,1050,Building Maintenance,Kitchen and Hallway. Strip out,12,2015,348.76,130410,02/03/2015,FPIN,A T B PLUMBING & BUILDING SERVICES LTD,
Property Services,1050,Building Maintenance,Hallway.  Water appearing thro,12,2015,348.75,130410,02/03/2015,FPIN,A T B PLUMBING & BUILDING SERVICES LTD,
Not Analysed,B112,Fixed Assets Under Construction Land & Buildings,1314/341 Relocation of Stores ,12,2015,1690,130411,13/02/2015,FPIN,BLAKE CONTRACTORS LTD,
Property Services,1050,Building Maintenance,Whilst on Site. Inlet valve to,12,2015,100,130412,02/03/2015,FPIN,A T B PLUMBING & BUILDING SERVICES LTD,
Property Services,1050,Building Maintenance,Barn Water supply.  Leaking va,12,2015,100.75,130412,02/03/2015,FPIN,A T B PLUMBING & BUILDING SERVICES LTD,
Property Services,1050,Building Maintenance,Kitchen Sink.  Leak under sink,12,2015,134.77,130413,02/03/2015,FPIN,A T B PLUMBING & BUILDING SERVICES LTD,
Property Services,1050,Building Maintenance,BA Chamber: To repair concrete,12,2015,310.51,130414,02/03/2015,FPIN,A T B PLUMBING & BUILDING SERVICES LTD,
Property Services,1050,Building Maintenance,WC. Cubicle 2. Broken seat. Re,12,2015,121.89,130415,02/03/2015,FPIN,A T B PLUMBING & BUILDING SERVICES LTD,
Operations,2030,Operational Equipment Support,CREDIT RE FPIN 128945,12,2015,-37.5,130416,27/02/2015,FPIN,MEDTREE,
Purchasing & Supply,2024,Cleaning Equipment,Dish Washing Brush Plastic Sma,12,2015,1.14,130417,19/02/2015,FPIN,BUNZL CLEANING & HYGIENE SUPPLIES,
Purchasing & Supply,2024,Cleaning Equipment,Window Cleaner With Trigger 50,12,2015,2.6,130417,19/02/2015,FPIN,BUNZL CLEANING & HYGIENE SUPPLIES,
Purchasing & Supply,2024,Cleaning Equipment,6663 Scott Performance Hand To,12,2015,27.61,130417,19/02/2015,FPIN,BUNZL CLEANING & HYGIENE SUPPLIES,
Purchasing & Supply,2024,Cleaning Equipment,Nail Brush Plastic 3.5/9CM (EA,12,2015,1.7,130417,19/02/2015,FPIN,BUNZL CLEANING & HYGIENE SUPPLIES,
Purchasing & Supply,2024,Cleaning Equipment,Dettol Multi Purpose Surface T,12,2015,21,130417,19/02/2015,FPIN,BUNZL CLEANING & HYGIENE SUPPLIES,
Purchasing & Supply,2024,Cleaning Equipment,Shades Air Fresh Summer Flower,12,2015,2.76,130417,19/02/2015,FPIN,BUNZL CLEANING & HYGIENE SUPPLIES,
Human Resources,960,Occupational Health,Occupational Health,12,2015,52,130418,26/02/2015,FPIN,FOCUS AND VISION TECHNOLOGY LTD,
Human Resources,960,Occupational Health,Occupational Health,12,2015,52,130418,26/02/2015,FPIN,FOCUS AND VISION TECHNOLOGY LTD,
Catering,190,Casual and Temporary Staff,Casual and Temporary Staff,12,2015,100.98,130419,25/02/2015,FPIN,FIRST CALL EMPLOYMENT LTD,
Catering,190,Casual and Temporary Staff,Casual and Temporary Staff,12,2015,201.96,130419,25/02/2015,FPIN,FIRST CALL EMPLOYMENT LTD,
Catering,190,Casual and Temporary Staff,Casual and Temporary Staff,12,2015,89.76,130420,25/02/2015,FPIN,FIRST CALL EMPLOYMENT LTD,
Catering,190,Casual and Temporary Staff,Casual and Temporary Staff,12,2015,117.81,130420,25/02/2015,FPIN,FIRST CALL EMPLOYMENT LTD,
Catering,190,Casual and Temporary Staff,Casual and Temporary Staff,12,2015,302.94,130420,25/02/2015,FPIN,FIRST CALL EMPLOYMENT LTD,
Catering,190,Casual and Temporary Staff,Casual and Temporary Staff,12,2015,252.45,130421,25/02/2015,FPIN,FIRST CALL EMPLOYMENT LTD,
Catering,190,Casual and Temporary Staff,Casual and Temporary Staff,12,2015,50.49,130421,25/02/2015,FPIN,FIRST CALL EMPLOYMENT LTD,
Catering,190,Casual and Temporary Staff,Casual and Temporary Staff,12,2015,50.49,130422,25/02/2015,FPIN,FIRST CALL EMPLOYMENT LTD,
Catering,190,Casual and Temporary Staff,Casual and Temporary Staff,12,2015,252.45,130422,25/02/2015,FPIN,FIRST CALL EMPLOYMENT LTD,
Catering,190,Casual and Temporary Staff,Casual and Temporary Staff,12,2015,50.49,130422,25/02/2015,FPIN,FIRST CALL EMPLOYMENT LTD,
Catering,190,Casual and Temporary Staff,Casual and Temporary Staff,12,2015,151.47,130423,25/02/2015,FPIN,FIRST CALL EMPLOYMENT LTD,
Catering,190,Casual and Temporary Staff,Casual and Temporary Staff,12,2015,134.64,130424,25/02/2015,FPIN,FIRST CALL EMPLOYMENT LTD,
Catering,190,Casual and Temporary Staff,Casual and Temporary Staff,12,2015,89.76,130424,25/02/2015,FPIN,FIRST CALL EMPLOYMENT LTD,
Catering,190,Casual and Temporary Staff,Casual and Temporary Staff,12,2015,299.25,130425,25/02/2015,FPIN,ADECCO UK LTD,
Catering,190,Casual and Temporary Staff,Casual and Temporary Staff,12,2015,59.85,130426,25/02/2015,FPIN,ADECCO UK LTD,
"Shorts Blk Micro Fibre, S (30)",B205,Stocks & WIP (Purchasing & Supply Stores),"Shorts Blk Micro Fibre, S (30)",12,2015,94.35,130427,02/03/2015,FPIN,BALLANTYNE EDWARDS LTD,
Shorts Black Micro Fibre 40,B205,Stocks & WIP (Purchasing & Supply Stores),Shorts Black Micro Fibre 40,12,2015,62.9,130427,02/03/2015,FPIN,BALLANTYNE EDWARDS LTD,
Property Services,1050,Building Maintenance,To fit cover to water tank tha,12,2015,128.46,130428,02/03/2015,FPIN,A T B PLUMBING & BUILDING SERVICES LTD,
Property Services,1050,Building Maintenance,Guttering. Rear of Property.  ,12,2015,86,130429,02/03/2015,FPIN,A T B PLUMBING & BUILDING SERVICES LTD,
Property Services,1050,Building Maintenance,Kitchen.  Replace missing/brok,12,2015,76,130430,02/03/2015,FPIN,A T B PLUMBING & BUILDING SERVICES LTD,
Property Services,4003,Postage & Direct Mailing,Oct-14,12,2015,11.88,130431,10/11/2014,FPIN,ROYAL MAIL GROUP PLC,
Human Resources,960,Occupational Health,Occupational Health,12,2015,4086,130432,28/02/2015,FPIN,HM PROJECT ASSURANCE & AUDIT LTD,
ITTP Development,190,Casual and Temporary Staff,Casual and Temporary Staff,12,2015,6750,130433,28/02/2015,FPIN,HIGHVIEW IT LIMITED,
Property Services,1050,Building Maintenance,Lecture room: to clear blocked,12,2015,88,130434,02/03/2015,FPIN,ARVON DRAIN CLEARING,
Property Services,1050,Building Maintenance,G36: To clear blocked toilet,12,2015,88,130434,02/03/2015,FPIN,ARVON DRAIN CLEARING,
Property Services,1050,Building Maintenance,LFF and Sub O WC's Blocked.,12,2015,88,130434,02/03/2015,FPIN,ARVON DRAIN CLEARING,
Property Services,1050,Building Maintenance,Ground floor toilets: To clear,12,2015,88,130434,02/03/2015,FPIN,ARVON DRAIN CLEARING,
Property Services,1050,Building Maintenance,"Drains.  Clear drains, strong ",12,2015,132,130434,02/03/2015,FPIN,ARVON DRAIN CLEARING,
Workshops Management,3201,Petrol and Diesel,Petrol and Diesel,12,2015,1892,130436,26/02/2015,FPIN,HALL FUELS,
Technical Services,2031,Managed Personal Protective Equipment,Provision of PPE Managed Servi,12,2015,47029.84,130437,26/02/2015,FPIN,BALLYCLARE LIMITED,
Technical Services,2031,Managed Personal Protective Equipment,Provision of PPE New Recruits ,12,2015,4409.58,130438,26/02/2015,FPIN,BALLYCLARE LIMITED,
Property Services,2903,Consultancy Fees,1415/364 Various sites - Inter,12,2015,323.77,130439,28/02/2015,FPIN,INGLETON WOOD,
Property Services,2903,Consultancy Fees,1314/311- Professional fees in,12,2015,1089,130440,28/02/2015,FPIN,INGLETON WOOD,
Property Services,2903,Consultancy Fees,CANCELLED BY FPIN 131235,12,2015,247.83,130441,28/02/2015,FPIN,INGLETON WOOD,
Workplace Safety,2903,Consultancy Fees,Consultancy Services,12,2015,2047.5,130442,03/03/2015,FPIN,INDEPENDENT FIRE RISK ASSESSMENTS LTD,
Property Services,2903,Consultancy Fees,1314-335 - Replacement Applian,12,2015,1480.91,130443,28/02/2015,FPIN,INGLETON WOOD,
Technical Services,2030,Operational Equipment Support,FR50-400004 Portwest Fire resi,12,2015,99.34,130444,03/03/2015,FPIN,BALLANTYNE EDWARDS LTD,
Technical Services,2030,Operational Equipment Support,FR50-400003 Portwest Fire resi,12,2015,99.34,130444,03/03/2015,FPIN,BALLANTYNE EDWARDS LTD,
Technical Services,2030,Operational Equipment Support,FR50-400002 Portwest Fire resi,12,2015,49.67,130444,03/03/2015,FPIN,BALLANTYNE EDWARDS LTD,
Property Services,1050,Building Maintenance,Drains - To clear all drains,12,2015,88,130445,02/03/2015,FPIN,ARVON DRAIN CLEARING,
Property Services,1050,Building Maintenance,Cleaning room: To Clear blocke,12,2015,88,130445,02/03/2015,FPIN,ARVON DRAIN CLEARING,
Property Services,1050,Building Maintenance,Rear of mess. Drains blocked. ,12,2015,88,130445,02/03/2015,FPIN,ARVON DRAIN CLEARING,
Property Services,1050,Building Maintenance,First Floor.  Shower not drain,12,2015,88,130445,02/03/2015,FPIN,ARVON DRAIN CLEARING,
Property Services,1040,Planned Works,To carry out service to air co,12,2015,2183.5,130446,02/03/2015,FPIN,BALM & DAVIES LTD,
Property Services,1050,Building Maintenance,AO Smith Cyclone 111 Water Boi,12,2015,311.72,130447,02/03/2015,FPIN,BALM & DAVIES LTD,
Workshops Management,3201,Petrol and Diesel,Petrol and Diesel,12,2015,2808,130448,26/02/2015,FPIN,HALL FUELS,
Workshops Management,3201,Petrol and Diesel,Petrol and Diesel,12,2015,2340,130449,26/02/2015,FPIN,HALL FUELS,
ITTP Development,4005,IT Consumables,Project Management,12,2015,750,130450,27/02/2015,FPIN,CONCERTO SUPPORT SERVICES LTD,
ITTP Development,4005,IT Consumables,Interfaces,12,2015,1500,130450,27/02/2015,FPIN,CONCERTO SUPPORT SERVICES LTD,
ITTP Development,4005,IT Consumables,Data Transfer and Configuratio,12,2015,700,130450,27/02/2015,FPIN,CONCERTO SUPPORT SERVICES LTD,
Property Services,4003,Postage & Direct Mailing,Nov-14,12,2015,10.28,130451,15/12/2014,FPIN,ROYAL MAIL GROUP PLC,
Human Resources,960,Occupational Health,Occupational Health,12,2015,338,130452,01/03/2015,FPIN,THE INJURY CARE CLINICS LTD,
Property Services,4003,Postage & Direct Mailing,Dec-14,12,2015,3.6,130453,19/01/2015,FPIN,ROYAL MAIL GROUP PLC,
Property Services,4003,Postage & Direct Mailing,Sep-14,12,2015,8.33,130455,06/10/2014,FPIN,ROYAL MAIL GROUP PLC,
Safer Comms Admin,190,Casual and Temporary Staff,Casual and Temporary Staff,12,2015,494.32,130456,13/02/2015,FPIN,REED SPECIALIST RECRUITMENT LIMITED,
Corporate Comms,4008,Media Expenses,279880 - Avery CD/DVD Paper Sl,12,2015,8.6,130457,04/03/2015,FPIN,STAT-EXPRESS LTD.,
Corporate Comms,4008,Media Expenses,712847 - Verbatim DVD-R Record,12,2015,45.72,130457,04/03/2015,FPIN,STAT-EXPRESS LTD.,
Property Services,1499,Furniture and Fittings,To supply and install Nantmor ,12,2015,114.39,130458,27/02/2015,FPIN,NANTMOR BLINDS LTD,
Property Services,1499,Furniture and Fittings,To supply and install Nantmor ,12,2015,85.44,130459,27/02/2015,FPIN,NANTMOR BLINDS LTD,
Property Services,1499,Furniture and Fittings,To supply and install Nantmor ,12,2015,194.38,130460,27/02/2015,FPIN,NANTMOR BLINDS LTD,
Technical Services,2030,Operational Equipment Support,Freight Misc,12,2015,22.8,130461,05/03/2015,FPIN,RUTH LEE LTD,
Technical Services,2030,Operational Equipment Support,Training Dummy - Light Adult (,12,2015,383.5,130461,05/03/2015,FPIN,RUTH LEE LTD,
Property Services,1050,Building Maintenance,Bay Door (not confirmed front ,12,2015,404.8,130462,03/03/2015,FPIN,HS DOOR SYSTEMS LTD,
Not Analysed,B118,Asset Protection,We hereby accept your revised ,12,2015,4666.2,130463,03/03/2015,FPIN,ABACUS BUILD (UK) LTD,
Battery AA Lr6 Alkaline,B205,Stocks & WIP (Purchasing & Supply Stores),Battery AA LR6 Alkaline (Durac,12,2015,360,130464,03/03/2015,FPIN,ALLBATTERIES UK LTD,
Battery.6Lr61/Mn1604.(Pp3 Equ),B205,Stocks & WIP (Purchasing & Supply Stores),Battery.6LR61 Or Mn1604.(PP3 E,12,2015,122,130464,03/03/2015,FPIN,ALLBATTERIES UK LTD,
Property Services,190,Casual and Temporary Staff,Casual and Temporary Staff,12,2015,1222.18,130466,24/02/2015,FPIN,HAYS CONSTRUCTION & PROPERTY,
Property Services,190,Casual and Temporary Staff,Casual and Temporary Staff,12,2015,133.2,130467,25/02/2015,FPIN,HAYS CONSTRUCTION & PROPERTY,
Property Services,1030,Int Decs/Alts & Improvements,MIN/1415/157 -To carry out dec,12,2015,8208.9,130468,25/02/2015,FPIN,GARDHAMS PROPERTY SERVICES,
Property Services,1050,Building Maintenance,"Hose, Washdown 19mm x 30m",12,2015,71.1,130469,26/02/2015,FPIN,ARCO LTD,
Property Services,1050,Building Maintenance,Bay Doors.  Sticking on runner,12,2015,176,130470,03/03/2015,FPIN,HS DOOR SYSTEMS LTD,
Property Services,1050,Building Maintenance,PAC system: No events showing ,12,2015,123.75,130471,27/02/2015,FPIN,BLAKE CONTRACTORS LTD,
Property Services,1499,Furniture and Fittings,5010813 Keys,12,2015,11,130472,23/02/2015,FPIN,FAST KEY SERVICES LTD,
Not Analysed,B116,Fixed Assets Under Construction Operational Equipment,F103150 Smartdock: hands free ,12,2015,2720,130473,03/03/2015,FPIN,IMMI LIMITED,
Human Resources,960,Occupational Health,Occupational Health,12,2015,45,130474,28/02/2015,FPIN,N A BETTS,
Human Resources,960,Occupational Health,Occupational Health,12,2015,312,130474,28/02/2015,FPIN,N A BETTS,
Property Services,1050,Building Maintenance,1314/344.  Hutton Disposal Air,12,2015,1580.15,130475,26/02/2015,FPIN,CHRISTY COOLING SERVICES LTD,
Property Services,1050,Building Maintenance,Intruder alarm: To remedy faul,12,2015,150.6,130476,27/02/2015,FPIN,BLAKE CONTRACTORS LTD,
BA Spec.Panarama NOVA  Frame R,B205,Stocks & WIP (Purchasing & Supply Stores),"Spectacle frame, BA. Panarama",12,2015,621.11,130477,02/03/2015,FPIN,DRAEGER SAFETY UK LTD,
Property Services,1050,Building Maintenance,Boiler; to remedy defective bo,12,2015,593.25,130478,27/02/2015,FPIN,EMS ENGINEERING MAINTENANCE SERVICES LTD,
Technical Services,2030,Operational Equipment Support,"ZT17 Sign with white text ""STO",12,2015,14.54,130479,27/02/2015,FPIN,ALLSIGNS INTERNATIONAL LTD,
Technical Services,2030,Operational Equipment Support,ST2 A Frame 600 x 450 mm compl,12,2015,23.83,130479,27/02/2015,FPIN,ALLSIGNS INTERNATIONAL LTD,
Technical Services,2030,Operational Equipment Support,SMALL ORDER CHARGE,12,2015,6.5,130479,27/02/2015,FPIN,ALLSIGNS INTERNATIONAL LTD,
Property Services,1050,Building Maintenance,Attend site to investigate PAC,12,2015,226.88,130480,27/02/2015,FPIN,BLAKE CONTRACTORS LTD,
Property Services,1050,Building Maintenance,JLG Annual Safety Examination ,12,2015,299,130481,23/02/2015,FPIN,JACKSON LIFT SERVICES LTD,
Property Services,1050,Building Maintenance,Lift.  Fit Gate Lock Valve as ,12,2015,1762,130481,23/02/2015,FPIN,JACKSON LIFT SERVICES LTD,
Community Safety,4021,Home Safety,Quote 7916. March monthly camp,12,2015,354,130483,27/02/2015,FPIN,BENSONS PRINTING COMPANY LTD,
Community Safety,4021,Home Safety,"20,000 Bookmarks for delivery ",12,2015,490,130484,27/02/2015,FPIN,BENSONS PRINTING COMPANY LTD,
Community Safety,4021,Home Safety,"Sorry we missed you postcard, ",12,2015,139,130485,27/02/2015,FPIN,BENSONS PRINTING COMPANY LTD,
Community Safety,4021,Home Safety,DELIVERY COST,12,2015,15,130485,27/02/2015,FPIN,BENSONS PRINTING COMPANY LTD,
Training,715,In House Operational Training,In House Operational Training,12,2015,1090,130486,27/02/2015,FPIN,BENSONS PRINTING COMPANY LTD,
Training,715,In House Operational Training,In House Operational Training,12,2015,19.38,130487,26/02/2015,FPIN,CALOR GAS LTD,
Not Analysed,B114,Fixed Assets Under Construction ITC Equipment,Completion of Elaboration Phas,12,2015,65120,130488,26/02/2015,FPIN,HITACHI SOLUTIONS EUROPE LIMITED,
Property Services,2903,Consultancy Fees,1314/336 -Mess room/kitchen/ B,12,2015,715.71,130490,27/02/2015,FPIN,INGLETON WOOD,
Property Services,2903,Consultancy Fees,1314/321 Refurbishment of LFF ,12,2015,1090.64,130491,27/02/2015,FPIN,INGLETON WOOD,
Property Services,2903,Consultancy Fees,"1415/348 - Dormitory, locker r",12,2015,1315.29,130492,27/02/2015,FPIN,INGLETON WOOD,
Property Services,2903,Consultancy Fees,1213/303 - Colchester Fire Sta,12,2015,686.67,130493,27/02/2015,FPIN,INGLETON WOOD,
ICT,2510,IT Comms,LINE RENTAL CHARGES FEB 2015,12,2015,40,130494,01/03/2015,FPIN,DAISY UPDATA COMMUNICATIONS LTD,
Property Services,1030,Int Decs/Alts & Improvements,MIN/1314/132 - Upgrade to mess,12,2015,11941.79,130495,04/03/2015,FPIN,M & P DUNN LTD,
Property Services,1050,Building Maintenance,CCTV: To a;lter view on camera,12,2015,382.5,130496,02/03/2015,FPIN,BLAKE CONTRACTORS LTD,
Property Services,190,Casual and Temporary Staff,Casual and Temporary Staff,12,2015,1104.4,130498,28/01/2015,FPIN,HAYS CONSTRUCTION & PROPERTY,
Property Services,190,Casual and Temporary Staff,Casual and Temporary Staff,12,2015,55.35,130498,28/01/2015,FPIN,HAYS CONSTRUCTION & PROPERTY,
Property Services,190,Casual and Temporary Staff,Casual and Temporary Staff,12,2015,45,130499,05/02/2015,FPIN,HAYS CONSTRUCTION & PROPERTY,
Property Services,190,Casual and Temporary Staff,Casual and Temporary Staff,12,2015,883.52,130499,05/02/2015,FPIN,HAYS CONSTRUCTION & PROPERTY,
Property Services,190,Casual and Temporary Staff,Casual and Temporary Staff,12,2015,1104.4,130500,04/03/2015,FPIN,HAYS CONSTRUCTION & PROPERTY,
Property Services,190,Casual and Temporary Staff,Casual and Temporary Staff,12,2015,11.7,130500,04/03/2015,FPIN,HAYS CONSTRUCTION & PROPERTY,
Property Services,190,Casual and Temporary Staff,Casual and Temporary Staff,12,2015,1178,130501,18/02/2015,FPIN,HAYS CONSTRUCTION & PROPERTY,
Property Services,190,Casual and Temporary Staff,Casual and Temporary Staff,12,2015,1178,130502,04/03/2015,FPIN,HAYS CONSTRUCTION & PROPERTY,
Property Services,190,Casual and Temporary Staff,Casual and Temporary Staff,12,2015,942.4,130503,04/03/2015,FPIN,HAYS CONSTRUCTION & PROPERTY,
Property Services,190,Casual and Temporary Staff,Casual and Temporary Staff,12,2015,1178.01,130504,27/01/2015,FPIN,HAYS CONSTRUCTION & PROPERTY,
Property Services,190,Casual and Temporary Staff,Casual and Temporary Staff,12,2015,177.75,130505,28/01/2015,FPIN,HAYS CONSTRUCTION & PROPERTY,
Property Services,2903,Consultancy Fees,Fees for January,12,2015,1104.4,130506,28/01/2015,FPIN,HAYS CONSTRUCTION & PROPERTY,
Property Services,2903,Consultancy Fees,Mileage,12,2015,72,130506,28/01/2015,FPIN,HAYS CONSTRUCTION & PROPERTY,
Property Services,2903,Consultancy Fees,Fees for January,12,2015,1104.4,130507,04/02/2015,FPIN,HAYS CONSTRUCTION & PROPERTY,
Property Services,2903,Consultancy Fees,Mileage,12,2015,38.25,130507,04/02/2015,FPIN,HAYS CONSTRUCTION & PROPERTY,
Property Services,2903,Consultancy Fees,Fees for January,12,2015,1104.4,130508,04/03/2015,FPIN,HAYS CONSTRUCTION & PROPERTY,
ICT,2040,IT Support & Maintenance,SSL Web Server Cerificate - su,12,2015,406.21,130509,02/03/2015,FPIN,THAWTE INC,
Community Safety,4019,Community Safety,EXPENSES FEB 2015,12,2015,28.67,130510,03/03/2015,FPIN,BEN HICKS,
Catering,4130,Hospitality & Entertaining,KP MESSCLUB,12,2015,97.91,130511,02/03/2015,FPIN,DIRECT MEATS,
Purchases,B207,Stocks & WIP (Fleet Stores),WSA 93587,12,2015,144.32,130512,17/02/2015,FPIN,MOTOR PARTS DIRECT,
Purchases,B207,Stocks & WIP (Fleet Stores),WSD 93614,12,2015,11.22,130513,20/02/2015,FPIN,MOTOR PARTS DIRECT,
Purchases,B207,Stocks & WIP (Fleet Stores),WSD 93613,12,2015,6.29,130514,20/02/2015,FPIN,MOTOR PARTS DIRECT,
Dummy account for Internal Use,B207,Stocks & WIP (Fleet Stores),WSD 93616,12,2015,31.27,130515,20/02/2015,FPIN,MOTOR PARTS DIRECT,
Dummy account for Internal Use,B207,Stocks & WIP (Fleet Stores),WSD 93616,12,2015,31.27,130515,20/02/2015,FPIN,MOTOR PARTS DIRECT,
Dummy account for Internal Use,B207,Stocks & WIP (Fleet Stores),WSD 93616,12,2015,31.27,130515,20/02/2015,FPIN,MOTOR PARTS DIRECT,
Dummy account for Internal Use,B207,Stocks & WIP (Fleet Stores),WSD 93616,12,2015,31.27,130515,20/02/2015,FPIN,MOTOR PARTS DIRECT,
Dummy account for Internal Use,B207,Stocks & WIP (Fleet Stores),WSD 93616,12,2015,31.27,130515,20/02/2015,FPIN,MOTOR PARTS DIRECT,
Year End Roll-over,B207,Stocks & WIP (Fleet Stores),WSD 93616,12,2015,31.27,130515,20/02/2015,FPIN,MOTOR PARTS DIRECT,
Dummy account for Internal Use,B207,Stocks & WIP (Fleet Stores),WSD 93616,12,2015,31.27,130515,20/02/2015,FPIN,MOTOR PARTS DIRECT,
Dummy account for Internal Use,B207,Stocks & WIP (Fleet Stores),WSD 93616,12,2015,31.27,130515,20/02/2015,FPIN,MOTOR PARTS DIRECT,
Purchases,B207,Stocks & WIP (Fleet Stores),WSD 93554,12,2015,7.68,130516,20/02/2015,FPIN,MOTOR PARTS DIRECT,
Purchases,B207,Stocks & WIP (Fleet Stores),WSD 93554,12,2015,11.36,130517,20/02/2015,FPIN,MOTOR PARTS DIRECT,
Purchases,B207,Stocks & WIP (Fleet Stores),WSD 93642,12,2015,74.12,130518,23/02/2015,FPIN,MOTOR PARTS DIRECT,
Purchases,B207,Stocks & WIP (Fleet Stores),WSD 93643,12,2015,53.55,130519,24/02/2015,FPIN,MOTOR PARTS DIRECT,
Purchases,B207,Stocks & WIP (Fleet Stores),WSD 93643,12,2015,312.7,130520,24/02/2015,FPIN,MOTOR PARTS DIRECT,
Purchases,B207,Stocks & WIP (Fleet Stores),WSD 93652,12,2015,4.08,130521,25/02/2015,FPIN,MOTOR PARTS DIRECT,
Catering,4130,Hospitality & Entertaining,KP MESSCLUB,12,2015,171.67,130522,04/03/2015,FPIN,DIRECT MEATS,
Purchases,B207,Stocks & WIP (Fleet Stores),WSD 93659,12,2015,7,130523,26/02/2015,FPIN,MOTOR PARTS DIRECT,
Catering,4130,Hospitality & Entertaining,KP MESSCLUB,12,2015,96.86,130524,02/03/2015,FPIN,DONALD FREESTON,
Catering,4130,Hospitality & Entertaining,KP MESSCLUB,12,2015,33.81,130525,03/03/2015,FPIN,DONALD FREESTON,
Catering,4130,Hospitality & Entertaining,KP MESSCLUB,12,2015,46.51,130526,04/03/2015,FPIN,DONALD FREESTON,
Catering,4130,Hospitality & Entertaining,KP MESSCLUB,12,2015,36.2,130527,22/02/2015,FPIN,DONALD FREESTON,
Training,4111,Subsistence Allowances,Subsistence Allowances,12,2015,6.39,130528,02/03/2015,FPIN,DONALD FREESTON,
Purchases,B207,Stocks & WIP (Fleet Stores),WSD93627,12,2015,8.05,130529,23/02/2015,FPIN,ANDREW PAGE LIMITED,
Purchases,B207,Stocks & WIP (Fleet Stores),WSD93607,12,2015,18.21,130530,19/02/2015,FPIN,ERNEST DOE & SONS LTD,
Purchases,B207,Stocks & WIP (Fleet Stores),WSD 93667,12,2015,17.6,130531,26/02/2015,FPIN,MOTOR PARTS DIRECT,
Purchases,B207,Stocks & WIP (Fleet Stores),WSA93584,12,2015,82.3,130532,19/02/2015,FPIN,ERNEST DOE & SONS LTD,
Purchases,B207,Stocks & WIP (Fleet Stores),WSA93610,12,2015,1100.28,130533,20/02/2015,FPIN,HOLMATRO UK LIMITED,
Purchases,B207,Stocks & WIP (Fleet Stores),WSD93602,12,2015,54.27,130534,19/02/2015,FPIN,JOHN GROSE GROUP LTD,
Purchases,B207,Stocks & WIP (Fleet Stores),WSD93596,12,2015,99.65,130535,18/02/2015,FPIN,ORWELL TRUCKS LTD,
Purchases,B207,Stocks & WIP (Fleet Stores),WSD93596,12,2015,29.85,130536,19/02/2015,FPIN,ORWELL TRUCKS LTD,
Community Safety,4019,Community Safety,EXPENSES - FEBRUARY,12,2015,193.95,130537,05/03/2015,FPIN,DAVID SCOTT,
Purchases,B207,Stocks & WIP (Fleet Stores),NO ORDER NUMBER QUOTED,12,2015,274.78,130538,13/02/2015,FPIN,SAFETY KLEEN UK LTD,
Purchases,B207,Stocks & WIP (Fleet Stores),WSD93640,12,2015,14,130539,24/02/2015,FPIN,CENTRAL TRUCK AND BUS PARTS LTD,
Purchases,B207,Stocks & WIP (Fleet Stores),WSD93628,12,2015,38,130540,23/02/2015,FPIN,CENTRAL TRUCK AND BUS PARTS LTD,
Purchases,B207,Stocks & WIP (Fleet Stores),WSA93641,12,2015,33,130541,24/02/2015,FPIN,CENTRAL TRUCK AND BUS PARTS LTD,
Purchasing & Supply,1310,Cleaning products,WSD93688 / WSA93689,12,2015,530,130542,25/02/2015,FPIN,FIRSTCALL CORPORATION LTD,
Property Services,2903,Consultancy Fees,CREDIT FPIN 128888,12,2015,-1638.84,130543,17/02/2015,FPIN,REVELL ARCHITECTURE AND ENGINEERING,
Purchases,B207,Stocks & WIP (Fleet Stores),WSD93657,12,2015,3.45,130544,27/02/2015,FPIN,GLYN HOPKIN LIMITED,
Purchases,B207,Stocks & WIP (Fleet Stores),WSD93672,12,2015,90.48,130545,02/03/2015,FPIN,IPSWICH TPS,
Purchases,B207,Stocks & WIP (Fleet Stores),WSD93660,12,2015,27.02,130546,26/02/2015,FPIN,IPSWICH TPS,
Purchases,B207,Stocks & WIP (Fleet Stores),WSD93677,12,2015,13.5,130547,02/03/2015,FPIN,JOHN GROSE GROUP LTD,
Purchases,B207,Stocks & WIP (Fleet Stores),WSD93597,12,2015,23.5,130548,23/02/2015,FPIN,RUSKIN LIFTING ENGINEERS LTD,
Purchases,B207,Stocks & WIP (Fleet Stores),WSD93645,12,2015,66.98,130549,25/02/2015,FPIN,TRUCKEAST LTD,
Training,702,External Training - L&D Panel,External Training - L&D Panel,12,2015,716,130550,05/08/2014,FPIN,INSIGHTS,
Workshops Management,3201,Petrol and Diesel,Petrol and Diesel,12,2015,101.62,130551,28/02/2015,FPIN,EASTERN GARAGE (ESSEX) LTD,
ICT,4005,IT Consumables,0.5 Metre CAT 6 Patch Cables,12,2015,178,130552,03/03/2015,FPIN,DATA PRO IT LIMITED,
ICT,4005,IT Consumables,0.3 Metre CAT 6 Patch Cables,12,2015,168,130552,03/03/2015,FPIN,DATA PRO IT LIMITED,
Property Services,1050,Building Maintenance,Gym: To cut out defective timb,12,2015,830,130553,03/03/2015,FPIN,CONISTON LTD,
Water Services,2087,Water Services,HR65848,12,2015,300,130554,26/01/2015,FPIN,VEOLIA WATER CENTRAL LIMITED (TAMBLIN WAY),
Water Services,2087,Water Services,HR65881,12,2015,510,130555,26/01/2015,FPIN,VEOLIA WATER CENTRAL LIMITED (TAMBLIN WAY),
Property Services,1050,Building Maintenance,Passenger Lift. Reception.  St,12,2015,69,130556,02/03/2015,FPIN,JACKSON LIFT SERVICES LTD,
Property Services,190,Casual and Temporary Staff,Casual and Temporary Staff,12,2015,706.8,130557,21/01/2015,FPIN,HAYS CONSTRUCTION & PROPERTY,
Property Services,190,Casual and Temporary Staff,Casual and Temporary Staff,12,2015,1178,130558,21/01/2015,FPIN,HAYS CONSTRUCTION & PROPERTY,
Property Services,190,Casual and Temporary Staff,Casual and Temporary Staff,12,2015,1178,130559,21/01/2015,FPIN,HAYS CONSTRUCTION & PROPERTY,
Property Services,1040,Planned Works,Server room: to carry out serv,12,2015,234.5,130560,17/11/2014,FPIN,TITAN FIRE LIMITED,
Property Services,190,Casual and Temporary Staff,Casual and Temporary Staff,12,2015,1178,130561,18/02/2015,FPIN,HAYS CONSTRUCTION & PROPERTY,
Property Services,190,Casual and Temporary Staff,Casual and Temporary Staff,12,2015,917.64,130562,28/01/2015,FPIN,HAYS CONSTRUCTION & PROPERTY,
Property Services,190,Casual and Temporary Staff,Casual and Temporary Staff,12,2015,917.65,130563,04/02/2015,FPIN,HAYS CONSTRUCTION & PROPERTY,
Property Services,190,Casual and Temporary Staff,Casual and Temporary Staff,12,2015,844.24,130564,18/02/2015,FPIN,HAYS CONSTRUCTION & PROPERTY,
Property Services,190,Casual and Temporary Staff,Casual and Temporary Staff,12,2015,746.35,130565,04/03/2015,FPIN,HAYS CONSTRUCTION & PROPERTY,
Not Analysed,B112,Fixed Assets Under Construction Land & Buildings,1112/267 Phase 2a.  Carry out ,12,2015,3495,130566,28/02/2015,FPIN,WINDOW SHADING SYSTEMS LIMITED,
Operations,2030,Operational Equipment Support,STR14512 Streamlight  Sidewind,12,2015,683,130567,03/03/2015,FPIN,SAFEQUIP LTD,
Operations,2030,Operational Equipment Support,Freight Misc,12,2015,7.95,130567,03/03/2015,FPIN,SAFEQUIP LTD,
Training,715,In House Operational Training,In House Operational Training,12,2015,6153,130568,24/02/2015,FPIN,DECORPANEL LTD,
Human Resources,960,Occupational Health,Occupational Health,12,2015,140,130569,28/02/2015,FPIN,PHYSIOTHERAPY ESSEX LTD,
Human Resources,960,Occupational Health,Occupational Health,12,2015,350,130569,28/02/2015,FPIN,PHYSIOTHERAPY ESSEX LTD,
Property Services,1040,Planned Works,Southend,12,2015,1260,130570,28/02/2015,FPIN,L & D SERVICES LTD,
Property Services,1050,Building Maintenance,Drill Tower. Replace drill tow,12,2015,996,130571,28/02/2015,FPIN,L & D SERVICES LTD,
Property Services,1050,Building Maintenance,Yard. Drill Tower.  Investigat,12,2015,150,130572,28/02/2015,FPIN,L & D SERVICES LTD,
Property Services,1030,Int Decs/Alts & Improvements,Waltham Abbey Drill Tower,12,2015,5448.5,130573,28/02/2015,FPIN,R J SPECIALIST COATINGS,
Property Services,1030,Int Decs/Alts & Improvements,Braintree External Decs,12,2015,21886,130573,28/02/2015,FPIN,R J SPECIALIST COATINGS,
Property Services,1030,Int Decs/Alts & Improvements,Contingency,12,2015,4513.5,130573,28/02/2015,FPIN,R J SPECIALIST COATINGS,
Property Services,1030,Int Decs/Alts & Improvements,Wickford Drill Tower,12,2015,2438,130573,28/02/2015,FPIN,R J SPECIALIST COATINGS,
Property Services,1030,Int Decs/Alts & Improvements,Waltham Abbey External Decs,12,2015,1231,130573,28/02/2015,FPIN,R J SPECIALIST COATINGS,
Strategic Management Board,2903,Consultancy Fees,Consultancy,12,2015,4777.5,130574,01/03/2015,FPIN,MASON ADVISORY LIMITED,
Strategic Management Board,2903,Consultancy Fees,Mileage,12,2015,397.35,130574,01/03/2015,FPIN,MASON ADVISORY LIMITED,
Strategic Management Board,2903,Consultancy Fees,Expenses,12,2015,507.24,130574,01/03/2015,FPIN,MASON ADVISORY LIMITED,
Training,702,External Training - L&D Panel,External Training - L&D Panel,12,2015,100,130575,20/02/2015,FPIN,SOUTHEND ON SEA BOROUGH COUNCIL,
Community Safety,4019,Community Safety,Safeguarding Children & Domest,12,2015,100,130575,20/02/2015,FPIN,SOUTHEND ON SEA BOROUGH COUNCIL,
Community Safety,4019,Community Safety,Safeguarding Children & Domest,12,2015,-100,130575,20/02/2015,FPIN,SOUTHEND ON SEA BOROUGH COUNCIL,
Catering,190,Casual and Temporary Staff,Casual and Temporary Staff,12,2015,-178.4,130576,04/03/2015,FPIN,KILOFORCE LTD T/A GBN,
Catering,190,Casual and Temporary Staff,Casual and Temporary Staff,12,2015,264.15,130576,04/03/2015,FPIN,KILOFORCE LTD T/A GBN,
Catering,190,Casual and Temporary Staff,Casual and Temporary Staff,12,2015,178.4,130576,04/03/2015,FPIN,KILOFORCE LTD T/A GBN,
Catering,190,Casual and Temporary Staff,Casual and Temporary Staff,12,2015,178.4,130576,04/03/2015,FPIN,KILOFORCE LTD T/A GBN,
Property Services,1050,Building Maintenance,Fire alarm.  Panel in pre alar,12,2015,134.84,130577,28/02/2015,FPIN,BLAKE CONTRACTORS LTD,
Essex Civil Prot ECC,2040,IT Support & Maintenance,Ref 00125852 Major Accident Ha,12,2015,77.29,130578,30/01/2015,FPIN,CORPORATE DOCUMENT SERVICES LTD,
Essex Civil Prot ECC,2040,IT Support & Maintenance,Graphic Design,12,2015,60,130578,30/01/2015,FPIN,CORPORATE DOCUMENT SERVICES LTD,
ICT,4005,IT Consumables,Entel Uhf Stub ant part code M,12,2015,126,130579,04/03/2015,FPIN,CO-STAR COMPONENTS,
ICT,4005,IT Consumables,M2M Aerial part code B2BE-C3G-,12,2015,22.86,130579,04/03/2015,FPIN,CO-STAR COMPONENTS,
Axe Pouch,B205,Stocks & WIP (Purchasing & Supply Stores),Axe pouch,12,2015,213.15,130580,03/03/2015,FPIN,BRISTOL UNIFORMS LTD,
Axe - Firefighter,B205,Stocks & WIP (Purchasing & Supply Stores),Axe - Firefighter,12,2015,402.95,130580,03/03/2015,FPIN,BRISTOL UNIFORMS LTD,
Belt Firemans Axe,B205,Stocks & WIP (Purchasing & Supply Stores),Axe belt,12,2015,213.15,130580,03/03/2015,FPIN,BRISTOL UNIFORMS LTD,
Axe Pouch,B205,Stocks & WIP (Purchasing & Supply Stores),Axe pouch,12,2015,213.15,130580,03/03/2015,FPIN,BRISTOL UNIFORMS LTD,
ICT,2510,IT Comms,LINE RENTAL CHARGES OCT 2014,12,2015,40,130581,01/11/2014,FPIN,DAISY UPDATA COMMUNICATIONS LTD,
Property Services,1321,Water Meters,03.03.15 TIPTREE,12,2015,12.42,130582,03/03/2015,FPIN,ANGLIAN WATER,
Property Services,1321,Water Meters,03.03.15 FIXED,12,2015,13.5,130582,03/03/2015,FPIN,ANGLIAN WATER,
Property Services,1322,General Services,03.03.15 FIXED,12,2015,33.53,130582,03/03/2015,FPIN,ANGLIAN WATER,
Property Services,1322,General Services,03.03.15 TIPTREE,12,2015,10.76,130582,03/03/2015,FPIN,ANGLIAN WATER,
Human Resources,960,Occupational Health,Occupational Health,12,2015,160,130583,03/03/2015,FPIN,FOCUS AND VISION TECHNOLOGY LTD,
ICT,B217,Payments in Advance,Annual Rent Apr15-Mar16,12,2015,15359.96,130584,27/02/2015,FPIN,DAISY UPDATA COMMUNICATIONS LTD,
ICT,2040,IT Support & Maintenance,Installation and Annual Rental,12,2015,-15359.96,130584,27/02/2015,FPIN,DAISY UPDATA COMMUNICATIONS LTD,
ICT,2040,IT Support & Maintenance,Installation and Annual Rental,12,2015,15359.96,130584,27/02/2015,FPIN,DAISY UPDATA COMMUNICATIONS LTD,
ICT,2040,IT Support & Maintenance,Installation and Annual Rental,12,2015,-24878.17,130585,27/02/2015,FPIN,DAISY UPDATA COMMUNICATIONS LTD,
ICT,2040,IT Support & Maintenance,Installation and Annual Rental,12,2015,24878.17,130585,27/02/2015,FPIN,DAISY UPDATA COMMUNICATIONS LTD,
ICT,B217,Payments in Advance,Kempston - KP 17/10/14-30/9/15,12,2015,17179.87,130585,27/02/2015,FPIN,DAISY UPDATA COMMUNICATIONS LTD,
ICT,B217,Payments in Advance,Kempston - KP 17/10/14-30/9/15,12,2015,421.07,130585,27/02/2015,FPIN,DAISY UPDATA COMMUNICATIONS LTD,
ICT,B217,Payments in Advance,Kempston - KP 17/10/14-30/9/15,12,2015,673.72,130585,27/02/2015,FPIN,DAISY UPDATA COMMUNICATIONS LTD,
ICT,B217,Payments in Advance,Kempston - KP 13/1/15-30/9/15,12,2015,6603.51,130585,27/02/2015,FPIN,DAISY UPDATA COMMUNICATIONS LTD,
Training,702,External Training - L&D Panel,External Training - L&D Panel,12,2015,53.02,130586,27/02/2015,FPIN,AIR PRODUCTS PLC,
Training,702,External Training - L&D Panel,External Training - L&D Panel,12,2015,52.5,130586,27/02/2015,FPIN,AIR PRODUCTS PLC,
Training,715,In House Operational Training,In House Operational Training,12,2015,89.84,130586,27/02/2015,FPIN,AIR PRODUCTS PLC,
Training,715,In House Operational Training,In House Operational Training,12,2015,52.5,130586,27/02/2015,FPIN,AIR PRODUCTS PLC,
Bag FF Kit with Harness,B205,Stocks & WIP (Purchasing & Supply Stores),Bag FF Kit with Harness,12,2015,960.5,130587,16/02/2015,FPIN,BUSINESS IMAGE LTD,
Human Resources,960,Occupational Health,Occupational Health,12,2015,160,130588,02/03/2015,FPIN,FOCUS AND VISION TECHNOLOGY LTD,
Workshops Management,3201,Petrol and Diesel,Petrol and Diesel,12,2015,3747.6,130589,04/03/2015,FPIN,HALL FUELS,
ICT,2510,IT Comms,RENTAL CHGS 02.03.15-01.04.15,12,2015,890,130590,04/03/2015,FPIN,PAGEONE COMMUNICATIONS LTD,
Property Services,1050,Building Maintenance,To provide and install 5no dro,12,2015,1300,130608,04/03/2015,FPIN,C I K CONSTRUCTION LTD,
Property Services,1050,Building Maintenance,Comms Room.  Air conditioning ,12,2015,92,130609,27/02/2015,FPIN,CHRISTY COOLING SERVICES LTD,
Technical Services,2030,Operational Equipment Support,CREDIT FPIN 123987,12,2015,-1501.6,130610,03/03/2015,FPIN,WALTER FRANK & SONS LTD,
Property Services,1499,Furniture and Fittings,Cable ties,12,2015,6,130611,28/02/2015,FPIN,MASTERCRATE LTD,
Property Services,1499,Furniture and Fittings,Delivery Charge,12,2015,38,130611,28/02/2015,FPIN,MASTERCRATE LTD,
Property Services,1499,Furniture and Fittings,Hire of crates,12,2015,28,130611,28/02/2015,FPIN,MASTERCRATE LTD,
Property Services,1499,Furniture and Fittings,Hire of crates,12,2015,10.08,130612,28/02/2015,FPIN,MASTERCRATE LTD,
Property Services,1499,Furniture and Fittings,Collection Charge,12,2015,48,130612,28/02/2015,FPIN,MASTERCRATE LTD,
Training,715,In House Operational Training,In House Operational Training,12,2015,89.84,130613,27/02/2015,FPIN,AIR PRODUCTS PLC,
Training,715,In House Operational Training,In House Operational Training,12,2015,57.9,130613,27/02/2015,FPIN,AIR PRODUCTS PLC,
Property Services,1322,General Services,LOUGHTON FIXED CHG,12,2015,32.66,130614,02/03/2015,FPIN,THAMES WATER UTILITIES LTD,
Property Services,1322,General Services,26.02.15 LOUGHTON,12,2015,205.01,130614,02/03/2015,FPIN,THAMES WATER UTILITIES LTD,
Property Services,1321,Water Meters,LOUGHTON FIXED CHG ,12,2015,16.21,130614,02/03/2015,FPIN,THAMES WATER UTILITIES LTD,
Property Services,1321,Water Meters,26.02.15 LOUGHTON,12,2015,363,130614,02/03/2015,FPIN,THAMES WATER UTILITIES LTD,
Catering,190,Casual and Temporary Staff,Casual and Temporary Staff,12,2015,340.88,130615,03/03/2015,FPIN,SEARCH RECRUITMENT SERVICES LTD,
Catering,190,Casual and Temporary Staff,Casual and Temporary Staff,12,2015,438,130615,03/03/2015,FPIN,SEARCH RECRUITMENT SERVICES LTD,
Catering,190,Casual and Temporary Staff,Casual and Temporary Staff,12,2015,315,130615,03/03/2015,FPIN,SEARCH RECRUITMENT SERVICES LTD,
Catering,190,Casual and Temporary Staff,Casual and Temporary Staff,12,2015,112,130615,03/03/2015,FPIN,SEARCH RECRUITMENT SERVICES LTD,
Catering,190,Casual and Temporary Staff,Casual and Temporary Staff,12,2015,362.25,130615,03/03/2015,FPIN,SEARCH RECRUITMENT SERVICES LTD,
Catering,190,Casual and Temporary Staff,Casual and Temporary Staff,12,2015,474,130615,03/03/2015,FPIN,SEARCH RECRUITMENT SERVICES LTD,
Catering,190,Casual and Temporary Staff,Casual and Temporary Staff,12,2015,168,130615,03/03/2015,FPIN,SEARCH RECRUITMENT SERVICES LTD,
Catering,190,Casual and Temporary Staff,Casual and Temporary Staff,12,2015,58.4,130615,03/03/2015,FPIN,SEARCH RECRUITMENT SERVICES LTD,
Catering,190,Casual and Temporary Staff,Casual and Temporary Staff,12,2015,71.1,130615,03/03/2015,FPIN,SEARCH RECRUITMENT SERVICES LTD,
Property Services,1060,Grounds Maintenance,Mar-15,12,2015,226.4,130616,05/03/2015,FPIN,LESLEYS BLOOMERS LTD,
Safety Glasses - Casualty,B205,Stocks & WIP (Purchasing & Supply Stores),Uvex Astrospec ,12,2015,83.2,130619,27/02/2015,FPIN,ARCO LTD,
Champion Safety Helmet - Red,B205,Stocks & WIP (Purchasing & Supply Stores),Safety Helmet White,12,2015,6.3,130619,27/02/2015,FPIN,ARCO LTD,
Purchasing & Supply,2303,Clothing & Footwear,Women's Black Safety Shoe Size,12,2015,24.56,130619,27/02/2015,FPIN,ARCO LTD,
Purchasing & Supply,2303,Clothing & Footwear,Trojan Lites G98 Safety Boot S,12,2015,30.69,130619,27/02/2015,FPIN,ARCO LTD,
Technical Services,2030,Operational Equipment Support,6L5109 Safety boot size 9 (Pau,12,2015,34.99,130621,27/02/2015,FPIN,ARCO LTD,
Technical Services,2030,Operational Equipment Support,6L5111 Safety boot size 11 (Jo,12,2015,69.98,130621,27/02/2015,FPIN,ARCO LTD,
Strategic Management Board,6099,Subscriptions - Corporate,BCI Membership Renewal for Cha,12,2015,80,130622,06/03/2015,FPIN,THE BUSINESS CONTINUITY INSTITUTE LTD,
Corporate Comms,4008,Media Expenses,BNUC-S qualification training ,12,2015,350,130623,06/03/2015,FPIN,EUROUSC,
Human Resources,2903,Consultancy Fees,February 2015 - TU Facilities ,12,2015,212.5,130624,06/03/2015,FPIN,DOLPHYN,
Human Resources,2903,Consultancy Fees,January 2015 - TU Facilities -,12,2015,100,130624,06/03/2015,FPIN,DOLPHYN,
Workshops Management,3201,Petrol and Diesel,Petrol and Diesel,12,2015,1230.97,130625,04/03/2015,FPIN,HALL FUELS,
Technical Services,2085,Breathing Apparatus,EAS21 Valve cartridge & diaphr,12,2015,154.28,130626,04/03/2015,FPIN,DRAEGER SAFETY UK LTD,
Technical Services,2085,Breathing Apparatus,"O Ring, B/Guard to Capillery H",12,2015,2.1,130626,04/03/2015,FPIN,DRAEGER SAFETY UK LTD,
Technical Services,2085,Breathing Apparatus,Filter R51806,12,2015,331.8,130626,04/03/2015,FPIN,DRAEGER SAFETY UK LTD,
Technical Services,2085,Breathing Apparatus,Adjusting belt 3351265,12,2015,174.02,130626,04/03/2015,FPIN,DRAEGER SAFETY UK LTD,
Technical Services,2085,Breathing Apparatus,Facemask Complete FPS 7000M2 R,12,2015,155.85,130626,04/03/2015,FPIN,DRAEGER SAFETY UK LTD,
Technical Services,2085,Breathing Apparatus,H18 Hose assembly B/Guard 3337,12,2015,127.57,130626,04/03/2015,FPIN,DRAEGER SAFETY UK LTD,
Technical Services,2085,Breathing Apparatus,Shoulder Pad Right 3351281,12,2015,130.12,130626,04/03/2015,FPIN,DRAEGER SAFETY UK LTD,
Technical Services,2085,Breathing Apparatus,Neckstrap PVC R51772,12,2015,90.51,130626,04/03/2015,FPIN,DRAEGER SAFETY UK LTD,
Technical Services,2085,Breathing Apparatus,O Ring B/Guard Hose 3337314,12,2015,2.8,130626,04/03/2015,FPIN,DRAEGER SAFETY UK LTD,
Technical Services,2085,Breathing Apparatus,Capillary Hose 3337330,12,2015,85.96,130626,04/03/2015,FPIN,DRAEGER SAFETY UK LTD,
Technical Services,2085,Breathing Apparatus,Yoke Adjuster 3338245,12,2015,5.88,130626,04/03/2015,FPIN,DRAEGER SAFETY UK LTD,
Technical Services,2085,Breathing Apparatus,Medium Pressure Hose 3338316,12,2015,205.95,130626,04/03/2015,FPIN,DRAEGER SAFETY UK LTD,
Technical Services,2085,Breathing Apparatus,'O' Ring. Cyl Connector. (H40),12,2015,46.2,130626,04/03/2015,FPIN,DRAEGER SAFETY UK LTD,
Technical Services,2085,Breathing Apparatus,FM07 Mask Body (EDPM) R53662,12,2015,536.2,130627,04/03/2015,FPIN,DRAEGER SAFETY UK LTD,
Property Services,1040,Planned Works,Service of 2no sewage plants,12,2015,230,130628,06/03/2015,FPIN,ASHWASTE ENVIRONMENTAL LTD,
Property Services,1040,Planned Works,To empty  2no sewage tanks all,12,2015,1080,130628,06/03/2015,FPIN,ASHWASTE ENVIRONMENTAL LTD,
Property Services,1050,Building Maintenance,Lift. JLG Safety Ten Year Exam,12,2015,998,130629,05/03/2015,FPIN,JACKSON LIFT SERVICES LTD,
Property Services,1050,Building Maintenance,Lift. JLG Safety Ten Year Exam,12,2015,998,130630,06/03/2015,FPIN,JACKSON LIFT SERVICES LTD,
Property Services,1040,Planned Works,To empty Phase 2 sewage plant,12,2015,648,130631,06/03/2015,FPIN,ASHWASTE ENVIRONMENTAL LTD,
Property Services,1040,Planned Works,Serviceing of sewage plant,12,2015,120,130631,06/03/2015,FPIN,ASHWASTE ENVIRONMENTAL LTD,
Training,702,External Training - L&D Panel,External Training - L&D Panel,12,2015,1960,130632,09/03/2015,FPIN,EMSTAR LLP,
Not Analysed,B116,Fixed Assets Under Construction Operational Equipment,SpiroCom Wireless adaptor,12,2015,22676,130633,03/03/2015,FPIN,INTERSPIRO LTD,
Essex Civil Prot ECC,4130,Hospitality & Entertaining,Delivery Charges,12,2015,23.5,130634,25/02/2015,FPIN,EDEN SPRINGS UK LIMITED,
ICT,2510,IT Comms,MONTHLY CHARGES MAR 2015,12,2015,231.5,130635,03/03/2015,FPIN,EE LTD,
Catering,190,Casual and Temporary Staff,Casual and Temporary Staff,12,2015,50.49,130636,04/03/2015,FPIN,FIRST CALL EMPLOYMENT LTD,
Catering,190,Casual and Temporary Staff,Casual and Temporary Staff,12,2015,201.96,130636,04/03/2015,FPIN,FIRST CALL EMPLOYMENT LTD,
Catering,190,Casual and Temporary Staff,Casual and Temporary Staff,12,2015,252.45,130637,04/03/2015,FPIN,FIRST CALL EMPLOYMENT LTD,
Catering,190,Casual and Temporary Staff,Casual and Temporary Staff,12,2015,117.81,130637,04/03/2015,FPIN,FIRST CALL EMPLOYMENT LTD,
Catering,190,Casual and Temporary Staff,Casual and Temporary Staff,12,2015,44.88,130637,04/03/2015,FPIN,FIRST CALL EMPLOYMENT LTD,
Catering,190,Casual and Temporary Staff,Casual and Temporary Staff,12,2015,50.49,130638,04/03/2015,FPIN,FIRST CALL EMPLOYMENT LTD,
Catering,190,Casual and Temporary Staff,Casual and Temporary Staff,12,2015,201.96,130639,04/03/2015,FPIN,FIRST CALL EMPLOYMENT LTD,
Catering,190,Casual and Temporary Staff,Casual and Temporary Staff,12,2015,50.49,130640,04/03/2015,FPIN,FIRST CALL EMPLOYMENT LTD,
Catering,190,Casual and Temporary Staff,Casual and Temporary Staff,12,2015,201.96,130640,04/03/2015,FPIN,FIRST CALL EMPLOYMENT LTD,
Catering,190,Casual and Temporary Staff,Casual and Temporary Staff,12,2015,151.47,130641,04/03/2015,FPIN,FIRST CALL EMPLOYMENT LTD,
Catering,190,Casual and Temporary Staff,Casual and Temporary Staff,12,2015,179.52,130642,04/03/2015,FPIN,FIRST CALL EMPLOYMENT LTD,
ICT,2510,IT Comms,DAISY BILL 28/02/15,12,2015,1502.84,130649,01/03/2015,FPIN,DAISY UPDATA COMMUNICATIONS LTD,
West Area Command,4015,Community Commanders Funds,Call -Off Order Scrap Vehicles,12,2015,60,130650,28/02/2015,FPIN,B & P SCRAP CO LTD,
Essex Civil Prot ECC,2510,IT Comms,DAISY BILL 28/02/15,12,2015,109.9,130651,01/03/2015,FPIN,DAISY COMMUNICATIONS LIMITED,
ICT,4005,IT Consumables,GPSB-1-TET Shark fin aerial,12,2015,520.85,130652,09/03/2015,FPIN,CO-STAR COMPONENTS,
ICT,4005,IT Consumables,C23F-5BP TETRA to BNC M,12,2015,67.43,130652,09/03/2015,FPIN,CO-STAR COMPONENTS,
ICT,4005,IT Consumables,C23S-5FMGSM GSM FAKRA GSM,12,2015,68.42,130652,09/03/2015,FPIN,CO-STAR COMPONENTS,
ICT,4005,IT Consumables,C74-FP-6-SMAP GPS to SMA (M),12,2015,76.34,130652,09/03/2015,FPIN,CO-STAR COMPONENTS,
ICT,4005,IT Consumables,C29SPRV-5SP WLAN SMA (M) R,12,2015,103.73,130652,09/03/2015,FPIN,CO-STAR COMPONENTS,
ICT,4005,IT Consumables,Install dual network ports as ,12,2015,348.52,130654,06/03/2015,FPIN,C S ELECTRICAL ESSEX LTD,
Community Safety,4019,Community Safety,Branding of the new Ford Focus,12,2015,565,130656,27/02/2015,FPIN,IMPACT SIGN SERVICES,
Community Safety,4019,Community Safety,2014/15 Membership of Fire Her,12,2015,25,130657,03/11/2014,FPIN,FIRE HERITAGE NETWORK UK,
Training,702,External Training - L&D Panel,External Training - L&D Panel,12,2015,725,130658,30/01/2015,FPIN,DIRECTORY OF SOCIAL CHANGE,
Strategic Management Board,2902,Legal Expenses,Advice for Employment matter,12,2015,960,130659,16/02/2015,FPIN,5 ESSEX COURT - ALASTAIR HODGE,
Property Services,1040,Planned Works,Water Hygiene Remedials.  As q,12,2015,133,130660,06/03/2015,FPIN,BALM & DAVIES LTD,
Property Services,1050,Building Maintenance,To remove the split Selectra u,12,2015,422.33,130661,06/03/2015,FPIN,BALM & DAVIES LTD,
Property Services,1050,Building Maintenance,Repair flue to Powermatic heat,12,2015,652.1,130662,06/03/2015,FPIN,BALM & DAVIES LTD,
Property Services,1050,Building Maintenance,Drying room: To repair defecti,12,2015,70.62,130663,06/03/2015,FPIN,BALM & DAVIES LTD,
Property Services,1050,Building Maintenance,Boiler: To remedy leak from Br,12,2015,251.46,130664,06/03/2015,FPIN,BALM & DAVIES LTD,
Property Services,1050,Building Maintenance,To remedy lack of heating - po,12,2015,88.28,130665,06/03/2015,FPIN,BALM & DAVIES LTD,
Property Services,1050,Building Maintenance,Site.  No hot water or heating,12,2015,41.79,130666,06/03/2015,FPIN,BALM & DAVIES LTD,
Property Services,1050,Building Maintenance,Station office.  Electrical fa,12,2015,54.17,130667,06/03/2015,FPIN,BALM & DAVIES LTD,
Property Services,1050,Building Maintenance,Site.  No hot water.  Reported,12,2015,77.1,130668,06/03/2015,FPIN,BALM & DAVIES LTD,
Property Services,1050,Building Maintenance,Appliance Bay Heater.  High le,12,2015,35.31,130669,06/03/2015,FPIN,BALM & DAVIES LTD,
Property Services,1050,Building Maintenance,To attend with Mark Askew to a,12,2015,52.97,130670,06/03/2015,FPIN,BALM & DAVIES LTD,
Property Services,1050,Building Maintenance,Heating System.  Fault showing,12,2015,105.93,130671,06/03/2015,FPIN,BALM & DAVIES LTD,
Property Services,1050,Building Maintenance,Boiler Room.  Middle flue expe,12,2015,88.28,130672,06/03/2015,FPIN,BALM & DAVIES LTD,
Property Services,1050,Building Maintenance,Site. No hot water. Reported R,12,2015,35.31,130673,06/03/2015,FPIN,BALM & DAVIES LTD,
Property Services,1050,Building Maintenance,Lobby area: to investigate the,12,2015,51.2,130674,06/03/2015,FPIN,BALM & DAVIES LTD,
Property Services,1050,Building Maintenance,Commanders Office.  1no radiat,12,2015,36.38,130675,06/03/2015,FPIN,BALM & DAVIES LTD,
Property Services,1050,Building Maintenance,mess room : To remedy 2no defe,12,2015,88.28,130676,06/03/2015,FPIN,BALM & DAVIES LTD,
Property Services,1330,Building Cleaning,Kitchen deep clean - December ,12,2015,234.1,130677,28/02/2015,FPIN,MONTHIND CLEAN LLP,
Property Services,1330,Building Cleaning,Flyscreen Cleaning - December ,12,2015,35.12,130677,28/02/2015,FPIN,MONTHIND CLEAN LLP,
Property Services,1330,Building Cleaning,Floors and drains de-scale of ,12,2015,46.82,130677,28/02/2015,FPIN,MONTHIND CLEAN LLP,
Property Services,1330,Building Cleaning,Overhead extractor/combined st,12,2015,93.65,130677,28/02/2015,FPIN,MONTHIND CLEAN LLP,
Property Services,1330,Building Cleaning,Kitchen deep clean - December ,12,2015,257.5,130677,28/02/2015,FPIN,MONTHIND CLEAN LLP,
Property Services,1330,Building Cleaning,Kitchen deep clean - December ,12,2015,187.27,130677,28/02/2015,FPIN,MONTHIND CLEAN LLP,
Property Services,1330,Building Cleaning,Overhead extractor/combined st,12,2015,117.05,130677,28/02/2015,FPIN,MONTHIND CLEAN LLP,
Property Services,1330,Building Cleaning,Flyscreen Cleaning - December ,12,2015,11.7,130677,28/02/2015,FPIN,MONTHIND CLEAN LLP,
Property Services,1330,Building Cleaning,Kitchen deep clean - December ,12,2015,234.1,130677,28/02/2015,FPIN,MONTHIND CLEAN LLP,
Property Services,1330,Building Cleaning,Flyscreen Cleaning - December ,12,2015,11.7,130677,28/02/2015,FPIN,MONTHIND CLEAN LLP,
Property Services,1330,Building Cleaning,Wall/window mounted extractor ,12,2015,23.41,130677,28/02/2015,FPIN,MONTHIND CLEAN LLP,
Property Services,1330,Building Cleaning,Overhead extractor/combined st,12,2015,93.65,130677,28/02/2015,FPIN,MONTHIND CLEAN LLP,
Property Services,1330,Building Cleaning,Flyscreen Cleaning - December ,12,2015,35.12,130677,28/02/2015,FPIN,MONTHIND CLEAN LLP,
Property Services,1330,Building Cleaning,Overhead extractor/combined st,12,2015,93.65,130677,28/02/2015,FPIN,MONTHIND CLEAN LLP,
Property Services,1330,Building Cleaning,Kitchen deep clean - December ,12,2015,134.1,130677,28/02/2015,FPIN,MONTHIND CLEAN LLP,
Property Services,1330,Building Cleaning,Overhead extractor/combined st,12,2015,63.75,130677,28/02/2015,FPIN,MONTHIND CLEAN LLP,
Property Services,1330,Building Cleaning,Kitchen deep clean - February ,12,2015,140.25,130677,28/02/2015,FPIN,MONTHIND CLEAN LLP,
Property Services,1330,Building Cleaning,Prep Room Deep Clean - Februar,12,2015,115,130677,28/02/2015,FPIN,MONTHIND CLEAN LLP,
Property Services,1330,Building Cleaning,To carry out deep clean of dee,12,2015,135,130677,28/02/2015,FPIN,MONTHIND CLEAN LLP,
Property Services,1330,Building Cleaning,Overhead extractor/combined st,12,2015,105.35,130677,28/02/2015,FPIN,MONTHIND CLEAN LLP,
Property Services,1330,Building Cleaning,Kitchen deep clean - December ,12,2015,93.65,130677,28/02/2015,FPIN,MONTHIND CLEAN LLP,
Property Services,1050,Building Maintenance,Boiler room : To repair/replac,12,2015,70.62,130678,06/03/2015,FPIN,BALM & DAVIES LTD,
Property Services,1050,Building Maintenance,Showers; To replace power isol,12,2015,49.52,130679,06/03/2015,FPIN,BALM & DAVIES LTD,
Property Services,1050,Building Maintenance,Gas cooker: To isolate gas sup,12,2015,52.97,130680,06/03/2015,FPIN,BALM & DAVIES LTD,
Property Services,1050,Building Maintenance,To clear blocked toilet.,12,2015,33.3,130681,06/03/2015,FPIN,BALM & DAVIES LTD,
Property Services,1050,Building Maintenance,Site.  No hot water.  Reported,12,2015,112.41,130682,06/03/2015,FPIN,BALM & DAVIES LTD,
Property Services,1050,Building Maintenance,Hose store: to remedy lack of ,12,2015,292.35,130683,06/03/2015,FPIN,BALM & DAVIES LTD,
Property Services,1330,Building Cleaning,To cary out deep clean of hard,12,2015,75,130684,21/02/2015,FPIN,PARKVALE SERVICES LTD,
Property Services,1330,Building Cleaning,To cary out deep clean of hard,12,2015,-75,130684,21/02/2015,FPIN,PARKVALE SERVICES LTD,
Property Services,1330,Building Cleaning,To cary out deep clean of hard,12,2015,75,130684,21/02/2015,FPIN,PARKVALE SERVICES LTD,
Operations,2401,Laundry,Laundry - 02.02.15 to 01.03.15,12,2015,1615.79,130685,01/03/2015,FPIN,PHS BESAFE,
Purchases,B207,Stocks & WIP (Fleet Stores),WSD93680,12,2015,90.62,130686,03/03/2015,FPIN,WOODWAY ENGINEERING LTD,
Human Resources,190,Casual and Temporary Staff,Casual and Temporary Staff,12,2015,404,130688,27/02/2015,FPIN,REED SPECIALIST RECRUITMENT LIMITED,
Purchasing & Supply,1310,Cleaning products,Dishwasher powder Bryta 5kg,12,2015,22.18,130689,27/02/2015,FPIN,BUNZL CLEANING & HYGIENE SUPPLIES,
Purchasing & Supply,2024,Cleaning Equipment,Detergent General Purpose 5Ltr,12,2015,25.9,130689,27/02/2015,FPIN,BUNZL CLEANING & HYGIENE SUPPLIES,
Human Resources,4016,Recruitment,Recruitment,12,2015,1850,130690,10/03/2015,FPIN,WADDINGTON BROWN LIMITED,
Purchasing & Supply,2024,Cleaning Equipment,Brushes:Washing Up Brush Nylon,12,2015,0.76,130691,25/02/2015,FPIN,BUNZL CLEANING & HYGIENE SUPPLIES,
Purchasing & Supply,2024,Cleaning Equipment,Tea Towel White 475 X 725Mm,12,2015,0.98,130691,25/02/2015,FPIN,BUNZL CLEANING & HYGIENE SUPPLIES,
Purchasing & Supply,2024,Cleaning Equipment,Detergent General Purpose 5Ltr,12,2015,25.9,130691,25/02/2015,FPIN,BUNZL CLEANING & HYGIENE SUPPLIES,
Purchasing & Supply,2024,Cleaning Equipment,Disinfect Pine Freshline 5Lt,12,2015,2.86,130691,25/02/2015,FPIN,BUNZL CLEANING & HYGIENE SUPPLIES,
Purchasing & Supply,2024,Cleaning Equipment,Bleach Liquid 4.5% (Freshline),12,2015,2.94,130691,25/02/2015,FPIN,BUNZL CLEANING & HYGIENE SUPPLIES,
Purchasing & Supply,2024,Cleaning Equipment,"Towel,6661, White K/Clark",12,2015,110.44,130691,25/02/2015,FPIN,BUNZL CLEANING & HYGIENE SUPPLIES,
Purchasing & Supply,2024,Cleaning Equipment,Dettol Surface Cleaner 500ml,12,2015,10.5,130691,25/02/2015,FPIN,BUNZL CLEANING & HYGIENE SUPPLIES,
Purchasing & Supply,2024,Cleaning Equipment,Lifeguard 3 Way Cleaner 1L,12,2015,4.08,130691,25/02/2015,FPIN,BUNZL CLEANING & HYGIENE SUPPLIES,
Purchasing & Supply,2024,Cleaning Equipment,Toilet Paper 4476 Scott 2 Ply,12,2015,45.6,130691,25/02/2015,FPIN,BUNZL CLEANING & HYGIENE SUPPLIES,
Purchasing & Supply,2024,Cleaning Equipment,Dishwasher powder Bryta 5kg,12,2015,4.32,130692,26/02/2015,FPIN,BUNZL CLEANING & HYGIENE SUPPLIES,
Purchasing & Supply,2024,Cleaning Equipment,Glove Rubber H/Hold Yell Med,12,2015,0.74,130692,26/02/2015,FPIN,BUNZL CLEANING & HYGIENE SUPPLIES,
Purchasing & Supply,2024,Cleaning Equipment,Heavy Duty Degreaser 5L,12,2015,14.76,130692,26/02/2015,FPIN,BUNZL CLEANING & HYGIENE SUPPLIES,
Purchasing & Supply,2024,Cleaning Equipment,"Towel,6661, White K/Clark",12,2015,138.05,130692,26/02/2015,FPIN,BUNZL CLEANING & HYGIENE SUPPLIES,
Purchasing & Supply,2024,Cleaning Equipment,Glove Rubber H/Hold Yell Lge,12,2015,1.11,130692,26/02/2015,FPIN,BUNZL CLEANING & HYGIENE SUPPLIES,
Purchasing & Supply,2024,Cleaning Equipment,Sponge Large (Car),12,2015,5.64,130692,26/02/2015,FPIN,BUNZL CLEANING & HYGIENE SUPPLIES,
Purchasing & Supply,2024,Cleaning Equipment,Detergent General Purpose 5Ltr,12,2015,20.72,130692,26/02/2015,FPIN,BUNZL CLEANING & HYGIENE SUPPLIES,
Purchasing & Supply,2024,Cleaning Equipment,Dettol Surface Cleaner 500ml,12,2015,10.5,130692,26/02/2015,FPIN,BUNZL CLEANING & HYGIENE SUPPLIES,
Catering,2017,Canteen Equipment,Scour Pad Grn 225X150Mm Pk10,12,2015,2.26,130692,26/02/2015,FPIN,BUNZL CLEANING & HYGIENE SUPPLIES,
Purchasing & Supply,1310,Cleaning products,Dishwasher powder Bryta 5kg,12,2015,22.18,130692,26/02/2015,FPIN,BUNZL CLEANING & HYGIENE SUPPLIES,
Catering,190,Casual and Temporary Staff,Casual and Temporary Staff,12,2015,239.4,130693,04/03/2015,FPIN,ADECCO UK LTD,
Training,702,External Training - L&D Panel,External Training - L&D Panel,12,2015,985,130694,09/03/2015,FPIN,FIRE SERVICE COLLEGE LIMITED,
Training,4111,Subsistence Allowances,Subsistence Allowances,12,2015,260,130694,09/03/2015,FPIN,FIRE SERVICE COLLEGE LIMITED,
Property Services,1050,Building Maintenance,Kit Room.  Exterior Door.  Loc,12,2015,114.38,130695,10/03/2015,FPIN,BLAKE CONTRACTORS LTD,
Property Services,1499,Furniture and Fittings,To supply a 20 key keybox with,12,2015,86.95,130696,10/03/2015,FPIN,BRENTWOOD LOCK & SAFE CO LTD,
Emergency Planning & Civil Protection,4009,Operational Support Costs,1 Nights Accomodation for Just,12,2015,65,130702,17/12/2014,FPIN,FIRE SERVICE COLLEGE LIMITED,
Property Services,1050,Building Maintenance,To replace Andrews gas fired w,12,2015,7854.15,130703,06/03/2015,FPIN,BALM & DAVIES LTD,
Property Services,1050,Building Maintenance,REPLACE PRESSURE/TEMP VALVE,12,2015,499.86,130703,06/03/2015,FPIN,BALM & DAVIES LTD,
Property Services,1050,Building Maintenance,Appliance bay: To remedy defec,12,2015,591.74,130704,06/03/2015,FPIN,BALM & DAVIES LTD,
Property Services,1050,Building Maintenance,Heating: to investigate issues,12,2015,881.8,130705,06/03/2015,FPIN,BALM & DAVIES LTD,
Property Services,1050,Building Maintenance,Kitchen.  Hot tap.  Low flow r,12,2015,685.49,130706,06/03/2015,FPIN,BALM & DAVIES LTD,
Purchasing & Supply,2024,Cleaning Equipment,"Towel,6661, White K/Clark",12,2015,55.22,130707,26/02/2015,FPIN,BUNZL CLEANING & HYGIENE SUPPLIES,
Purchasing & Supply,2024,Cleaning Equipment,Detergent General Purpose 5Ltr,12,2015,10.36,130707,26/02/2015,FPIN,BUNZL CLEANING & HYGIENE SUPPLIES,
Purchasing & Supply,2024,Cleaning Equipment,Dettol Surface Cleaner 500ml,12,2015,7,130707,26/02/2015,FPIN,BUNZL CLEANING & HYGIENE SUPPLIES,
Purchasing & Supply,2024,Cleaning Equipment,Disinfect Pine Freshline 5Lt,12,2015,5.72,130707,26/02/2015,FPIN,BUNZL CLEANING & HYGIENE SUPPLIES,
Purchasing & Supply,2024,Cleaning Equipment,Lifeguard 3 Way Cleaner 1L,12,2015,8.16,130707,26/02/2015,FPIN,BUNZL CLEANING & HYGIENE SUPPLIES,
Purchasing & Supply,2024,Cleaning Equipment,Bleach Liquid 4.5% (Freshline),12,2015,5.88,130707,26/02/2015,FPIN,BUNZL CLEANING & HYGIENE SUPPLIES,
Purchasing & Supply,2024,Cleaning Equipment,Tea Towel White 475 X 725Mm,12,2015,2.45,130707,26/02/2015,FPIN,BUNZL CLEANING & HYGIENE SUPPLIES,
Purchasing & Supply,1310,Cleaning products,Descaler Viakal Trig 750Ml ,12,2015,3.44,130707,26/02/2015,FPIN,BUNZL CLEANING & HYGIENE SUPPLIES,
Purchasing & Supply,1310,Cleaning products,Bryta Dishwasher Powder 5KG (E,12,2015,22.18,130708,25/02/2015,FPIN,BUNZL CLEANING & HYGIENE SUPPLIES,
Purchasing & Supply,2024,Cleaning Equipment,Yard Broom Bassine 13/33CM (EA,12,2015,1.91,130708,25/02/2015,FPIN,BUNZL CLEANING & HYGIENE SUPPLIES,
Purchasing & Supply,2024,Cleaning Equipment,Cleanline Thin Bleach 4.5% 5L ,12,2015,5.88,130708,25/02/2015,FPIN,BUNZL CLEANING & HYGIENE SUPPLIES,
Purchasing & Supply,2024,Cleaning Equipment,6663 Scott Performance Hand To,12,2015,82.83,130708,25/02/2015,FPIN,BUNZL CLEANING & HYGIENE SUPPLIES,
Purchasing & Supply,2024,Cleaning Equipment,Handle Pine 60x1 1/8 (EA) 15.1,12,2015,1.35,130708,25/02/2015,FPIN,BUNZL CLEANING & HYGIENE SUPPLIES,
Purchasing & Supply,2024,Cleaning Equipment,Cleanline Pine Disinfectant QA,12,2015,2.86,130708,25/02/2015,FPIN,BUNZL CLEANING & HYGIENE SUPPLIES,
Purchasing & Supply,2024,Cleaning Equipment,Cleanline Heavy Duty Degreaser,12,2015,19.68,130708,25/02/2015,FPIN,BUNZL CLEANING & HYGIENE SUPPLIES,
Catering,190,Casual and Temporary Staff,Casual and Temporary Staff,12,2015,59.85,130710,04/03/2015,FPIN,ADECCO UK LTD,
Training,702,External Training - L&D Panel,External Training - L&D Panel,12,2015,3950,130711,09/03/2015,FPIN,FIRE SERVICE COLLEGE LIMITED,
Training,4111,Subsistence Allowances,Subsistence Allowances,12,2015,650,130711,09/03/2015,FPIN,FIRE SERVICE COLLEGE LIMITED,
Training,4111,Subsistence Allowances,Subsistence Allowances,12,2015,325,130712,09/03/2015,FPIN,FIRE SERVICE COLLEGE LIMITED,
Training,702,External Training - L&D Panel,External Training - L&D Panel,12,2015,1975,130712,09/03/2015,FPIN,FIRE SERVICE COLLEGE LIMITED,
Property Services,1499,Furniture and Fittings,Ongar Fire Station,12,2015,86.95,130713,10/03/2015,FPIN,BRENTWOOD LOCK & SAFE CO LTD,
Property Services,1499,Furniture and Fittings,Kelvedon Park,12,2015,173.9,130713,10/03/2015,FPIN,BRENTWOOD LOCK & SAFE CO LTD,
Property Services,1499,Furniture and Fittings,Harlow Central Fire Station,12,2015,86.95,130713,10/03/2015,FPIN,BRENTWOOD LOCK & SAFE CO LTD,
Property Services,1050,Building Maintenance,Glass House and Manor House.  ,12,2015,1009.03,130715,06/03/2015,FPIN,BALM & DAVIES LTD,
Property Services,4003,Postage & Direct Mailing,FRANKING MACHINE CREDIT,12,2015,1000,130716,11/03/2015,FPIN,NEOPOST LTD CREDIFON RCCB ACCOUNT,
Community Safety,4019,Community Safety,EXPENSES,12,2015,39.75,130717,08/03/2015,FPIN,CHRISTINA WATERS,
Property Services,1499,Furniture and Fittings,To undertake a full furniture ,12,2015,11000,130718,28/02/2015,FPIN,PRIMARY OFFICE FURNITURE SERVICES LTD,
Property Services,1499,Furniture and Fittings,To collect desk high two door ,12,2015,170,130719,28/02/2015,FPIN,PRIMARY OFFICE FURNITURE SERVICES LTD,
ICT,4005,IT Consumables,130720 Hutton to Ongar comms,12,2015,450,130720,28/02/2015,FPIN,PRIMARY OFFICE FURNITURE SERVICES LTD,
Not Analysed,B112,Fixed Assets Under Construction Land & Buildings, Hutton to Ongar Comms,12,2015,450,130720,28/02/2015,FPIN,PRIMARY OFFICE FURNITURE SERVICES LTD,
Not Analysed,B112,Fixed Assets Under Construction Land & Buildings,130720 trf to revenue 9505,12,2015,-450,130720,28/02/2015,FPIN,PRIMARY OFFICE FURNITURE SERVICES LTD,
Property Services,1499,Furniture and Fittings,To deliver lockers to the firs,12,2015,100,130721,28/02/2015,FPIN,PRIMARY OFFICE FURNITURE SERVICES LTD,
Property Services,1499,Furniture and Fittings,Basildon SDP,12,2015,50,130722,28/02/2015,FPIN,PRIMARY OFFICE FURNITURE SERVICES LTD,
Property Services,1499,Furniture and Fittings,Ongar Fire Station,12,2015,100,130722,28/02/2015,FPIN,PRIMARY OFFICE FURNITURE SERVICES LTD,
Property Services,1499,Furniture and Fittings,Tillingham Fire Station,12,2015,425,130722,28/02/2015,FPIN,PRIMARY OFFICE FURNITURE SERVICES LTD,
Property Services,1499,Furniture and Fittings,Billericay Fire Station,12,2015,50,130722,28/02/2015,FPIN,PRIMARY OFFICE FURNITURE SERVICES LTD,
Property Services,1499,Furniture and Fittings,Kelvedon Park,12,2015,115,130722,28/02/2015,FPIN,PRIMARY OFFICE FURNITURE SERVICES LTD,
Property Services,1499,Furniture and Fittings,To dispose redundant Furniture,12,2015,300,130723,28/02/2015,FPIN,PRIMARY OFFICE FURNITURE SERVICES LTD,
Property Services,1499,Furniture and Fittings,To carry out full furniture st,12,2015,130,130723,28/02/2015,FPIN,PRIMARY OFFICE FURNITURE SERVICES LTD,
Property Services,4003,Postage & Direct Mailing,Mar-15,12,2015,291.25,130724,26/02/2015,FPIN,ROYAL MAIL GROUP PLC,
Training,702,External Training - L&D Panel,External Training - L&D Panel,12,2015,350,130725,23/02/2015,FPIN,LIKE LIMITED,
Training,702,External Training - L&D Panel,External Training - L&D Panel,12,2015,85.1,130725,23/02/2015,FPIN,LIKE LIMITED,
Property Services,1499,Furniture and Fittings,Hire of crates,12,2015,294,130726,28/02/2015,FPIN,MASTERCRATE LTD,
ICT,190,Casual and Temporary Staff,Casual and Temporary Staff,12,2015,2220,130727,27/02/2015,FPIN,MANAGED RESOURCE LTD,
ICT,190,Casual and Temporary Staff,Casual and Temporary Staff,12,2015,2220,130727,27/02/2015,FPIN,MANAGED RESOURCE LTD,
ICT,190,Casual and Temporary Staff,Casual and Temporary Staff,12,2015,1776,130727,27/02/2015,FPIN,MANAGED RESOURCE LTD,
ICT,190,Casual and Temporary Staff,Casual and Temporary Staff,12,2015,1998,130727,27/02/2015,FPIN,MANAGED RESOURCE LTD,
Not Analysed,B114,Fixed Assets Under Construction ITC Equipment,Rita Obatolu WE 6 February 201,12,2015,3050,130728,27/02/2015,FPIN,MANAGED RESOURCE LTD,
Not Analysed,B114,Fixed Assets Under Construction ITC Equipment,Rita Obatolu WE 13 February 20,12,2015,2440,130728,27/02/2015,FPIN,MANAGED RESOURCE LTD,
Not Analysed,B114,Fixed Assets Under Construction ITC Equipment,Rita Obatolu WE 20 February 20,12,2015,3050,130728,27/02/2015,FPIN,MANAGED RESOURCE LTD,
Not Analysed,B114,Fixed Assets Under Construction ITC Equipment,Rita Obatolu WE 27 February 20,12,2015,3050,130728,27/02/2015,FPIN,MANAGED RESOURCE LTD,
ICT,190,Casual and Temporary Staff,Casual and Temporary Staff,12,2015,2250,130729,27/02/2015,FPIN,MANAGED RESOURCE LTD,
ICT,190,Casual and Temporary Staff,Casual and Temporary Staff,12,2015,2250,130729,27/02/2015,FPIN,MANAGED RESOURCE LTD,
ICT,190,Casual and Temporary Staff,Casual and Temporary Staff,12,2015,1350,130729,27/02/2015,FPIN,MANAGED RESOURCE LTD,
ICT,190,Casual and Temporary Staff,Casual and Temporary Staff,12,2015,2250,130729,27/02/2015,FPIN,MANAGED RESOURCE LTD,
ICT,190,Casual and Temporary Staff,Casual and Temporary Staff,12,2015,-8100,130729,27/02/2015,FPIN,MANAGED RESOURCE LTD,
ITTP Development,190,Casual and Temporary Staff,Casual and Temporary Staff,12,2015,8100,130729,27/02/2015,FPIN,MANAGED RESOURCE LTD,
Purchasing & Supply,190,Casual and Temporary Staff,Casual and Temporary Staff,12,2015,415.2,130730,09/03/2015,FPIN,SUCCESS RECRUIT LIMITED,
Purchasing & Supply,190,Casual and Temporary Staff,Casual and Temporary Staff,12,2015,485.1,130731,09/03/2015,FPIN,SUCCESS RECRUIT LIMITED,
Purchasing & Supply,190,Casual and Temporary Staff,Casual and Temporary Staff,12,2015,357.9,130732,09/03/2015,FPIN,SUCCESS RECRUIT LIMITED,
Property Services,1040,Planned Works,Rear of Station: To clear back,12,2015,122.82,130733,06/03/2015,FPIN,NORMAN DAVID MAINTENANCE,
Property Services,1050,Building Maintenance,Riser Cupboards first and seco,12,2015,90,130734,06/03/2015,FPIN,NORMAN DAVID MAINTENANCE,
Property Services,1050,Building Maintenance,Shed. Renew roof decking and f,12,2015,162,130735,06/03/2015,FPIN,NORMAN DAVID MAINTENANCE,
Safer Comms Admin,190,Casual and Temporary Staff,Casual and Temporary Staff,12,2015,399.6,130736,27/02/2015,FPIN,REED SPECIALIST RECRUITMENT LIMITED,
Safer Comms Admin,190,Casual and Temporary Staff,Casual and Temporary Staff,12,2015,488.35,130737,27/02/2015,FPIN,REED SPECIALIST RECRUITMENT LIMITED,
Operations,190,Casual and Temporary Staff,Casual and Temporary Staff,12,2015,440.14,130738,27/02/2015,FPIN,REED SPECIALIST RECRUITMENT LIMITED,
Finance & Pay,190,Casual and Temporary Staff,Casual and Temporary Staff,12,2015,631.22,130739,27/02/2015,FPIN,REED SPECIALIST RECRUITMENT LIMITED,
ICT,2510,IT Comms,Manx MTPAS - February 2015,12,2015,16.66,130740,28/02/2015,FPIN,M2M INTELLIGENCE LIMITED,
Technical Services,2085,Breathing Apparatus,Y16415 Suction Spring,12,2015,30.24,130741,06/03/2015,FPIN,REVOLUTION AIR SERVICES LTD,
Technical Services,2085,Breathing Apparatus,Y16411 Delivery Valve Spring,12,2015,6.74,130741,06/03/2015,FPIN,REVOLUTION AIR SERVICES LTD,
Technical Services,2085,Breathing Apparatus,Y16414 Suction Plate,12,2015,23.88,130741,06/03/2015,FPIN,REVOLUTION AIR SERVICES LTD,
Technical Services,2085,Breathing Apparatus,Y16413 Valve Seat,12,2015,42.9,130741,06/03/2015,FPIN,REVOLUTION AIR SERVICES LTD,
Bag. Personal Equipment.,B205,Stocks & WIP (Purchasing & Supply Stores),Bag. Personal Equipment.,12,2015,575,130742,04/03/2015,FPIN,SPEEDINGS LTD,
Freight Misc,B205,Stocks & WIP (Purchasing & Supply Stores),Freight Misc,12,2015,14,130742,04/03/2015,FPIN,SPEEDINGS LTD,
Property Services,1050,Building Maintenance,BA Chamber: To repair faulty s,12,2015,195,130743,28/02/2015,FPIN,L & D SERVICES LTD,
Property Services,1050,Building Maintenance,BA Chamber: To repair faulty s,12,2015,195,130743,28/02/2015,FPIN,L & D SERVICES LTD,
Property Services,1050,Building Maintenance,BA Chamber: To repair faulty s,12,2015,-195,130743,28/02/2015,FPIN,L & D SERVICES LTD,
Sparkle Dishwasher Detergent,B205,Stocks & WIP (Purchasing & Supply Stores),Sparkle 2000 Dishwasher Deterg,12,2015,92,130744,06/03/2015,FPIN,SPARKLE UK LTD,
Toner Black for Laserjet MFP 575,B205,Stocks & WIP (Purchasing & Supply Stores),CE400X Toner Black HP507X - 11,12,2015,248.48,130745,06/03/2015,FPIN,XMA LIMITED,
Toner Cyan for Laserjet MFP 575,B205,Stocks & WIP (Purchasing & Supply Stores),CE401A Cyan Toner HP507A - 600,12,2015,132.78,130745,06/03/2015,FPIN,XMA LIMITED,
Cartridge C4906A Black,B205,Stocks & WIP (Purchasing & Supply Stores),HP 940XL Cartridge C4906A Blac,12,2015,38.94,130745,06/03/2015,FPIN,XMA LIMITED,
ICT,4005,IT Consumables,GRIFFIN SURVIVOR SLIM IPAD AIR,12,2015,193.56,130746,05/03/2015,FPIN,KELWAY UK LTD,
Technical Services,2030,Operational Equipment Support,MRS Storm King tent as your qu,12,2015,2025,130747,04/03/2015,FPIN,THE OUTDOORS COMPANY,
Technical Services,2030,Operational Equipment Support,Delivery,12,2015,17.98,130747,04/03/2015,FPIN,THE OUTDOORS COMPANY,
Purchases,B207,Stocks & WIP (Fleet Stores),WSD 93710,12,2015,5.17,130748,04/03/2015,FPIN,TRUCKEAST LTD,
Purchases,B207,Stocks & WIP (Fleet Stores),WSD 93590,12,2015,15.06,130749,20/02/2015,FPIN,UNDERWOODS OF COLCHESTER VAUXHALL,
Purchases,B207,Stocks & WIP (Fleet Stores),WSD 93694,12,2015,10,130750,18/02/2015,FPIN,SAFETY KLEEN UK LTD,
Purchases,B207,Stocks & WIP (Fleet Stores),WSD 93366,12,2015,83.32,130751,23/01/2015,FPIN,R S COMPONENTS LTD,
Purchases,B207,Stocks & WIP (Fleet Stores),WSD 93366,12,2015,258.75,130752,21/01/2015,FPIN,R S COMPONENTS LTD,
Purchases,B207,Stocks & WIP (Fleet Stores),WSD 93707,12,2015,12.18,130753,03/03/2015,FPIN,LOOKERS FORD,
Purchases,B207,Stocks & WIP (Fleet Stores),WSD 93683,12,2015,47.39,130754,03/03/2015,FPIN,MORELLI GROUP LTD,
Purchases,B207,Stocks & WIP (Fleet Stores),WSD 93719,12,2015,26.04,130755,02/03/2015,FPIN,MORELLI GROUP LTD,
Purchases,B207,Stocks & WIP (Fleet Stores),WSD 93619,12,2015,35.26,130756,20/02/2015,FPIN,MORELLI GROUP LTD,
Purchasing & Supply,2303,Clothing & Footwear,WSD 93619,12,2015,30.6,130756,20/02/2015,FPIN,MORELLI GROUP LTD,
Purchases,B207,Stocks & WIP (Fleet Stores),WSD 93615,12,2015,47.44,130757,20/02/2015,FPIN,MORELLI GROUP LTD,
Purchases,B207,Stocks & WIP (Fleet Stores),WSD 93644,12,2015,36,130758,24/02/2015,FPIN,R S COMPONENTS LTD,
Purchases,B207,Stocks & WIP (Fleet Stores),WSD 93707,12,2015,8.62,130759,03/03/2015,FPIN,LOOKERS FORD,
Purchases,B207,Stocks & WIP (Fleet Stores),WSD 93592 / WSA 93593,12,2015,46.6,130760,18/02/2015,FPIN,MOTOR PARTS DIRECT,
Purchases,B207,Stocks & WIP (Fleet Stores),WSA 93724,12,2015,47.96,130761,18/02/2015,FPIN,MOTOR PARTS DIRECT,
Purchases,B207,Stocks & WIP (Fleet Stores),WSD 93637,12,2015,1.26,130762,23/02/2015,FPIN,MOTOR PARTS DIRECT,
Purchases,B207,Stocks & WIP (Fleet Stores),CREDIT FPIN130760,12,2015,-16.76,130763,27/02/2015,FPIN,MOTOR PARTS DIRECT,
Workshop Engineering,2070,Tools & Light Equipment,WSD 93701,12,2015,216.94,130764,03/03/2015,FPIN,MOTOR PARTS DIRECT,
Purchases,B207,Stocks & WIP (Fleet Stores),WSA93700,12,2015,341.79,130765,03/03/2015,FPIN,MOTOR PARTS DIRECT,
Purchases,B207,Stocks & WIP (Fleet Stores),WSD 93525,12,2015,5.95,130766,10/02/2015,FPIN,GEMCO EQUIPMENT LTD,
Workshop Engineering,2071,Calibration of Equipment,WSD 93525,12,2015,453.71,130766,10/02/2015,FPIN,GEMCO EQUIPMENT LTD,
Purchases,B207,Stocks & WIP (Fleet Stores),WSD 93634,12,2015,495,130767,18/02/2015,FPIN,GASBAY,
Purchases,B207,Stocks & WIP (Fleet Stores),CREDIT FPIN 130752 / WSD93366,12,2015,-83.32,130768,27/01/2015,FPIN,R S COMPONENTS LTD,
Workshops Management,3320,Purchase of Machinery & Plant,WSD 93664,12,2015,399.12,130769,27/02/2015,FPIN,CUMMINS UK,
Purchases,B207,Stocks & WIP (Fleet Stores),CREDIT FPIN 129023 / WSD93405,12,2015,-28.61,130770,20/02/2015,FPIN,ANDREW PAGE LIMITED,
Catering,4130,Hospitality & Entertaining,KP - MESSCLUB,12,2015,100.05,130771,02/03/2015,FPIN,TYNDALLS BAKERY,
Catering,4130,Hospitality & Entertaining,KP - MESSCLUB,12,2015,34.2,130772,05/03/2015,FPIN,KENT FROZEN FOODS LIMITED,
Catering,4130,Hospitality & Entertaining,KP - MESSCLUB,12,2015,85.35,130773,09/03/2015,FPIN,KENT FROZEN FOODS LIMITED,
Catering,4130,Hospitality & Entertaining,KP -MESSCLUB,12,2015,109.69,130774,09/03/2015,FPIN,DIRECT MEATS,
Catering,4130,Hospitality & Entertaining,KP - MESSCLUB,12,2015,124.51,130775,11/03/2015,FPIN,DIRECT MEATS,
Catering,4130,Hospitality & Entertaining,CREDIT FPIN 130300,12,2015,-13.66,130776,26/02/2015,FPIN,H&J FOODS LTD T/A OLYMPIC FOODS,
Catering,4130,Hospitality & Entertaining,KP - MESSCLUB,12,2015,187.94,130777,06/03/2015,FPIN,H&J FOODS LTD T/A OLYMPIC FOODS,
Catering,4130,Hospitality & Entertaining,KP - MESSCLUB,12,2015,190.16,130778,12/03/2015,FPIN,H&J FOODS LTD T/A OLYMPIC FOODS,
Catering,190,Casual and Temporary Staff,Casual and Temporary Staff,12,2015,-223,130779,11/03/2015,FPIN,KILOFORCE LTD T/A GBN,
Catering,190,Casual and Temporary Staff,Casual and Temporary Staff,12,2015,223,130779,11/03/2015,FPIN,KILOFORCE LTD T/A GBN,
Catering,190,Casual and Temporary Staff,Casual and Temporary Staff,12,2015,223,130779,11/03/2015,FPIN,KILOFORCE LTD T/A GBN,
Catering,190,Casual and Temporary Staff,Casual and Temporary Staff,12,2015,316.98,130779,11/03/2015,FPIN,KILOFORCE LTD T/A GBN,
Not Analysed,B114,Fixed Assets Under Construction ITC Equipment,WE 06.02.15,12,2015,2690,130780,27/02/2015,FPIN,MANAGED RESOURCE LTD,
Not Analysed,B114,Fixed Assets Under Construction ITC Equipment,WE 13.02.15,12,2015,2690,130780,27/02/2015,FPIN,MANAGED RESOURCE LTD,
Not Analysed,B114,Fixed Assets Under Construction ITC Equipment,WE 25.02.15,12,2015,1614,130780,27/02/2015,FPIN,MANAGED RESOURCE LTD,
ICT,4005,IT Consumables,INTEGRAL 4GB INTEGRAL CRYPTO 2,12,2015,369.8,130781,11/03/2015,FPIN,KELWAY UK LTD,
ICT,4005,IT Consumables,KENSINGTON KEYFOLIO PRO WITH R,12,2015,615.8,130782,09/03/2015,FPIN,KELWAY UK LTD,
Not Analysed,B112,Fixed Assets Under Construction Land & Buildings,1112/267  Fees relating to Pha,12,2015,7012.5,130783,27/02/2015,FPIN,BOND BRYAN ARCHITECTS,
Technical Services,2085,Breathing Apparatus,Medium Pressure Hose 3338316,12,2015,29.42,130784,05/03/2015,FPIN,DRAEGER SAFETY UK LTD,
Property Services,1060,Grounds Maintenance,Grounds Maintenance Contract -,12,2015,1557.6,130785,28/02/2015,FPIN,C R SWIFT LANDSCAPING LTD,
Property Services,1050,Building Maintenance,Single main door: OOH call out,12,2015,209.42,130786,11/03/2015,FPIN,BLAKE CONTRACTORS LTD,
Purchasing & Supply,190,Casual and Temporary Staff,Casual and Temporary Staff,12,2015,480,130787,02/03/2015,FPIN,A & J RECRUITMENT LTD,
Human Resources,4112,Conferences & Seminars,Working Time Solutions Forum 1,12,2015,495,130788,11/03/2015,FPIN,WORKING TIME SOLUTIONS LIMITED,
Property Services,190,Casual and Temporary Staff,Casual and Temporary Staff,12,2015,196.02,130789,06/03/2015,FPIN,PURSUIT RECRUITMENT LTD,
Property Services,190,Casual and Temporary Staff,Casual and Temporary Staff,12,2015,299.97,130790,06/03/2015,FPIN,PURSUIT RECRUITMENT LTD,
Property Services,190,Casual and Temporary Staff,Casual and Temporary Staff,12,2015,475.2,130791,06/03/2015,FPIN,PURSUIT RECRUITMENT LTD,
Property Services,1050,Building Maintenance,FF37/38 to repair 2no window s,12,2015,675,130792,11/03/2015,FPIN,WINDOW SHADING SYSTEMS LIMITED,
Workshops Management,3050,Leasing Charges,Leasing Charges,12,2015,13.38,130793,08/03/2015,FPIN,LEX AUTOLEASE LTD,
Property Services,1040,Planned Works,Basildon,12,2015,242.36,130794,10/03/2015,FPIN,BALM & DAVIES LTD,
Property Services,1040,Planned Works,Billericay,12,2015,167.46,130794,10/03/2015,FPIN,BALM & DAVIES LTD,
Property Services,1040,Planned Works,Braintree SDP,12,2015,102.05,130794,10/03/2015,FPIN,BALM & DAVIES LTD,
Property Services,1040,Planned Works,USAR,12,2015,158.36,130794,10/03/2015,FPIN,BALM & DAVIES LTD,
Property Services,1040,Planned Works,Weeley,12,2015,164.78,130794,10/03/2015,FPIN,BALM & DAVIES LTD,
Property Services,1040,Planned Works,Wethersfield,12,2015,157.83,130794,10/03/2015,FPIN,BALM & DAVIES LTD,
Property Services,1040,Planned Works,Wivenhoe,12,2015,132.95,130794,10/03/2015,FPIN,BALM & DAVIES LTD,
Property Services,1040,Planned Works,Tiptree,12,2015,117.97,130794,10/03/2015,FPIN,BALM & DAVIES LTD,
Property Services,1040,Planned Works,Witham,12,2015,179.76,130794,10/03/2015,FPIN,BALM & DAVIES LTD,
Property Services,1040,Planned Works,Rayleigh Weir,12,2015,409.01,130794,10/03/2015,FPIN,BALM & DAVIES LTD,
Property Services,1040,Planned Works,Saffron Walden,12,2015,153.28,130794,10/03/2015,FPIN,BALM & DAVIES LTD,
Property Services,1040,Planned Works,Sible Hedingham,12,2015,136.96,130794,10/03/2015,FPIN,BALM & DAVIES LTD,
Property Services,1040,Planned Works,SWF Community Safety,12,2015,91.75,130794,10/03/2015,FPIN,BALM & DAVIES LTD,
Property Services,1040,Planned Works,Southend SDP,12,2015,115.7,130794,10/03/2015,FPIN,BALM & DAVIES LTD,
Property Services,1040,Planned Works,Thaxted,12,2015,132.95,130794,10/03/2015,FPIN,BALM & DAVIES LTD,
Property Services,1040,Planned Works,Waltham Abbey,12,2015,179.23,130794,10/03/2015,FPIN,BALM & DAVIES LTD,
Property Services,1040,Planned Works,West Mersea,12,2015,132.58,130794,10/03/2015,FPIN,BALM & DAVIES LTD,
Property Services,1040,Planned Works,Wickford,12,2015,150.87,130794,10/03/2015,FPIN,BALM & DAVIES LTD,
Property Services,1040,Planned Works,Workshops ,12,2015,293.98,130794,10/03/2015,FPIN,BALM & DAVIES LTD,
Property Services,1040,Planned Works,Old Harlow,12,2015,131.08,130794,10/03/2015,FPIN,BALM & DAVIES LTD,
Property Services,1040,Planned Works,Orsett,12,2015,117.56,130794,10/03/2015,FPIN,BALM & DAVIES LTD,
Property Services,1040,Planned Works,South Woodham Ferrers,12,2015,91.76,130794,10/03/2015,FPIN,BALM & DAVIES LTD,
Property Services,1040,Planned Works,Southend,12,2015,115.69,130794,10/03/2015,FPIN,BALM & DAVIES LTD,
Property Services,1040,Planned Works,Stansted,12,2015,128.67,130794,10/03/2015,FPIN,BALM & DAVIES LTD,
Property Services,1040,Planned Works,Tillingham,12,2015,127.87,130794,10/03/2015,FPIN,BALM & DAVIES LTD,
Property Services,1040,Planned Works,Tollesbury,12,2015,125.73,130794,10/03/2015,FPIN,BALM & DAVIES LTD,
Property Services,1040,Planned Works,Witham TC,12,2015,161.3,130794,10/03/2015,FPIN,BALM & DAVIES LTD,
Property Services,1040,Planned Works,Manningtree,12,2015,154.88,130794,10/03/2015,FPIN,BALM & DAVIES LTD,
Property Services,1040,Planned Works,Newport,12,2015,140.17,130794,10/03/2015,FPIN,BALM & DAVIES LTD,
Property Services,1040,Planned Works,Ongar,12,2015,174.14,130794,10/03/2015,FPIN,BALM & DAVIES LTD,
Property Services,1040,Planned Works,Orsett TC,12,2015,117.57,130794,10/03/2015,FPIN,BALM & DAVIES LTD,
Property Services,1040,Planned Works,Rochford,12,2015,138.57,130794,10/03/2015,FPIN,BALM & DAVIES LTD,
Property Services,1040,Planned Works,Shoeburyness,12,2015,113.69,130794,10/03/2015,FPIN,BALM & DAVIES LTD,
Property Services,1040,Planned Works,Ingatestone,12,2015,125.19,130794,10/03/2015,FPIN,BALM & DAVIES LTD,
Property Services,1040,Planned Works,Kelvedon Park,12,2015,184.84,130794,10/03/2015,FPIN,BALM & DAVIES LTD,
Property Services,1040,Planned Works,Leadon Roding,12,2015,130.01,130794,10/03/2015,FPIN,BALM & DAVIES LTD,
Property Services,1040,Planned Works,Leigh,12,2015,246.64,130794,10/03/2015,FPIN,BALM & DAVIES LTD,
Property Services,1040,Planned Works,Loughton,12,2015,200.89,130794,10/03/2015,FPIN,BALM & DAVIES LTD,
Property Services,1040,Planned Works,Maldon,12,2015,191,130794,10/03/2015,FPIN,BALM & DAVIES LTD,
Property Services,1040,Planned Works,Great Baddow,12,2015,181.37,130794,10/03/2015,FPIN,BALM & DAVIES LTD,
Property Services,1040,Planned Works,Halstead,12,2015,115.83,130794,10/03/2015,FPIN,BALM & DAVIES LTD,
Property Services,1040,Planned Works,Harlow,12,2015,295.86,130794,10/03/2015,FPIN,BALM & DAVIES LTD,
Property Services,1040,Planned Works,WAC,12,2015,199.29,130794,10/03/2015,FPIN,BALM & DAVIES LTD,
Property Services,1040,Planned Works,Hawkwell,12,2015,149.8,130794,10/03/2015,FPIN,BALM & DAVIES LTD,
Property Services,1040,Planned Works,Hutton,12,2015,304.95,130794,10/03/2015,FPIN,BALM & DAVIES LTD,
Property Services,1040,Planned Works,Dovercourt,12,2015,173.07,130794,10/03/2015,FPIN,BALM & DAVIES LTD,
Property Services,1040,Planned Works,Dunmow,12,2015,141.78,130794,10/03/2015,FPIN,BALM & DAVIES LTD,
Property Services,1040,Planned Works,Epping,12,2015,113.96,130794,10/03/2015,FPIN,BALM & DAVIES LTD,
Property Services,1040,Planned Works,Frinton,12,2015,159.43,130794,10/03/2015,FPIN,BALM & DAVIES LTD,
Property Services,1040,Planned Works,Grays ,12,2015,140.17,130794,10/03/2015,FPIN,BALM & DAVIES LTD,
Property Services,1040,Planned Works,Grays SDP,12,2015,140.17,130794,10/03/2015,FPIN,BALM & DAVIES LTD,
Property Services,1040,Planned Works,Chemlsford TC,12,2015,163.98,130794,10/03/2015,FPIN,BALM & DAVIES LTD,
Property Services,1040,Planned Works,Clacton,12,2015,184.04,130794,10/03/2015,FPIN,BALM & DAVIES LTD,
Property Services,1040,Planned Works,Coggeshall,12,2015,154.88,130794,10/03/2015,FPIN,BALM & DAVIES LTD,
Property Services,1040,Planned Works,Colchester,12,2015,183.77,130794,10/03/2015,FPIN,BALM & DAVIES LTD,
Property Services,1040,Planned Works,Corringham,12,2015,60.45,130794,10/03/2015,FPIN,BALM & DAVIES LTD,
Property Services,1040,Planned Works,Corringham Community Safety Ce,12,2015,60.46,130794,10/03/2015,FPIN,BALM & DAVIES LTD,
Property Services,1040,Planned Works,Braintree,12,2015,102.05,130794,10/03/2015,FPIN,BALM & DAVIES LTD,
Property Services,1040,Planned Works,Brentwood,12,2015,240.75,130794,10/03/2015,FPIN,BALM & DAVIES LTD,
Property Services,1040,Planned Works,Brightlingsea,12,2015,130.01,130794,10/03/2015,FPIN,BALM & DAVIES LTD,
Property Services,1040,Planned Works,Burnham,12,2015,121.18,130794,10/03/2015,FPIN,BALM & DAVIES LTD,
Property Services,1040,Planned Works,Canvey,12,2015,223.1,130794,10/03/2015,FPIN,BALM & DAVIES LTD,
Property Services,1040,Planned Works,Chemsford,12,2015,182.44,130794,10/03/2015,FPIN,BALM & DAVIES LTD,
Purchases,B207,Stocks & WIP (Fleet Stores),CREDIT FPIN 130321/WSD93669,12,2015,-8.51,130796,09/03/2015,FPIN,W F SENATE,
Purchases,B207,Stocks & WIP (Fleet Stores),WSD93725,12,2015,3.3,130797,09/03/2015,FPIN,W F SENATE,
Workshops Management,3201,Petrol and Diesel,Petrol and Diesel,12,2015,1698.33,130819,09/03/2015,FPIN,HALL FUELS,
Catering,2017,Canteen Equipment,Call Out Charge for Mach dishw,12,2015,129.95,130820,05/03/2015,FPIN,BUZZ SUPPLIES LTD,
Property Services,1050,Building Maintenance,Control: Replace 4no Sounder B,12,2015,312,130821,11/03/2015,FPIN,BLAKE CONTRACTORS LTD,
Property Services,1040,Planned Works,Wetherfield TC,12,2015,51,130822,11/03/2015,FPIN,BLAKE CONTRACTORS LTD,
Property Services,1050,Building Maintenance,To attend site to investigate ,12,2015,228.67,130823,02/03/2015,FPIN,A T B PLUMBING & BUILDING SERVICES LTD,
Property Services,1499,Furniture and Fittings,W8541,12,2015,5.2,130825,11/03/2015,FPIN,FAST KEY SERVICES LTD,
Property Services,1499,Furniture and Fittings,W6355,12,2015,6.2,130825,11/03/2015,FPIN,FAST KEY SERVICES LTD,
Community Safety,4019,Community Safety,EXPENSES - FEB,12,2015,68.85,130828,12/03/2015,FPIN,MR JOHN FROMENT,
Community Safety,4019,Community Safety,EXPENSES - FEB,12,2015,5,130829,10/03/2015,FPIN,MR DAVE GROVES,
Community Safety,4019,Community Safety,EXPENSES - FEB,12,2015,223.2,130829,10/03/2015,FPIN,MR DAVE GROVES,
Purchases,B207,Stocks & WIP (Fleet Stores),WSD93396,12,2015,63.54,130830,05/03/2015,FPIN,ANDREW PAGE LIMITED,
Corporate Comms,190,Casual and Temporary Staff,Casual and Temporary Staff,12,2015,3500,130831,10/03/2015,FPIN,LAURA CADD,
Property Services,190,Casual and Temporary Staff,Casual and Temporary Staff,12,2015,592,130832,28/02/2015,FPIN,OAKPARK SECURITY SYSTEMS LIMITED,
Purchases,B207,Stocks & WIP (Fleet Stores),WSD 93715,12,2015,37.98,130833,04/03/2015,FPIN,MORELLI GROUP LTD,
Purchases,B207,Stocks & WIP (Fleet Stores),WSD 93727,12,2015,125.08,130834,05/03/2015,FPIN,MOTOR PARTS DIRECT,
Purchases,B207,Stocks & WIP (Fleet Stores),WSA93371,12,2015,183.87,130835,27/01/2015,FPIN,ANGLIA HOSE & HYDRAULICS LTD,
Purchases,B207,Stocks & WIP (Fleet Stores),WSD93632,12,2015,683.44,130836,23/02/2015,FPIN,ATS EUROMASTER LIMITED,
Purchases,B207,Stocks & WIP (Fleet Stores),WSD93656,12,2015,128.45,130837,26/02/2015,FPIN,CHASSIS-CAB LTD,
Purchases,B207,Stocks & WIP (Fleet Stores),WSD93656,12,2015,115,130838,02/03/2015,FPIN,CHASSIS-CAB LTD,
Purchases,B207,Stocks & WIP (Fleet Stores),WSD93646,12,2015,366.41,130839,26/02/2015,FPIN,COOPER COLCHESTER,
Purchases,B207,Stocks & WIP (Fleet Stores),WSD93411,12,2015,1283.1,130840,13/02/2015,FPIN,GODIVA LTD,
Purchases,B207,Stocks & WIP (Fleet Stores),WSA93650,12,2015,795.68,130841,27/02/2015,FPIN,GODIVA LTD,
Purchases,B207,Stocks & WIP (Fleet Stores),WSD93672,12,2015,128.4,130842,27/02/2015,FPIN,IPSWICH TPS,
Purchases,B207,Stocks & WIP (Fleet Stores),WSD93679,12,2015,15.1,130843,02/03/2015,FPIN,IPSWICH TPS,
Purchases,B207,Stocks & WIP (Fleet Stores),WSD93708,12,2015,205.1,130844,04/03/2015,FPIN,JOHN GROSE GROUP LTD,
Purchases,B207,Stocks & WIP (Fleet Stores),WSD93698,12,2015,12.11,130845,03/03/2015,FPIN,JOHN GROSE GROUP LTD,
Purchases,B207,Stocks & WIP (Fleet Stores),WSA93648,12,2015,126.24,130846,25/02/2015,FPIN,JOHN GROSE GROUP LTD,
Finance & Pay,4028,Bank Charges,BANK CHARGES - FEB 2015,12,2015,659,130847,05/03/2015,FPIN,LLOYDS BANK,
Purchases,B207,Stocks & WIP (Fleet Stores),WSD93706,12,2015,120,130848,03/03/2015,FPIN,727 TRUCK & VAN PARTS,
Purchases,B207,Stocks & WIP (Fleet Stores),WSD93635,12,2015,121.02,130849,24/02/2015,FPIN,727 TRUCK & VAN PARTS,
Purchases,B207,Stocks & WIP (Fleet Stores),WSD93560,12,2015,54.93,130850,25/02/2015,FPIN,R S COMPONENTS LTD,
Purchases,B207,Stocks & WIP (Fleet Stores),WSD93675,12,2015,26.66,130851,27/02/2015,FPIN,R S COMPONENTS LTD,
Purchases,B207,Stocks & WIP (Fleet Stores),WSD93399,12,2015,199.23,130852,17/02/2015,FPIN,RSG ENGINEERING LTD,
Purchases,B207,Stocks & WIP (Fleet Stores),WSD93630,12,2015,78.11,130853,17/02/2015,FPIN,RSG ENGINEERING LTD,
Purchases,B207,Stocks & WIP (Fleet Stores),WSD93663,12,2015,337.32,130854,27/02/2015,FPIN,RSG ENGINEERING LTD,
Purchases,B207,Stocks & WIP (Fleet Stores),WSD9359,12,2015,156.28,130855,22/02/2015,FPIN,SOS WORKSHOP CONSUMABLES LTD,
Purchases,B207,Stocks & WIP (Fleet Stores),WSD93501,12,2015,33.01,130856,26/02/2015,FPIN,SOS WORKSHOP CONSUMABLES LTD,
Workshop Engineering,2070,Tools & Light Equipment,WSA93617,12,2015,14,130857,26/02/2015,FPIN,SOS WORKSHOP CONSUMABLES LTD,
Purchases,B207,Stocks & WIP (Fleet Stores),WSD93686,12,2015,78.63,130858,02/03/2015,FPIN,TRUCKEAST LTD,
Purchases,B207,Stocks & WIP (Fleet Stores),WSD93687,12,2015,364,130859,03/03/2015,FPIN,TRUCKEAST LTD,
Catering,4130,Hospitality & Entertaining,SHQ MESS CLUB,12,2015,35.29,130860,10/03/2015,FPIN,DONALD FREESTON,
Catering,4130,Hospitality & Entertaining,SHQ MESS CLUB,12,2015,75.58,130861,09/03/2015,FPIN,DONALD FREESTON,
Catering,4130,Hospitality & Entertaining,SHQ MESS CLUB,12,2015,53.26,130862,06/03/2015,FPIN,DONALD FREESTON,
Catering,4130,Hospitality & Entertaining,SHQ MESS CLUB,12,2015,46.33,130863,05/03/2015,FPIN,DONALD FREESTON,
Catering,4130,Hospitality & Entertaining,SHQ MESS CLUB,12,2015,35.48,130864,12/03/2015,FPIN,DONALD FREESTON,
Catering,4130,Hospitality & Entertaining,SHQ MESS CLUB,12,2015,127.65,130865,11/03/2015,FPIN,DONALD FREESTON,
Catering,4130,Hospitality & Entertaining,SHQ MESS CLUB,12,2015,265.18,130866,10/03/2015,FPIN,H&J FOODS LTD T/A OLYMPIC FOODS,
Catering,4130,Hospitality & Entertaining,SHQ MESS CLUB,12,2015,182.83,130867,04/03/2015,FPIN,H&J FOODS LTD T/A OLYMPIC FOODS,
Purchases,B207,Stocks & WIP (Fleet Stores),WSD93690,12,2015,2,130868,03/03/2015,FPIN,ANGLIA HOSE & HYDRAULICS LTD,
Purchases,B207,Stocks & WIP (Fleet Stores),WSA93709,12,2015,161.7,130869,04/03/2015,FPIN,GENPLUS SYSTEMS LTD,
Purchases,B207,Stocks & WIP (Fleet Stores),WSA93489,12,2015,52.97,130870,04/03/2015,FPIN,GODIVA LTD,
Purchases,B207,Stocks & WIP (Fleet Stores),WSA93670,12,2015,213.4,130871,28/02/2015,FPIN,INTERFLON (UK) LTD,
Purchases,B207,Stocks & WIP (Fleet Stores),WSA93691,12,2015,126.8,130872,05/03/2015,FPIN,JOHN DENNIS COACHBUILDERS LTD,
Purchases,B207,Stocks & WIP (Fleet Stores),WSD93696,12,2015,120.43,130873,05/03/2015,FPIN,JOHN DENNIS COACHBUILDERS LTD,
Purchases,B207,Stocks & WIP (Fleet Stores),WSD93695,12,2015,128.49,130874,04/03/2015,FPIN,J R INDUSTRIES LTD,
Miscellaneous,B205,Stocks & WIP (Purchasing & Supply Stores),Delivery,12,2015,9.08,130875,17/10/2014,FPIN,STITCH TECH LTD,
Epaulettes Plain Firemans,B205,Stocks & WIP (Purchasing & Supply Stores),571922 - Epaulettes Plain Fire,12,2015,225,130875,17/10/2014,FPIN,STITCH TECH LTD,
Workshop Engineering,2071,Calibration of Equipment,WSD 93654,12,2015,72,130876,03/03/2015,FPIN,R S COMPONENTS LTD,
Purchases,B207,Stocks & WIP (Fleet Stores),WSD 93622,12,2015,45,130877,12/02/2015,FPIN,THE WINDSCREEN COMPANY,
Purchases,B207,Stocks & WIP (Fleet Stores),WSD 93622,12,2015,100,130878,16/02/2015,FPIN,THE WINDSCREEN COMPANY,
Purchases,B207,Stocks & WIP (Fleet Stores),WSD 93728,12,2015,435,130879,18/02/2015,FPIN,THE WINDSCREEN COMPANY,
Purchases,B207,Stocks & WIP (Fleet Stores),WSD 93742,12,2015,40,130880,02/03/2015,FPIN,THE WINDSCREEN COMPANY,
Purchases,B207,Stocks & WIP (Fleet Stores),WSD 93710,12,2015,26.67,130881,06/03/2015,FPIN,TRUCKEAST LTD,
Purchases,B207,Stocks & WIP (Fleet Stores),WSA 93692,12,2015,474.81,130882,05/03/2015,FPIN,TRUCKEAST LTD,
Purchases,B207,Stocks & WIP (Fleet Stores),WSD 93651,12,2015,183.58,130883,05/03/2015,FPIN,TRUCKEAST LTD,
Property Services,1050,Building Maintenance,BA chamber: To refix hinges on,12,2015,72.74,130885,06/03/2015,FPIN,NORMAN DAVID MAINTENANCE,
Property Services,1050,Building Maintenance,Mess room: To replace missing ,12,2015,22.28,130886,12/03/2015,FPIN,NORMAN DAVID MAINTENANCE,
Property Services,1050,Building Maintenance,BA Chamber.  1st floor.  2no d,12,2015,54,130887,12/03/2015,FPIN,NORMAN DAVID MAINTENANCE,
Property Services,1050,Building Maintenance,Area by rear door: To relay lo,12,2015,28.71,130888,12/03/2015,FPIN,NORMAN DAVID MAINTENANCE,
Property Services,1050,Building Maintenance,Gym.  Replace door to gym as p,12,2015,835.21,130889,12/03/2015,FPIN,NORMAN DAVID MAINTENANCE,
Property Services,1050,Building Maintenance,Entrance Door: To ease and adj,12,2015,45,130890,13/03/2015,FPIN,NORMAN DAVID MAINTENANCE,
Property Services,1050,Building Maintenance,1st floor admin.  Ladies WC.  ,12,2015,27,130891,13/03/2015,FPIN,NORMAN DAVID MAINTENANCE,
Property Services,1050,Building Maintenance,Toilet door: to re-fix handle.,12,2015,57.28,130892,13/03/2015,FPIN,NORMAN DAVID MAINTENANCE,
Safer Comms Admin,190,Casual and Temporary Staff,Casual and Temporary Staff,12,2015,505.42,130893,06/03/2015,FPIN,REED SPECIALIST RECRUITMENT LIMITED,
Safer Comms Admin,190,Casual and Temporary Staff,Casual and Temporary Staff,12,2015,494.32,130894,06/03/2015,FPIN,REED SPECIALIST RECRUITMENT LIMITED,
Operations,190,Casual and Temporary Staff,Casual and Temporary Staff,12,2015,436.5,130895,06/03/2015,FPIN,REED SPECIALIST RECRUITMENT LIMITED,
Safer Comms Admin,190,Casual and Temporary Staff,Casual and Temporary Staff,12,2015,200.4,130896,06/03/2015,FPIN,REED SPECIALIST RECRUITMENT LIMITED,
Property Services,1050,Building Maintenance,Gatehouses: To board up north ,12,2015,90,130897,13/03/2015,FPIN,NORMAN DAVID MAINTENANCE,
Purchasing & Supply,190,Casual and Temporary Staff,Casual and Temporary Staff,12,2015,512.08,130898,16/03/2015,FPIN,SUCCESS RECRUIT LIMITED,
Purchasing & Supply,190,Casual and Temporary Staff,Casual and Temporary Staff,12,2015,485.1,130899,16/03/2015,FPIN,SUCCESS RECRUIT LIMITED,
Purchasing & Supply,190,Casual and Temporary Staff,Casual and Temporary Staff,12,2015,438.43,130900,16/03/2015,FPIN,SUCCESS RECRUIT LIMITED,
ICT,2510,IT Comms,"SMS pre-pay block of 50,000 me",12,2015,2020,130901,16/03/2015,FPIN,PAGEONE COMMUNICATIONS LTD,
Community Safety,4019,Community Safety,Road Safety GB Conference for ,12,2015,165,130902,21/11/2014,FPIN,STENNIK ADVERTISING LTD,
Community Safety,4019,Community Safety,EXPENSES,12,2015,52.2,130903,12/03/2015,FPIN,MIKE R SMITH,
Purchases,B207,Stocks & WIP (Fleet Stores),WSD93557,12,2015,68.14,130910,13/03/2015,FPIN,WOODWAY ENGINEERING LTD,
Purchases,B207,Stocks & WIP (Fleet Stores),WSA93784,12,2015,173.27,130911,13/03/2015,FPIN,WOODWAY ENGINEERING LTD,
Purchases,B207,Stocks & WIP (Fleet Stores),WSD93780,12,2015,100.62,130912,13/03/2015,FPIN,WOODWAY ENGINEERING LTD,
Strategic Management Board,4130,Hospitality & Entertaining,Hire of Room (Regional Pension,12,2015,471.25,130913,12/02/2015,FPIN,RIVENHALL HOTEL & HEALTH SPA LTD,
ICT,190,Casual and Temporary Staff,Casual and Temporary Staff,12,2015,157.92,130914,22/01/2015,FPIN,SELECT APPOINTMENTS,
Community Safety,4019,Community Safety,EXPENSES FEB 2015,12,2015,88.2,130915,12/03/2015,FPIN,DAVID PETER HUGHES,
Community Safety,4019,Community Safety,2500 Flat LED Keyring Torch,12,2015,1162.5,130918,13/03/2015,FPIN,PREMIER PRINT & PROMOTIONS LTD.,
Community Safety,4019,Community Safety,2500 Air Fresheners.,12,2015,825,130918,13/03/2015,FPIN,PREMIER PRINT & PROMOTIONS LTD.,
Property Services,1330,Building Cleaning,Maldon Fire Station,12,2015,52.17,130922,28/02/2015,FPIN,GREEN RECYCLING LIMITED,
Property Services,1330,Building Cleaning,Old Harlow Fire Station,12,2015,28.25,130922,28/02/2015,FPIN,GREEN RECYCLING LIMITED,
Property Services,1330,Building Cleaning,Orsett Fire Station,12,2015,115.69,130922,28/02/2015,FPIN,GREEN RECYCLING LIMITED,
Property Services,1330,Building Cleaning,Basildon Fire Station,12,2015,78.57,130922,28/02/2015,FPIN,GREEN RECYCLING LIMITED,
Property Services,1330,Building Cleaning,Braintree Fire Station,12,2015,41.45,130922,28/02/2015,FPIN,GREEN RECYCLING LIMITED,
Property Services,1330,Building Cleaning,Brightlingsea Fire Station,12,2015,23.95,130922,28/02/2015,FPIN,GREEN RECYCLING LIMITED,
Property Services,1330,Building Cleaning,Fleet Workshops,12,2015,143.53,130922,28/02/2015,FPIN,GREEN RECYCLING LIMITED,
Property Services,1330,Building Cleaning,To provide trade refuse servic,12,2015,45.45,130922,28/02/2015,FPIN,GREEN RECYCLING LIMITED,
Property Services,1330,Building Cleaning,To provide skip for January 20,12,2015,150,130922,28/02/2015,FPIN,GREEN RECYCLING LIMITED,
Property Services,1330,Building Cleaning,Southend Fire Station,12,2015,124.53,130922,28/02/2015,FPIN,GREEN RECYCLING LIMITED,
Property Services,1330,Building Cleaning,Tiptree Fire Station,12,2015,41.45,130922,28/02/2015,FPIN,GREEN RECYCLING LIMITED,
Property Services,1330,Building Cleaning,Urban Search & Rescue,12,2015,32.17,130922,28/02/2015,FPIN,GREEN RECYCLING LIMITED,
Property Services,1330,Building Cleaning,Weeley Fire Station,12,2015,25.27,130922,28/02/2015,FPIN,GREEN RECYCLING LIMITED,
Property Services,1330,Building Cleaning,Wethersfield Fire Station,12,2015,19.29,130922,28/02/2015,FPIN,GREEN RECYCLING LIMITED,
Property Services,1330,Building Cleaning,"Service Training Centre, Witha",12,2015,78.57,130922,28/02/2015,FPIN,GREEN RECYCLING LIMITED,
Property Services,1330,Building Cleaning,Frinton Fire Station,12,2015,25.27,130922,28/02/2015,FPIN,GREEN RECYCLING LIMITED,
Property Services,1330,Building Cleaning,Grays Fire Station,12,2015,115.69,130922,28/02/2015,FPIN,GREEN RECYCLING LIMITED,
